Beneficiary,Transaction Date,Procurement Category,Purpose of Spend,Organisation, Net Amount 
Ingeus UK Ltd,29/10/2020,"Supplies, Services & Other Expenses",Commissioned Services,Greater Manchester Combined Authority,"-465,058.48 "
BERRYMANS LACE MAWER LLP,23/10/2020,"Supplies, Services & Other Expenses",Professional Fees,Greater Manchester Combined Authority,"-278,197.58 "
YHA (England & Wales),14/12/2020,"Supplies, Services & Other Expenses",Commissioned Services,Greater Manchester Combined Authority,"-117,914.00 "
PeoplePlus Group Limited,19/11/2020,"Supplies, Services & Other Expenses",Commissioned Services,Greater Manchester Combined Authority,"-24,638.08 "
TFGM,16/10/2020,Capital,Capital Grant Expenditure,Greater Manchester Combined Authority,"-20,005.96 "
Babington Business College,19/11/2020,"Supplies, Services & Other Expenses",Commissioned Services,Greater Manchester Combined Authority,"-8,807.86 "
TFGM,02/12/2020,Capital,Capital Grant Expenditure,Greater Manchester Combined Authority,"-8,239.56 "
TFGM,18/11/2020,Capital,Capital Grant Expenditure,Greater Manchester Combined Authority,"-8,097.07 "
TFGM,16/10/2020,Capital,Capital Grant Expenditure,Greater Manchester Combined Authority,"-6,783.98 "
TFGM,16/10/2020,Capital,Capital Grant Expenditure,Greater Manchester Combined Authority,"-5,934.08 "
Cranswick Continental Foods,05/10/2020,"Supplies, Services & Other Expenses",Professional Fees,Greater Manchester Combined Authority,"-2,090.39 "
Banner Group Ltd,08/10/2020,"Supplies, Services & Other Expenses",Stationery,Greater Manchester Combined Authority,"-1,884.89 "
TFGM,18/11/2020,"Supplies, Services & Other Expenses",Grant Expenditure,Greater Manchester Combined Authority,"-1,755.64 "
Cranswick Continental Foods,06/10/2020,"Supplies, Services & Other Expenses",Professional Fees,Greater Manchester Combined Authority,"-1,629.58 "
Risual Ltd,11/12/2020,"Supplies, Services & Other Expenses",Computer Software,Greater Manchester Combined Authority,"-1,000.00 "
GODIVA LTD,30/11/2020,Transport Related Expenditure,Repairs and Maintenance - Transport,Greater Manchester Combined Authority,-794.75 
SUPPLY + LTD,18/11/2020,Transport Related Expenditure,Repairs and Maintenance - Transport,Greater Manchester Combined Authority,-562.41 
Closer Commissioning Ltd,12/10/2020,"Supplies, Services & Other Expenses",Commissioned Services,Greater Manchester Combined Authority, 500.00 
COMPACT GROUNDS MAINTENANCE LD,10/11/2020,Premises Related Expenditure,Waste Site Programmed,Greater Manchester Combined Authority, 500.00 
ENTHIOS TRAINING & DEVELOPMENT LIMITED,29/10/2020,"Supplies, Services & Other Expenses",Consultancy Fees,Greater Manchester Combined Authority, 500.00 
Gunnercooke LLP,10/11/2020,"Supplies, Services & Other Expenses",Legal Liabilities,Greater Manchester Combined Authority, 500.00 
Make Events,23/11/2020,"Supplies, Services & Other Expenses",Professional Fees,Greater Manchester Combined Authority, 500.00 
Martek Drones Ltd T/A Coptrz,04/11/2020,"Supplies, Services & Other Expenses",Operational Equipment Non-Consumables,Greater Manchester Combined Authority, 500.00 
Maya Chowdhry,14/10/2020,"Supplies, Services & Other Expenses",Grant Expenditure,Greater Manchester Combined Authority, 500.00 
REDACTED PERSONAL DATA,14/10/2020,"Supplies, Services & Other Expenses",Grant Expenditure,Greater Manchester Combined Authority, 500.00 
Savills (UK) Limited,27/10/2020,"Supplies, Services & Other Expenses",Legal Liabilities,Greater Manchester Combined Authority, 500.00 
Stockport Womens Centre,18/12/2020,"Supplies, Services & Other Expenses",Grant Expenditure,Greater Manchester Combined Authority, 500.00 
Tetra Tech Limited,13/10/2020,"Supplies, Services & Other Expenses",Professional Fees,Greater Manchester Combined Authority, 500.00 
Tetra Tech Limited,18/11/2020,"Supplies, Services & Other Expenses",Professional Fees,Greater Manchester Combined Authority, 500.00 
Tetra Tech Limited,10/12/2020,"Supplies, Services & Other Expenses",Professional Fees,Greater Manchester Combined Authority, 500.00 
TFGM,24/11/2020,Capital,Traffic Signals,Greater Manchester Combined Authority, 500.00 
WHATS ON,07/12/2020,"Supplies, Services & Other Expenses",Fire Safety,Greater Manchester Combined Authority, 500.00 
REDACTED PERSONAL DATA,29/10/2020,Transport Related Expenditure,Repairs and Maintenance - Transport,Greater Manchester Combined Authority, 500.00 
REDACTED PERSONAL DATA,18/11/2020,Transport Related Expenditure,Repairs and Maintenance - Transport,Greater Manchester Combined Authority, 500.00 
REDACTED PERSONAL DATA,10/12/2020,Transport Related Expenditure,Repairs and Maintenance - Transport,Greater Manchester Combined Authority, 500.00 
REDACTED PERSONAL DATA,18/12/2020,Transport Related Expenditure,Repairs and Maintenance - Transport,Greater Manchester Combined Authority, 500.00 
DRAEGER LTD,09/11/2020,"Supplies, Services & Other Expenses",Operational Equipment Non-Consumables,Greater Manchester Combined Authority, 502.02 
Veolia ES (UK) Ltd,16/11/2020,Premises Related Expenditure,Programmed Repairs & Maintenance,Greater Manchester Combined Authority, 502.32 
TFGM,16/10/2020,Capital,Capital Grant Expenditure,Greater Manchester Combined Authority, 502.98 
TFGM,16/10/2020,Capital,Capital Grant Expenditure,Greater Manchester Combined Authority, 502.98 
Learn Our Way Driver Training School,05/11/2020,Indirect Employee Allowances,Training Course Fees,Greater Manchester Combined Authority, 505.00 
J Fletcher (Engineers) Ltd,10/11/2020,Premises Related Expenditure,Responsive Repairs & Maintenance,Greater Manchester Combined Authority, 508.58 
NPOWER YORKSHIRE LTD,23/12/2020,Premises Related Expenditure,Electricity,Greater Manchester Combined Authority, 509.45 
NPOWER YORKSHIRE LTD,23/12/2020,Premises Related Expenditure,Electricity,Greater Manchester Combined Authority, 509.45 
MIDLANDHR,29/10/2020,"Supplies, Services & Other Expenses",Systems Development,Greater Manchester Combined Authority, 509.49 
Tudor Contract Cleaners Ltd,06/11/2020,"Supplies, Services & Other Expenses",Professional Fees,Greater Manchester Combined Authority, 509.57 
NPOWER YORKSHIRE LTD,23/12/2020,Premises Related Expenditure,Electricity,Greater Manchester Combined Authority, 509.73 
NPOWER YORKSHIRE LTD,23/12/2020,Premises Related Expenditure,Electricity,Greater Manchester Combined Authority, 509.73 
Barlows (UK) Ltd,01/12/2020,Premises Related Expenditure,Programmed Repairs & Maintenance,Greater Manchester Combined Authority, 510.00 
THOMAS HARDIE COMMERCIALS LTD,01/10/2020,Transport Related Expenditure,Repairs and Maintenance - Transport,Greater Manchester Combined Authority, 512.71 
Pinsent Masons LLP,16/12/2020,"Supplies, Services & Other Expenses",Legal Liabilities,Greater Manchester Combined Authority, 513.50 
TFGM,16/12/2020,Capital,Traffic Signals,Greater Manchester Combined Authority, 514.44 
Cylinder Testing & Sales (UK) Ltd,01/12/2020,"Supplies, Services & Other Expenses",Operational Equipment Non-Consumables,Greater Manchester Combined Authority, 515.00 
Corona Energy,23/12/2020,Premises Related Expenditure,Gas,Greater Manchester Combined Authority, 515.20 
Corona Energy,23/12/2020,Premises Related Expenditure,Gas,Greater Manchester Combined Authority, 515.20 
Corona Energy,23/12/2020,Premises Related Expenditure,Gas,Greater Manchester Combined Authority, 517.68 
Corona Energy,23/12/2020,Premises Related Expenditure,Gas,Greater Manchester Combined Authority, 517.68 
BURY COUNCIL,15/10/2020,Premises Related Expenditure,Rates,Greater Manchester Combined Authority, 518.00 
BURY COUNCIL,16/11/2020,Premises Related Expenditure,Rates,Greater Manchester Combined Authority, 518.00 
BURY COUNCIL,15/12/2020,Premises Related Expenditure,Rates,Greater Manchester Combined Authority, 518.00 
Lyon Equipment Ltd,16/11/2020,"Supplies, Services & Other Expenses",Operational Equipment Non-Consumables,Greater Manchester Combined Authority, 520.00 
Barlows (UK) Ltd,23/11/2020,Premises Related Expenditure,Responsive Repairs & Maintenance,Greater Manchester Combined Authority, 523.84 
TFGM,16/12/2020,Capital,Traffic Signals,Greater Manchester Combined Authority, 525.56 
SUPPLY + LTD,07/10/2020,Transport Related Expenditure,Repairs and Maintenance - Transport,Greater Manchester Combined Authority, 525.90 
Corona Energy,23/12/2020,Premises Related Expenditure,Gas,Greater Manchester Combined Authority, 526.12 
Corona Energy,23/12/2020,Premises Related Expenditure,Gas,Greater Manchester Combined Authority, 526.12 
Chubb Fire & Security Limited,16/10/2020,Premises Related Expenditure,Responsive Repairs & Maintenance,Greater Manchester Combined Authority, 527.90 
NPOWER YORKSHIRE LTD,23/12/2020,Premises Related Expenditure,Electricity,Greater Manchester Combined Authority, 527.96 
NPOWER YORKSHIRE LTD,23/12/2020,Premises Related Expenditure,Electricity,Greater Manchester Combined Authority, 527.96 
WIGAN COUNCIL,12/11/2020,Indirect Employee Allowances,Recruitment,Greater Manchester Combined Authority, 529.00 
ClickTravel ,01/12/2020,Transport Related Expenditure,Officers Travel & Subsistence,Greater Manchester Combined Authority, 529.10 
REXEL UK LIMITED,02/11/2020,Premises Related Expenditure,Responsive Repairs & Maintenance,Greater Manchester Combined Authority, 529.63 
REDACTED PERSONAL DATA,16/10/2020,Indirect Employee Allowances,Medical Fees,Greater Manchester Combined Authority, 530.00 
DELL COMPUTER CORPORATION LTD,14/10/2020,"Supplies, Services & Other Expenses",Computer Hardware,Greater Manchester Combined Authority, 530.40 
Veolia ES (UK) Ltd,16/11/2020,Premises Related Expenditure,Fixtures & Fittings,Greater Manchester Combined Authority, 531.25 
Banner Group Ltd,23/12/2020,Indirect Employee Allowances,Other Training Expenses,Greater Manchester Combined Authority, 532.88 
The C&M College Network,13/11/2020,"Supplies, Services & Other Expenses",Grant Expenditure,Greater Manchester Combined Authority, 533.80 
STALYBRIDGE AUTO SALVAGE LTD,08/10/2020,Indirect Employee Allowances,Other Training Expenses,Greater Manchester Combined Authority, 534.00 
Goodyear Dunlop Tyres UK Ltd,04/11/2020,Transport Related Expenditure,Tyres,Greater Manchester Combined Authority, 534.90 
Goodyear Dunlop Tyres UK Ltd,04/11/2020,Transport Related Expenditure,Tyres,Greater Manchester Combined Authority, 534.90 
NPOWER YORKSHIRE LTD,23/12/2020,Premises Related Expenditure,Electricity,Greater Manchester Combined Authority, 534.97 
NPOWER YORKSHIRE LTD,23/12/2020,Premises Related Expenditure,Electricity,Greater Manchester Combined Authority, 534.97 
Central Power Services,16/11/2020,Premises Related Expenditure,Responsive Repairs & Maintenance,Greater Manchester Combined Authority, 535.50 
RICHARD L. THOMAS ASSOCIATES LTD,20/11/2020,Premises Related Expenditure,Programmed Repairs & Maintenance,Greater Manchester Combined Authority, 537.00 
THOMAS HARDIE COMMERCIALS LTD,19/11/2020,Transport Related Expenditure,Repairs and Maintenance - Transport,Greater Manchester Combined Authority, 537.76 
BRAKE BROS FOOD SERVICE LTD,06/10/2020,"Supplies, Services & Other Expenses",Food,Greater Manchester Combined Authority, 542.80 
THOMAS HARDIE COMMERCIALS LTD,19/11/2020,Transport Related Expenditure,Repairs and Maintenance - Transport,Greater Manchester Combined Authority, 545.04 
PageOne Communications Ltd,26/11/2020,"Supplies, Services & Other Expenses",Other Communications Equipment,Greater Manchester Combined Authority, 545.40 
PageOne Communications Ltd,26/11/2020,"Supplies, Services & Other Expenses",Other Communications Equipment,Greater Manchester Combined Authority, 545.40 
ServiceMaster Manchester Contract Services,21/12/2020,Employees Pay,Agency Staff Costs,Greater Manchester Combined Authority, 546.00 
Clarion Security Systems Ltd,01/10/2020,Premises Related Expenditure,Programmed Repairs & Maintenance,Greater Manchester Combined Authority, 546.33 
NPOWER YORKSHIRE LTD,23/12/2020,Premises Related Expenditure,Electricity,Greater Manchester Combined Authority, 547.64 
NPOWER YORKSHIRE LTD,23/12/2020,Premises Related Expenditure,Electricity,Greater Manchester Combined Authority, 547.64 
Fire Fighter Protection (UK),09/11/2020,Indirect Employee Allowances,Other Training Expenses,Greater Manchester Combined Authority, 548.00 
HYDRAULIC TRANSMISSION SERVICES LTD,11/11/2020,Transport Related Expenditure,Repairs and Maintenance - Transport,Greater Manchester Combined Authority, 548.00 
Corona Energy,23/12/2020,Premises Related Expenditure,Gas,Greater Manchester Combined Authority, 548.41 
Corona Energy,23/12/2020,Premises Related Expenditure,Gas,Greater Manchester Combined Authority, 548.41 
TFGM,22/10/2020,Capital,Traffic Signals,Greater Manchester Combined Authority, 550.00 
Veolia ES (UK) Ltd,20/10/2020,Premises Related Expenditure,Programmed Repairs & Maintenance,Greater Manchester Combined Authority, 551.00 
NPOWER YORKSHIRE LTD,23/12/2020,Premises Related Expenditure,Electricity,Greater Manchester Combined Authority, 551.97 
NPOWER YORKSHIRE LTD,23/12/2020,Premises Related Expenditure,Electricity,Greater Manchester Combined Authority, 551.97 
Corona Energy,23/12/2020,Premises Related Expenditure,Gas,Greater Manchester Combined Authority, 555.19 
Corona Energy,23/12/2020,Premises Related Expenditure,Gas,Greater Manchester Combined Authority, 555.19 
Corona Energy,23/12/2020,Premises Related Expenditure,Gas,Greater Manchester Combined Authority, 556.32 
Corona Energy,23/12/2020,Premises Related Expenditure,Gas,Greater Manchester Combined Authority, 556.32 
NPOWER YORKSHIRE LTD,23/12/2020,Premises Related Expenditure,Electricity,Greater Manchester Combined Authority, 556.39 
NPOWER YORKSHIRE LTD,23/12/2020,Premises Related Expenditure,Electricity,Greater Manchester Combined Authority, 556.39 
J Fletcher (Engineers) Ltd,10/11/2020,Premises Related Expenditure,Responsive Repairs & Maintenance,Greater Manchester Combined Authority, 558.32 
Goodyear Dunlop Tyres UK Ltd,02/12/2020,Transport Related Expenditure,Tyres,Greater Manchester Combined Authority, 559.90 
Aquaspeed Drain Services LLP,07/10/2020,Premises Related Expenditure,Responsive Repairs & Maintenance,Greater Manchester Combined Authority, 560.00 
Barlows (UK) Ltd,23/11/2020,Premises Related Expenditure,Programmed Repairs & Maintenance,Greater Manchester Combined Authority, 560.00 
Myerscough College,08/12/2020,Indirect Employee Allowances,Other Training Expenses,Greater Manchester Combined Authority, 560.00 
Nectar Creative Ltd,07/12/2020,"Supplies, Services & Other Expenses",Graphics/ Branding,Greater Manchester Combined Authority, 560.00 
Veolia ES (UK) Ltd,10/11/2020,Premises Related Expenditure,Responsive Repairs & Maintenance,Greater Manchester Combined Authority, 560.05 
Wigan & Leigh College,17/12/2020,"Supplies, Services & Other Expenses",Grant Expenditure,Greater Manchester Combined Authority, 560.12 
Ashdown Phillips & Partners,15/12/2020,"Supplies, Services & Other Expenses",Car Park fees,Greater Manchester Combined Authority, 562.50 
Water Plus Limited,04/11/2020,Premises Related Expenditure,Metered Water,Greater Manchester Combined Authority, 564.63 
Corona Energy,23/12/2020,Premises Related Expenditure,Gas,Greater Manchester Combined Authority, 564.72 
Corona Energy,23/12/2020,Premises Related Expenditure,Gas,Greater Manchester Combined Authority, 564.72 
Water Plus Limited,04/11/2020,Premises Related Expenditure,Metered Water,Greater Manchester Combined Authority, 566.17 
Water Plus Limited,04/11/2020,Premises Related Expenditure,Metered Water,Greater Manchester Combined Authority, 566.17 
Water Plus Limited,04/11/2020,Premises Related Expenditure,Metered Water,Greater Manchester Combined Authority, 566.17 
NPOWER YORKSHIRE LTD,23/12/2020,Premises Related Expenditure,Electricity,Greater Manchester Combined Authority, 567.49 
NPOWER YORKSHIRE LTD,23/12/2020,Premises Related Expenditure,Electricity,Greater Manchester Combined Authority, 567.49 
Dualit Ltd,30/12/2020,"Supplies, Services & Other Expenses",Kitchen Equipment,Greater Manchester Combined Authority, 570.00 
Corona Energy,23/12/2020,Premises Related Expenditure,Gas,Greater Manchester Combined Authority, 571.48 
Corona Energy,23/12/2020,Premises Related Expenditure,Gas,Greater Manchester Combined Authority, 571.48 
ServiceMaster Manchester Contract Services,19/11/2020,Employees Pay,Agency Staff Costs,Greater Manchester Combined Authority, 572.00 
ServiceMaster Manchester Contract Services,30/11/2020,Employees Pay,Agency Staff Costs,Greater Manchester Combined Authority, 572.00 
THOMAS HARDIE COMMERCIALS LTD,09/11/2020,Transport Related Expenditure,Repairs and Maintenance - Transport,Greater Manchester Combined Authority, 574.10 
Corona Energy,23/12/2020,Premises Related Expenditure,Gas,Greater Manchester Combined Authority, 574.48 
Corona Energy,23/12/2020,Premises Related Expenditure,Gas,Greater Manchester Combined Authority, 574.48 
Space Coaching and Consulting Limited,14/12/2020,Indirect Employee Allowances,Other Training Expenses,Greater Manchester Combined Authority, 575.00 
Runshaw College,19/11/2020,"Supplies, Services & Other Expenses",Commissioned Services,Greater Manchester Combined Authority, 579.20 
TFGM,19/10/2020,Capital,Capital Grant Expenditure,Greater Manchester Combined Authority, 582.17 
RADIOCOMS SYSTEMS LIMITED,06/10/2020,"Supplies, Services & Other Expenses",Other Communications Equipment,Greater Manchester Combined Authority, 583.00 
BRAKE BROS FOOD SERVICE LTD,06/10/2020,"Supplies, Services & Other Expenses",Food,Greater Manchester Combined Authority, 583.08 
ARCO LIMITED,18/12/2020,"Supplies, Services & Other Expenses",Operational Equipment Non-Consumables,Greater Manchester Combined Authority, 584.40 
NPOWER YORKSHIRE LTD,23/12/2020,Premises Related Expenditure,Electricity,Greater Manchester Combined Authority, 584.66 
NPOWER YORKSHIRE LTD,23/12/2020,Premises Related Expenditure,Electricity,Greater Manchester Combined Authority, 584.66 
Stellar Network Solutions Ltd,23/11/2020,Capital,Estates Capital Contracts,Greater Manchester Combined Authority, 585.00 
Corona Energy,23/12/2020,Premises Related Expenditure,Gas,Greater Manchester Combined Authority, 585.03 
Corona Energy,23/12/2020,Premises Related Expenditure,Gas,Greater Manchester Combined Authority, 585.03 
Emergency One (UK) Ltd,04/12/2020,Transport Related Expenditure,Repairs and Maintenance - Transport,Greater Manchester Combined Authority, 585.78 
Bolton MBC,26/10/2020,Premises Related Expenditure,Rates,Greater Manchester Combined Authority, 586.00 
Bolton MBC,25/11/2020,Premises Related Expenditure,Rates,Greater Manchester Combined Authority, 586.00 
Bolton MBC,29/12/2020,Premises Related Expenditure,Rates,Greater Manchester Combined Authority, 586.00 
BRAKE BROS FOOD SERVICE LTD,22/10/2020,"Supplies, Services & Other Expenses",Food,Greater Manchester Combined Authority, 589.56 
SUPPLY + LTD,17/11/2020,Transport Related Expenditure,Repairs and Maintenance - Transport,Greater Manchester Combined Authority, 590.13 
NPOWER YORKSHIRE LTD,23/12/2020,Premises Related Expenditure,Electricity,Greater Manchester Combined Authority, 591.22 
NPOWER YORKSHIRE LTD,23/12/2020,Premises Related Expenditure,Electricity,Greater Manchester Combined Authority, 591.22 
NPOWER YORKSHIRE LTD,23/12/2020,Premises Related Expenditure,Electricity,Greater Manchester Combined Authority, 595.00 
NPOWER YORKSHIRE LTD,23/12/2020,Premises Related Expenditure,Electricity,Greater Manchester Combined Authority, 595.00 
Skyview Systems Ltd,11/12/2020,"Supplies, Services & Other Expenses",Computer Software,Greater Manchester Combined Authority, 595.00 
NPOWER YORKSHIRE LTD,23/12/2020,Premises Related Expenditure,Electricity,Greater Manchester Combined Authority, 595.76 
NPOWER YORKSHIRE LTD,23/12/2020,Premises Related Expenditure,Electricity,Greater Manchester Combined Authority, 595.76 
BROWNS CTP LTD,01/12/2020,"Supplies, Services & Other Expenses",Advertising,Greater Manchester Combined Authority, 596.00 
NPOWER YORKSHIRE LTD,23/12/2020,Premises Related Expenditure,Electricity,Greater Manchester Combined Authority, 597.28 
NPOWER YORKSHIRE LTD,23/12/2020,Premises Related Expenditure,Electricity,Greater Manchester Combined Authority, 597.28 
Corona Energy,23/12/2020,Premises Related Expenditure,Gas,Greater Manchester Combined Authority, 599.26 
Corona Energy,23/12/2020,Premises Related Expenditure,Gas,Greater Manchester Combined Authority, 599.26 
J Fletcher (Engineers) Ltd,16/10/2020,Premises Related Expenditure,Responsive Repairs & Maintenance,Greater Manchester Combined Authority, 599.79 
IKG Consulting Limited,03/11/2020,"Supplies, Services & Other Expenses",Consultancy Fees,Greater Manchester Combined Authority, 600.00 
Rider Levett Bucknall UK Limited,03/11/2020,"Supplies, Services & Other Expenses",Professional Fees,Greater Manchester Combined Authority, 600.00 
J Fletcher (Engineers) Ltd,16/10/2020,Premises Related Expenditure,Responsive Repairs & Maintenance,Greater Manchester Combined Authority, 600.03 
Embridge Consulting (UK) Ltd,02/12/2020,Capital,ICT Implementation Consultancy Costs,Greater Manchester Combined Authority, 603.00 
NPOWER YORKSHIRE LTD,23/12/2020,Premises Related Expenditure,Electricity,Greater Manchester Combined Authority, 604.43 
NPOWER YORKSHIRE LTD,23/12/2020,Premises Related Expenditure,Electricity,Greater Manchester Combined Authority, 604.43 
Ford Motor Company Ltd T/A Partsplus,30/11/2020,Transport Related Expenditure,Repairs and Maintenance - Transport,Greater Manchester Combined Authority, 604.88 
Corona Energy,23/12/2020,Premises Related Expenditure,Gas,Greater Manchester Combined Authority, 605.36 
Corona Energy,23/12/2020,Premises Related Expenditure,Gas,Greater Manchester Combined Authority, 605.36 
DLA Piper UK LLP,20/10/2020,"Supplies, Services & Other Expenses",Legal Liabilities,Greater Manchester Combined Authority, 605.80 
Portakabin Ltd,15/12/2020,Indirect Employee Allowances,Other Training Expenses,Greater Manchester Combined Authority, 606.68 
Portakabin Ltd,15/12/2020,Indirect Employee Allowances,Other Training Expenses,Greater Manchester Combined Authority, 606.68 
Portakabin Ltd,18/12/2020,Indirect Employee Allowances,Other Training Expenses,Greater Manchester Combined Authority, 606.68 
JWO Consulting Ltd,06/11/2020,"Supplies, Services & Other Expenses",Consultancy Fees,Greater Manchester Combined Authority, 607.00 
THOMAS HARDIE COMMERCIALS LTD,21/10/2020,Transport Related Expenditure,Repairs and Maintenance - Transport,Greater Manchester Combined Authority, 607.62 
Spraybake,17/11/2020,Transport Related Expenditure,Repairs and Maintenance - Transport,Greater Manchester Combined Authority, 607.78 
THOMAS HARDIE COMMERCIALS LTD,26/11/2020,Transport Related Expenditure,Repairs and Maintenance - Transport,Greater Manchester Combined Authority, 610.46 
TFGM,24/11/2020,"Supplies, Services & Other Expenses",Traffic Signal Repairs,Greater Manchester Combined Authority, 610.74 
NPOWER YORKSHIRE LTD,23/12/2020,Premises Related Expenditure,Electricity,Greater Manchester Combined Authority, 614.14 
NPOWER YORKSHIRE LTD,23/12/2020,Premises Related Expenditure,Electricity,Greater Manchester Combined Authority, 614.14 
Floorbrite Cleaning Contractors Ltd,09/10/2020,Employees Pay,Agency Staff Costs,Greater Manchester Combined Authority, 614.18 
THOMAS HARDIE COMMERCIALS LTD,02/11/2020,Transport Related Expenditure,Repairs and Maintenance - Transport,Greater Manchester Combined Authority, 615.61 
NPOWER YORKSHIRE LTD,23/12/2020,Premises Related Expenditure,Electricity,Greater Manchester Combined Authority, 615.98 
NPOWER YORKSHIRE LTD,23/12/2020,Premises Related Expenditure,Electricity,Greater Manchester Combined Authority, 615.98 
Barlows (UK) Ltd,12/11/2020,Premises Related Expenditure,Programmed Repairs & Maintenance,Greater Manchester Combined Authority, 618.60 
Water Plus Limited,04/11/2020,Premises Related Expenditure,Metered Water,Greater Manchester Combined Authority, 619.07 
Water Plus Limited,04/11/2020,Premises Related Expenditure,Metered Water,Greater Manchester Combined Authority, 619.07 
Water Plus Limited,04/11/2020,Premises Related Expenditure,Metered Water,Greater Manchester Combined Authority, 619.07 
Water Plus Limited,04/11/2020,Premises Related Expenditure,Metered Water,Greater Manchester Combined Authority, 619.07 
Water Plus Limited,04/11/2020,Premises Related Expenditure,Metered Water,Greater Manchester Combined Authority, 619.07 
Water Plus Limited,04/11/2020,Premises Related Expenditure,Metered Water,Greater Manchester Combined Authority, 619.07 
Water Plus Limited,04/11/2020,Premises Related Expenditure,Metered Water,Greater Manchester Combined Authority, 619.07 
Water Plus Limited,04/11/2020,Premises Related Expenditure,Metered Water,Greater Manchester Combined Authority, 619.07 
Water Plus Limited,04/11/2020,Premises Related Expenditure,Metered Water,Greater Manchester Combined Authority, 619.07 
Water Plus Limited,04/11/2020,Premises Related Expenditure,Metered Water,Greater Manchester Combined Authority, 619.07 
Water Plus Limited,04/11/2020,Premises Related Expenditure,Metered Water,Greater Manchester Combined Authority, 619.07 
Corona Energy,23/12/2020,Premises Related Expenditure,Gas,Greater Manchester Combined Authority, 622.16 
Corona Energy,23/12/2020,Premises Related Expenditure,Gas,Greater Manchester Combined Authority, 622.16 
THOMAS HARDIE COMMERCIALS LTD,02/11/2020,Transport Related Expenditure,Repairs and Maintenance - Transport,Greater Manchester Combined Authority, 624.51 
Neil Fitzsimmons,16/10/2020,"Supplies, Services & Other Expenses",Members Conference Fees,Greater Manchester Combined Authority, 625.00 
Neil Fitzsimmons,16/11/2020,"Supplies, Services & Other Expenses",Members Conference Fees,Greater Manchester Combined Authority, 625.00 
Steam School Ltd,21/10/2020,"Supplies, Services & Other Expenses",Subscriptions,Greater Manchester Combined Authority, 625.00 
Corona Energy,23/12/2020,Premises Related Expenditure,Gas,Greater Manchester Combined Authority, 626.35 
Corona Energy,23/12/2020,Premises Related Expenditure,Gas,Greater Manchester Combined Authority, 626.35 
UNITED UTILITIES WATER PLC,23/10/2020,"Supplies, Services & Other Expenses",Hydrants Repairs,Greater Manchester Combined Authority, 627.04 
Hilltop Products Insulation Sleeving Ltd,16/12/2020,"Supplies, Services & Other Expenses",Operational Equipment Non-Consumables,Greater Manchester Combined Authority, 628.00 
Banner Group Ltd,27/11/2020,"Supplies, Services & Other Expenses",Stationery,Greater Manchester Combined Authority, 628.11 
HOWDENS JOINERY LIMITED,09/10/2020,Capital,Estates Capital Contracts,Greater Manchester Combined Authority, 630.51 
Veolia ES (UK) Ltd,17/12/2020,Premises Related Expenditure,Fixtures & Fittings,Greater Manchester Combined Authority, 636.85 
Corona Energy,23/12/2020,Premises Related Expenditure,Gas,Greater Manchester Combined Authority, 637.94 
Corona Energy,23/12/2020,Premises Related Expenditure,Gas,Greater Manchester Combined Authority, 637.94 
Maximus UK Services Ltd,15/10/2020,"Supplies, Services & Other Expenses",Commissioned Services,Greater Manchester Combined Authority, 639.55 
Water Plus Limited,04/11/2020,Premises Related Expenditure,Metered Water,Greater Manchester Combined Authority, 639.71 
Water Plus Limited,04/11/2020,Premises Related Expenditure,Metered Water,Greater Manchester Combined Authority, 639.71 
Water Plus Limited,04/11/2020,Premises Related Expenditure,Metered Water,Greater Manchester Combined Authority, 639.71 
Water Plus Limited,04/11/2020,Premises Related Expenditure,Metered Water,Greater Manchester Combined Authority, 639.71 
Water Plus Limited,04/11/2020,Premises Related Expenditure,Metered Water,Greater Manchester Combined Authority, 639.71 
Water Plus Limited,04/11/2020,Premises Related Expenditure,Metered Water,Greater Manchester Combined Authority, 639.71 
Water Plus Limited,04/11/2020,Premises Related Expenditure,Metered Water,Greater Manchester Combined Authority, 639.71 
Water Plus Limited,04/11/2020,Premises Related Expenditure,Metered Water,Greater Manchester Combined Authority, 639.71 
Water Plus Limited,04/11/2020,Premises Related Expenditure,Metered Water,Greater Manchester Combined Authority, 639.71 
Water Plus Limited,04/11/2020,Premises Related Expenditure,Metered Water,Greater Manchester Combined Authority, 639.71 
Water Plus Limited,04/11/2020,Premises Related Expenditure,Metered Water,Greater Manchester Combined Authority, 639.71 
Water Plus Limited,04/11/2020,Premises Related Expenditure,Metered Water,Greater Manchester Combined Authority, 639.71 
Water Plus Limited,04/11/2020,Premises Related Expenditure,Metered Water,Greater Manchester Combined Authority, 639.71 
Water Plus Limited,04/11/2020,Premises Related Expenditure,Metered Water,Greater Manchester Combined Authority, 639.71 
Water Plus Limited,04/11/2020,Premises Related Expenditure,Metered Water,Greater Manchester Combined Authority, 639.71 
Water Plus Limited,04/11/2020,Premises Related Expenditure,Metered Water,Greater Manchester Combined Authority, 639.71 
Water Plus Limited,04/11/2020,Premises Related Expenditure,Metered Water,Greater Manchester Combined Authority, 639.71 
Water Plus Limited,04/11/2020,Premises Related Expenditure,Metered Water,Greater Manchester Combined Authority, 639.71 
Water Plus Limited,04/11/2020,Premises Related Expenditure,Metered Water,Greater Manchester Combined Authority, 639.71 
Water Plus Limited,04/11/2020,Premises Related Expenditure,Metered Water,Greater Manchester Combined Authority, 639.71 
Water Plus Limited,04/11/2020,Premises Related Expenditure,Metered Water,Greater Manchester Combined Authority, 639.71 
Water Plus Limited,04/11/2020,Premises Related Expenditure,Metered Water,Greater Manchester Combined Authority, 639.71 
Water Plus Limited,04/11/2020,Premises Related Expenditure,Metered Water,Greater Manchester Combined Authority, 639.71 
Water Plus Limited,04/11/2020,Premises Related Expenditure,Metered Water,Greater Manchester Combined Authority, 639.71 
Eck Civil Engineering Ltd,16/11/2020,Premises Related Expenditure,Waste Site Programmed,Greater Manchester Combined Authority, 640.00 
Fire Service College LTD,17/12/2020,"Supplies, Services & Other Expenses",Subsistence,Greater Manchester Combined Authority, 640.00 
NPOWER YORKSHIRE LTD,23/12/2020,Premises Related Expenditure,Electricity,Greater Manchester Combined Authority, 642.70 
NPOWER YORKSHIRE LTD,23/12/2020,Premises Related Expenditure,Electricity,Greater Manchester Combined Authority, 642.70 
Berendsen UK Ltd,06/10/2020,"Supplies, Services & Other Expenses",Laundry,Greater Manchester Combined Authority, 646.59 
Edmond Shipway LLP,02/10/2020,"Supplies, Services & Other Expenses",Professional Fees,Greater Manchester Combined Authority, 650.00 
Edmond Shipway LLP,02/11/2020,"Supplies, Services & Other Expenses",Professional Fees,Greater Manchester Combined Authority, 650.00 
Edmond Shipway LLP,02/12/2020,"Supplies, Services & Other Expenses",Professional Fees,Greater Manchester Combined Authority, 650.00 
Monks Contractors Ltd,22/10/2020,Premises Related Expenditure,Waste Site Programmed,Greater Manchester Combined Authority, 650.00 
Virgin Media Business Limited,10/11/2020,"Supplies, Services & Other Expenses",Outsourced Services IT,Greater Manchester Combined Authority, 650.00 
Virgin Media Business Limited,10/11/2020,"Supplies, Services & Other Expenses",Outsourced Services IT,Greater Manchester Combined Authority, 650.00 
Virgin Media Business Limited,19/11/2020,"Supplies, Services & Other Expenses",Outsourced Services IT,Greater Manchester Combined Authority, 650.00 
Virgin Media Business Limited,19/11/2020,"Supplies, Services & Other Expenses",Outsourced Services IT,Greater Manchester Combined Authority, 650.00 
Virgin Media Business Limited,16/12/2020,"Supplies, Services & Other Expenses",Outsourced Services IT,Greater Manchester Combined Authority, 650.00 
Glazerite Windows Limited,06/11/2020,Capital,Estates Capital Contracts,Greater Manchester Combined Authority, 653.17 
The C&M College Network,14/10/2020,"Supplies, Services & Other Expenses",Grant Expenditure,Greater Manchester Combined Authority, 653.68 
NW Fire Control Ltd,19/11/2020,"Supplies, Services & Other Expenses",Outsourced Regional Control,Greater Manchester Combined Authority, 654.65 
Goodyear Dunlop Tyres UK Ltd,04/11/2020,Transport Related Expenditure,Tyres,Greater Manchester Combined Authority, 654.78 
Corona Energy,23/12/2020,Premises Related Expenditure,Gas,Greater Manchester Combined Authority, 655.09 
Corona Energy,23/12/2020,Premises Related Expenditure,Gas,Greater Manchester Combined Authority, 655.09 
GE Robinson & Co Ltd,03/12/2020,Indirect Employee Allowances,Other Training Expenses,Greater Manchester Combined Authority, 655.80 
Berendsen UK Ltd,05/11/2020,"Supplies, Services & Other Expenses",Laundry,Greater Manchester Combined Authority, 656.12 
NPOWER YORKSHIRE LTD,23/12/2020,Premises Related Expenditure,Electricity,Greater Manchester Combined Authority, 656.27 
NPOWER YORKSHIRE LTD,23/12/2020,Premises Related Expenditure,Electricity,Greater Manchester Combined Authority, 656.27 
THOMAS HARDIE COMMERCIALS LTD,13/11/2020,Transport Related Expenditure,Repairs and Maintenance - Transport,Greater Manchester Combined Authority, 657.72 
TFGM,16/10/2020,"Supplies, Services & Other Expenses",Grant Expenditure,Greater Manchester Combined Authority, 658.57 
Cyclescheme Ltd,21/10/2020,Other Balances,Cycle Scheme,Greater Manchester Combined Authority, 660.00 
NPOWER YORKSHIRE LTD,23/12/2020,Premises Related Expenditure,Electricity,Greater Manchester Combined Authority, 664.93 
NPOWER YORKSHIRE LTD,23/12/2020,Premises Related Expenditure,Electricity,Greater Manchester Combined Authority, 664.93 
Corona Energy,23/12/2020,Premises Related Expenditure,Gas,Greater Manchester Combined Authority, 673.84 
Corona Energy,23/12/2020,Premises Related Expenditure,Gas,Greater Manchester Combined Authority, 673.84 
North West Environmental Services,30/12/2020,Premises Related Expenditure,Programmed Repairs & Maintenance,Greater Manchester Combined Authority, 675.00 
NPOWER YORKSHIRE LTD,23/12/2020,Premises Related Expenditure,Electricity,Greater Manchester Combined Authority, 675.39 
NPOWER YORKSHIRE LTD,23/12/2020,Premises Related Expenditure,Electricity,Greater Manchester Combined Authority, 675.39 
Water Plus Limited,04/11/2020,Premises Related Expenditure,Metered Water,Greater Manchester Combined Authority, 676.15 
J Fletcher (Engineers) Ltd,10/11/2020,Premises Related Expenditure,Responsive Repairs & Maintenance,Greater Manchester Combined Authority, 676.35 
Corona Energy,23/12/2020,Premises Related Expenditure,Gas,Greater Manchester Combined Authority, 676.81 
Corona Energy,23/12/2020,Premises Related Expenditure,Gas,Greater Manchester Combined Authority, 676.81 
Pinsent Masons LLP,16/12/2020,"Supplies, Services & Other Expenses",Legal Liabilities,Greater Manchester Combined Authority, 679.00 
Floorbrite Cleaning Contractors Ltd,06/10/2020,Employees Pay,Agency Staff Costs,Greater Manchester Combined Authority, 679.52 
Floorbrite Cleaning Contractors Ltd,06/10/2020,Employees Pay,Agency Staff Costs,Greater Manchester Combined Authority, 679.52 
Floorbrite Cleaning Contractors Ltd,06/10/2020,Employees Pay,Agency Staff Costs,Greater Manchester Combined Authority, 679.52 
Floorbrite Cleaning Contractors Ltd,06/10/2020,Employees Pay,Agency Staff Costs,Greater Manchester Combined Authority, 679.52 
Floorbrite Cleaning Contractors Ltd,07/10/2020,Employees Pay,Agency Staff Costs,Greater Manchester Combined Authority, 679.52 
Floorbrite Cleaning Contractors Ltd,07/10/2020,Employees Pay,Agency Staff Costs,Greater Manchester Combined Authority, 679.52 
Floorbrite Cleaning Contractors Ltd,08/10/2020,Employees Pay,Agency Staff Costs,Greater Manchester Combined Authority, 679.52 
Floorbrite Cleaning Contractors Ltd,09/10/2020,Employees Pay,Agency Staff Costs,Greater Manchester Combined Authority, 679.52 
Floorbrite Cleaning Contractors Ltd,12/10/2020,Employees Pay,Agency Staff Costs,Greater Manchester Combined Authority, 679.52 
Floorbrite Cleaning Contractors Ltd,14/10/2020,Employees Pay,Agency Staff Costs,Greater Manchester Combined Authority, 679.52 
Floorbrite Cleaning Contractors Ltd,14/10/2020,Employees Pay,Agency Staff Costs,Greater Manchester Combined Authority, 679.52 
Floorbrite Cleaning Contractors Ltd,14/10/2020,Employees Pay,Agency Staff Costs,Greater Manchester Combined Authority, 679.52 
Floorbrite Cleaning Contractors Ltd,15/10/2020,Employees Pay,Agency Staff Costs,Greater Manchester Combined Authority, 679.52 
Floorbrite Cleaning Contractors Ltd,16/10/2020,Employees Pay,Agency Staff Costs,Greater Manchester Combined Authority, 679.52 
Floorbrite Cleaning Contractors Ltd,02/11/2020,Employees Pay,Agency Staff Costs,Greater Manchester Combined Authority, 679.52 
Floorbrite Cleaning Contractors Ltd,02/11/2020,Employees Pay,Agency Staff Costs,Greater Manchester Combined Authority, 679.52 
Floorbrite Cleaning Contractors Ltd,02/11/2020,Employees Pay,Agency Staff Costs,Greater Manchester Combined Authority, 679.52 
Floorbrite Cleaning Contractors Ltd,17/11/2020,Employees Pay,Agency Staff Costs,Greater Manchester Combined Authority, 679.52 
Floorbrite Cleaning Contractors Ltd,17/11/2020,Employees Pay,Agency Staff Costs,Greater Manchester Combined Authority, 679.52 
Floorbrite Cleaning Contractors Ltd,17/11/2020,Employees Pay,Agency Staff Costs,Greater Manchester Combined Authority, 679.52 
Floorbrite Cleaning Contractors Ltd,17/11/2020,Employees Pay,Agency Staff Costs,Greater Manchester Combined Authority, 679.52 
Floorbrite Cleaning Contractors Ltd,17/11/2020,Employees Pay,Agency Staff Costs,Greater Manchester Combined Authority, 679.52 
Floorbrite Cleaning Contractors Ltd,17/11/2020,Employees Pay,Agency Staff Costs,Greater Manchester Combined Authority, 679.52 
Floorbrite Cleaning Contractors Ltd,17/11/2020,Employees Pay,Agency Staff Costs,Greater Manchester Combined Authority, 679.52 
Floorbrite Cleaning Contractors Ltd,17/11/2020,Employees Pay,Agency Staff Costs,Greater Manchester Combined Authority, 679.52 
Floorbrite Cleaning Contractors Ltd,26/11/2020,Employees Pay,Agency Staff Costs,Greater Manchester Combined Authority, 679.52 
Floorbrite Cleaning Contractors Ltd,26/11/2020,Employees Pay,Agency Staff Costs,Greater Manchester Combined Authority, 679.52 
Floorbrite Cleaning Contractors Ltd,26/11/2020,Employees Pay,Agency Staff Costs,Greater Manchester Combined Authority, 679.52 
Floorbrite Cleaning Contractors Ltd,30/11/2020,Employees Pay,Agency Staff Costs,Greater Manchester Combined Authority, 679.52 
Floorbrite Cleaning Contractors Ltd,30/11/2020,Employees Pay,Agency Staff Costs,Greater Manchester Combined Authority, 679.52 
Floorbrite Cleaning Contractors Ltd,30/11/2020,Employees Pay,Agency Staff Costs,Greater Manchester Combined Authority, 679.52 
Floorbrite Cleaning Contractors Ltd,30/11/2020,Employees Pay,Agency Staff Costs,Greater Manchester Combined Authority, 679.52 
Floorbrite Cleaning Contractors Ltd,30/11/2020,Employees Pay,Agency Staff Costs,Greater Manchester Combined Authority, 679.52 
Floorbrite Cleaning Contractors Ltd,30/11/2020,Employees Pay,Agency Staff Costs,Greater Manchester Combined Authority, 679.52 
Floorbrite Cleaning Contractors Ltd,30/11/2020,Employees Pay,Agency Staff Costs,Greater Manchester Combined Authority, 679.52 
Floorbrite Cleaning Contractors Ltd,30/11/2020,Employees Pay,Agency Staff Costs,Greater Manchester Combined Authority, 679.52 
Floorbrite Cleaning Contractors Ltd,30/11/2020,Employees Pay,Agency Staff Costs,Greater Manchester Combined Authority, 679.52 
Floorbrite Cleaning Contractors Ltd,07/12/2020,Employees Pay,Agency Staff Costs,Greater Manchester Combined Authority, 679.52 
Floorbrite Cleaning Contractors Ltd,07/12/2020,Employees Pay,Agency Staff Costs,Greater Manchester Combined Authority, 679.52 
Bury Metropolitan Arts Association,10/12/2020,"Supplies, Services & Other Expenses",Room Hire,Greater Manchester Combined Authority, 680.00 
TFGM,16/10/2020,"Supplies, Services & Other Expenses",Grant Expenditure,Greater Manchester Combined Authority, 680.80 
Martek Drones Ltd T/A Coptrz,14/10/2020,Capital,Capital Equipment,Greater Manchester Combined Authority, 686.00 
Arthur J Gallagher,09/10/2020,"Supplies, Services & Other Expenses",Insurance,Greater Manchester Combined Authority, 686.36 
Ford Motor Company Ltd T/A Partsplus,01/12/2020,Transport Related Expenditure,Repairs and Maintenance - Transport,Greater Manchester Combined Authority, 686.85 
THOMAS HARDIE COMMERCIALS LTD,19/11/2020,Transport Related Expenditure,Repairs and Maintenance - Transport,Greater Manchester Combined Authority, 687.07 
Corona Energy,23/12/2020,Premises Related Expenditure,Gas,Greater Manchester Combined Authority, 687.92 
Corona Energy,23/12/2020,Premises Related Expenditure,Gas,Greater Manchester Combined Authority, 687.92 
Water Plus Limited,04/11/2020,Premises Related Expenditure,Metered Water,Greater Manchester Combined Authority, 688.75 
UNITED UTILITIES WATER PLC,17/11/2020,"Supplies, Services & Other Expenses",Hydrants Repairs,Greater Manchester Combined Authority, 689.74 
UNITED UTILITIES WATER PLC,08/12/2020,"Supplies, Services & Other Expenses",Hydrants Repairs,Greater Manchester Combined Authority, 689.74 
UNITED UTILITIES WATER PLC,16/12/2020,"Supplies, Services & Other Expenses",Hydrants Repairs,Greater Manchester Combined Authority, 689.74 
UNITED UTILITIES WATER PLC,16/12/2020,"Supplies, Services & Other Expenses",Hydrants Repairs,Greater Manchester Combined Authority, 689.74 
UNITED UTILITIES WATER PLC,16/12/2020,"Supplies, Services & Other Expenses",Hydrants Repairs,Greater Manchester Combined Authority, 689.74 
UNITED UTILITIES WATER PLC,16/12/2020,"Supplies, Services & Other Expenses",Hydrants Repairs,Greater Manchester Combined Authority, 689.74 
Brian Dent Limited,29/10/2020,Premises Related Expenditure,Waste Site Programmed,Greater Manchester Combined Authority, 690.00 
Brian Dent Limited,21/12/2020,Premises Related Expenditure,Waste Site Programmed,Greater Manchester Combined Authority, 690.00 
Brian Dent Limited,31/12/2020,Premises Related Expenditure,Waste Site Programmed,Greater Manchester Combined Authority, 690.00 
Floorbrite Cleaning Contractors Ltd,06/10/2020,Employees Pay,Agency Staff Costs,Greater Manchester Combined Authority, 693.63 
Floorbrite Cleaning Contractors Ltd,08/10/2020,Employees Pay,Agency Staff Costs,Greater Manchester Combined Authority, 693.63 
Floorbrite Cleaning Contractors Ltd,14/10/2020,Employees Pay,Agency Staff Costs,Greater Manchester Combined Authority, 693.63 
Floorbrite Cleaning Contractors Ltd,26/11/2020,Employees Pay,Agency Staff Costs,Greater Manchester Combined Authority, 693.63 
Floorbrite Cleaning Contractors Ltd,30/11/2020,Employees Pay,Agency Staff Costs,Greater Manchester Combined Authority, 693.63 
Ribble Enviro Ltd,10/12/2020,Premises Related Expenditure,Waste Site Programmed,Greater Manchester Combined Authority, 695.00 
Ribble Enviro Ltd,10/12/2020,Premises Related Expenditure,Waste Site Programmed,Greater Manchester Combined Authority, 695.00 
DXG Media Ltd,12/11/2020,"Supplies, Services & Other Expenses",Stationery,Greater Manchester Combined Authority, 698.00 
Water Plus Limited,04/11/2020,Premises Related Expenditure,Metered Water,Greater Manchester Combined Authority, 698.68 
Water Plus Limited,04/11/2020,Premises Related Expenditure,Metered Water,Greater Manchester Combined Authority, 698.68 
TFGM,24/11/2020,"Supplies, Services & Other Expenses",Traffic Signal Repairs,Greater Manchester Combined Authority, 699.78 
Barlows (UK) Ltd,23/11/2020,Premises Related Expenditure,Programmed Repairs & Maintenance,Greater Manchester Combined Authority, 700.00 
THE WHITE ROOM CONSULTANCY LIMITED,15/12/2020,"Supplies, Services & Other Expenses",Consultancy Fees,Greater Manchester Combined Authority, 700.00 
Floorbrite Cleaning Contractors Ltd,04/12/2020,Employees Pay,Agency Staff Costs,Greater Manchester Combined Authority, 702.39 
Land Use Consultants Limited,10/11/2020,"Supplies, Services & Other Expenses",Consultancy Fees,Greater Manchester Combined Authority, 706.50 
"Ryzac, Inc",04/11/2020,"Supplies, Services & Other Expenses",Computer Software,Greater Manchester Combined Authority, 707.60 
Holmatro UK Ltd,02/11/2020,Transport Related Expenditure,Repairs and Maintenance - Transport,Greater Manchester Combined Authority, 710.10 
Chubb Fire & Security Limited,26/11/2020,Premises Related Expenditure,Programmed Repairs & Maintenance,Greater Manchester Combined Authority, 711.71 
STALYBRIDGE AUTO SALVAGE LTD,14/12/2020,Indirect Employee Allowances,Other Training Expenses,Greater Manchester Combined Authority, 712.00 
STALYBRIDGE AUTO SALVAGE LTD,14/12/2020,Indirect Employee Allowances,Other Training Expenses,Greater Manchester Combined Authority, 712.00 
STALYBRIDGE AUTO SALVAGE LTD,14/12/2020,Indirect Employee Allowances,Other Training Expenses,Greater Manchester Combined Authority, 712.00 
STALYBRIDGE AUTO SALVAGE LTD,17/12/2020,Indirect Employee Allowances,Other Training Expenses,Greater Manchester Combined Authority, 712.00 
STALYBRIDGE AUTO SALVAGE LTD,17/12/2020,Indirect Employee Allowances,Other Training Expenses,Greater Manchester Combined Authority, 712.00 
NPOWER YORKSHIRE LTD,23/12/2020,Premises Related Expenditure,Electricity,Greater Manchester Combined Authority, 715.32 
NPOWER YORKSHIRE LTD,23/12/2020,Premises Related Expenditure,Electricity,Greater Manchester Combined Authority, 715.32 
Water Plus Limited,04/11/2020,Premises Related Expenditure,Metered Water,Greater Manchester Combined Authority, 716.32 
NPOWER YORKSHIRE LTD,23/12/2020,Premises Related Expenditure,Electricity,Greater Manchester Combined Authority, 717.47 
NPOWER YORKSHIRE LTD,23/12/2020,Premises Related Expenditure,Electricity,Greater Manchester Combined Authority, 717.47 
Donna Hinchliffe,07/10/2020,Indirect Employee Allowances,Other Training Expenses,Greater Manchester Combined Authority, 719.88 
DIRECT ACCESS PLATFORMS,16/12/2020,Transport Related Expenditure,Repairs and Maintenance - Transport,Greater Manchester Combined Authority, 722.96 
Corona Energy,23/12/2020,Premises Related Expenditure,Gas,Greater Manchester Combined Authority, 723.63 
Corona Energy,23/12/2020,Premises Related Expenditure,Gas,Greater Manchester Combined Authority, 723.63 
Watts Group Limited,15/12/2020,"Supplies, Services & Other Expenses",Professional Fees,Greater Manchester Combined Authority, 725.00 
NW Fire Control Ltd,19/11/2020,"Supplies, Services & Other Expenses",Outsourced Regional Control,Greater Manchester Combined Authority, 727.50 
DELL COMPUTER CORPORATION LTD,26/10/2020,"Supplies, Services & Other Expenses",Computer Hardware,Greater Manchester Combined Authority, 728.00 
Rochdale Metropolitan Borough Council,23/10/2020,"Supplies, Services & Other Expenses",Grant Expenditure,Greater Manchester Combined Authority, 728.91 
Corona Energy,23/12/2020,Premises Related Expenditure,Gas,Greater Manchester Combined Authority, 729.64 
Corona Energy,23/12/2020,Premises Related Expenditure,Gas,Greater Manchester Combined Authority, 729.64 
BNP Paribas Forti,09/12/2020,Premises Related Expenditure,Service Charge,Greater Manchester Combined Authority, 735.09 
TFGM,02/12/2020,Capital,Capital Grant Expenditure,Greater Manchester Combined Authority, 739.24 
Floorbrite Cleaning Contractors Ltd,15/10/2020,Employees Pay,Agency Staff Costs,Greater Manchester Combined Authority, 739.61 
Floorbrite Cleaning Contractors Ltd,17/11/2020,Employees Pay,Agency Staff Costs,Greater Manchester Combined Authority, 739.61 
Floorbrite Cleaning Contractors Ltd,30/11/2020,Employees Pay,Agency Staff Costs,Greater Manchester Combined Authority, 739.61 
Datanet Communications Solutions Ltd,20/11/2020,"Supplies, Services & Other Expenses",Other Communications Equipment,Greater Manchester Combined Authority, 740.00 
Floorbrite Cleaning Contractors Ltd,26/11/2020,Employees Pay,Agency Staff Costs,Greater Manchester Combined Authority, 740.72 
Floorbrite Cleaning Contractors Ltd,30/11/2020,Employees Pay,Agency Staff Costs,Greater Manchester Combined Authority, 740.72 
BNP Paribas Forti,07/12/2020,Premises Related Expenditure,Service Charge,Greater Manchester Combined Authority, 746.32 
ASE (Eye Care Plans) Ltd,07/10/2020,"Supplies, Services & Other Expenses",Operational Equipment Non-Consumables,Greater Manchester Combined Authority, 747.00 
Artal Fund Monitoring,21/12/2020,"Supplies, Services & Other Expenses",Professional Fees,Greater Manchester Combined Authority, 750.00 
Bethell Construction Limited,25/11/2020,"Supplies, Services & Other Expenses",Hydrants Repairs,Greater Manchester Combined Authority, 750.00 
Legacy Telecom Ltd,23/11/2020,"Supplies, Services & Other Expenses",Computer Hardware,Greater Manchester Combined Authority, 750.00 
Myerscough College,17/12/2020,Indirect Employee Allowances,Training Course Fees,Greater Manchester Combined Authority, 750.00 
Myerscough College,17/12/2020,Indirect Employee Allowances,Training Course Fees,Greater Manchester Combined Authority, 750.00 
Myerscough College,17/12/2020,Indirect Employee Allowances,Training Course Fees,Greater Manchester Combined Authority, 750.00 
Myerscough College,17/12/2020,Indirect Employee Allowances,Training Course Fees,Greater Manchester Combined Authority, 750.00 
Myerscough College,17/12/2020,Indirect Employee Allowances,Training Course Fees,Greater Manchester Combined Authority, 750.00 
Neil Heys,09/12/2020,Indirect Employee Allowances,Training Course Fees,Greater Manchester Combined Authority, 750.00 
Shoosmiths LLP,11/12/2020,"Supplies, Services & Other Expenses",Legal Liabilities,Greater Manchester Combined Authority, 750.00 
The Knowledge Academy Ltd,17/12/2020,Indirect Employee Allowances,Training Course Fees,Greater Manchester Combined Authority, 750.00 
Watts Group Limited,13/11/2020,"Supplies, Services & Other Expenses",Professional Fees,Greater Manchester Combined Authority, 750.00 
Watts Group Limited,10/12/2020,"Supplies, Services & Other Expenses",Professional Fees,Greater Manchester Combined Authority, 750.00 
DELL COMPUTER CORPORATION LTD,25/11/2020,"Supplies, Services & Other Expenses",Computer Hardware,Greater Manchester Combined Authority, 751.00 
NPOWER YORKSHIRE LTD,23/12/2020,Premises Related Expenditure,Electricity,Greater Manchester Combined Authority, 751.51 
NPOWER YORKSHIRE LTD,23/12/2020,Premises Related Expenditure,Electricity,Greater Manchester Combined Authority, 751.51 
Mitchell Powersystems,07/10/2020,Transport Related Expenditure,Repairs and Maintenance - Transport,Greater Manchester Combined Authority, 753.15 
Bid Group Ltd,16/12/2020,Premises Related Expenditure,Responsive Repairs & Maintenance,Greater Manchester Combined Authority, 760.00 
Goodyear Dunlop Tyres UK Ltd,02/12/2020,Transport Related Expenditure,Tyres,Greater Manchester Combined Authority, 763.35 
Bradshaw Sheet Metal Ltd,06/10/2020,Premises Related Expenditure,Waste Site Programmed,Greater Manchester Combined Authority, 765.00 
TFGM,16/12/2020,"Supplies, Services & Other Expenses",Traffic Signal Repairs,Greater Manchester Combined Authority, 770.04 
TFGM,18/11/2020,Capital,Capital Grant Expenditure,Greater Manchester Combined Authority, 771.28 
Paul H. Brookes Publishing Co.,12/11/2020,"Supplies, Services & Other Expenses",Professional Fees,Greater Manchester Combined Authority, 774.12 
Veolia ES (UK) Ltd,21/10/2020,Premises Related Expenditure,Responsive Repairs & Maintenance,Greater Manchester Combined Authority, 774.50 
Rider Levett Bucknall UK Limited,01/10/2020,"Supplies, Services & Other Expenses",Professional Fees,Greater Manchester Combined Authority, 775.00 
Rider Levett Bucknall UK Limited,03/11/2020,"Supplies, Services & Other Expenses",Professional Fees,Greater Manchester Combined Authority, 775.00 
Rider Levett Bucknall UK Limited,02/12/2020,"Supplies, Services & Other Expenses",Professional Fees,Greater Manchester Combined Authority, 775.00 
Watts Group Limited,15/12/2020,"Supplies, Services & Other Expenses",Professional Fees,Greater Manchester Combined Authority, 775.00 
Floorbrite Cleaning Contractors Ltd,09/10/2020,Employees Pay,Agency Staff Costs,Greater Manchester Combined Authority, 776.96 
Floorbrite Cleaning Contractors Ltd,26/11/2020,Employees Pay,Agency Staff Costs,Greater Manchester Combined Authority, 776.96 
Floorbrite Cleaning Contractors Ltd,30/11/2020,Employees Pay,Agency Staff Costs,Greater Manchester Combined Authority, 776.96 
Bolton College,13/11/2020,"Supplies, Services & Other Expenses",Grant Expenditure,Greater Manchester Combined Authority, 777.69 
Genesis Fire Safety UK Ltd,16/11/2020,"Supplies, Services & Other Expenses",Operational Equipment Non-Consumables,Greater Manchester Combined Authority, 778.05 
System Group Ltd,17/12/2020,"Supplies, Services & Other Expenses",Commissioned Services,Greater Manchester Combined Authority, 779.54 
Berendsen UK Ltd,06/10/2020,"Supplies, Services & Other Expenses",Laundry,Greater Manchester Combined Authority, 779.62 
Healthwork,26/11/2020,Indirect Employee Allowances,Medical Fees,Greater Manchester Combined Authority, 780.00 
NPOWER YORKSHIRE LTD,23/12/2020,Premises Related Expenditure,Electricity,Greater Manchester Combined Authority, 781.93 
NPOWER YORKSHIRE LTD,23/12/2020,Premises Related Expenditure,Electricity,Greater Manchester Combined Authority, 781.93 
Paul H. Brookes Publishing Co.,12/11/2020,"Supplies, Services & Other Expenses",Professional Fees,Greater Manchester Combined Authority, 782.94 
DH Welton & Co Ltd,16/11/2020,Premises Related Expenditure,Programmed Repairs & Maintenance,Greater Manchester Combined Authority, 783.00 
THOMAS HARDIE COMMERCIALS LTD,17/11/2020,Transport Related Expenditure,Repairs and Maintenance - Transport,Greater Manchester Combined Authority, 786.69 
NPOWER YORKSHIRE LTD,23/12/2020,Premises Related Expenditure,Electricity,Greater Manchester Combined Authority, 789.97 
NPOWER YORKSHIRE LTD,23/12/2020,Premises Related Expenditure,Electricity,Greater Manchester Combined Authority, 789.97 
MOSS ELECTRICAL (NW),16/12/2020,Premises Related Expenditure,Programmed Repairs & Maintenance,Greater Manchester Combined Authority, 790.00 
THOMAS HARDIE COMMERCIALS LTD,09/11/2020,Transport Related Expenditure,Repairs and Maintenance - Transport,Greater Manchester Combined Authority, 794.41 
Equality and Diversity UK Ltd,11/11/2020,Indirect Employee Allowances,Training Course Fees,Greater Manchester Combined Authority, 795.00 
Equality and Diversity UK Ltd,30/11/2020,Indirect Employee Allowances,Training Course Fees,Greater Manchester Combined Authority, 795.00 
Equality and Diversity UK Ltd,09/12/2020,Indirect Employee Allowances,Training Course Fees,Greater Manchester Combined Authority, 795.00 
Equality and Diversity UK Ltd,29/12/2020,Indirect Employee Allowances,Training Course Fees,Greater Manchester Combined Authority, 795.00 
Newsquest Media Group,20/10/2020,"Supplies, Services & Other Expenses",Advertising,Greater Manchester Combined Authority, 795.36 
THE CHARTERED INSTITUTE OF MARKETING,05/10/2020,"Supplies, Services & Other Expenses",Room Hire,Greater Manchester Combined Authority, 798.00 
THE CHARTERED INSTITUTE OF MARKETING,20/11/2020,"Supplies, Services & Other Expenses",Room Hire,Greater Manchester Combined Authority, 798.00 
Addleshaw Goddard LLP,13/10/2020,"Supplies, Services & Other Expenses",Legal Liabilities,Greater Manchester Combined Authority, 800.00 
LGBT   Foundation,22/10/2020,Indirect Employee Allowances,Training Course Fees,Greater Manchester Combined Authority, 800.00 
Pathways Associates CIC,27/11/2020,"Supplies, Services & Other Expenses",Consultancy Fees,Greater Manchester Combined Authority, 800.00 
Rider Levett Bucknall UK Limited,08/10/2020,"Supplies, Services & Other Expenses",Professional Fees,Greater Manchester Combined Authority, 800.00 
Siemens Financial Services Limited,16/10/2020,"Supplies, Services & Other Expenses",Postage,Greater Manchester Combined Authority, 800.00 
Corona Energy,23/12/2020,Premises Related Expenditure,Gas,Greater Manchester Combined Authority, 801.51 
Corona Energy,23/12/2020,Premises Related Expenditure,Gas,Greater Manchester Combined Authority, 801.51 
Quadrant Security Group Limited,02/11/2020,Premises Related Expenditure,Responsive Repairs & Maintenance,Greater Manchester Combined Authority, 802.60 
NPOWER YORKSHIRE LTD,23/12/2020,Premises Related Expenditure,Electricity,Greater Manchester Combined Authority, 807.26 
NPOWER YORKSHIRE LTD,23/12/2020,Premises Related Expenditure,Electricity,Greater Manchester Combined Authority, 807.26 
I C Skills Ltd,17/12/2020,Indirect Employee Allowances,Other Training Expenses,Greater Manchester Combined Authority, 810.00 
Floorbrite Cleaning Contractors Ltd,07/10/2020,Employees Pay,Agency Staff Costs,Greater Manchester Combined Authority, 813.53 
Floorbrite Cleaning Contractors Ltd,08/10/2020,Employees Pay,Agency Staff Costs,Greater Manchester Combined Authority, 813.53 
Floorbrite Cleaning Contractors Ltd,08/10/2020,Employees Pay,Agency Staff Costs,Greater Manchester Combined Authority, 813.53 
Floorbrite Cleaning Contractors Ltd,12/10/2020,Employees Pay,Agency Staff Costs,Greater Manchester Combined Authority, 813.53 
Floorbrite Cleaning Contractors Ltd,14/10/2020,Employees Pay,Agency Staff Costs,Greater Manchester Combined Authority, 813.53 
Floorbrite Cleaning Contractors Ltd,17/11/2020,Employees Pay,Agency Staff Costs,Greater Manchester Combined Authority, 813.53 
Floorbrite Cleaning Contractors Ltd,26/11/2020,Employees Pay,Agency Staff Costs,Greater Manchester Combined Authority, 813.53 
Floorbrite Cleaning Contractors Ltd,26/11/2020,Employees Pay,Agency Staff Costs,Greater Manchester Combined Authority, 813.53 
Floorbrite Cleaning Contractors Ltd,30/11/2020,Employees Pay,Agency Staff Costs,Greater Manchester Combined Authority, 813.53 
Floorbrite Cleaning Contractors Ltd,30/11/2020,Employees Pay,Agency Staff Costs,Greater Manchester Combined Authority, 813.53 
Floorbrite Cleaning Contractors Ltd,30/11/2020,Employees Pay,Agency Staff Costs,Greater Manchester Combined Authority, 813.53 
N.G. Johnson (Northern ) Limited,02/12/2020,Indirect Employee Allowances,Other Training Expenses,Greater Manchester Combined Authority, 815.00 
DUCTBUSTERS LTD,23/11/2020,Premises Related Expenditure,Programmed Repairs & Maintenance,Greater Manchester Combined Authority, 818.00 
TFGM,09/11/2020,Capital,Capital Grant Expenditure,Greater Manchester Combined Authority, 818.42 
Workers' Educational Association,16/10/2020,"Supplies, Services & Other Expenses",Commissioned Services,Greater Manchester Combined Authority, 819.79 
The Wild Pheasant Hotel & Spa,29/12/2020,"Supplies, Services & Other Expenses",Subsistence,Greater Manchester Combined Authority, 823.14 
CAR 2 COMMERCIAL LIMITED,30/11/2020,Transport Related Expenditure,Repairs and Maintenance - Transport,Greater Manchester Combined Authority, 825.00 
Cornerstone Design & Marketing Ltd,08/10/2020,"Supplies, Services & Other Expenses",Digital,Greater Manchester Combined Authority, 825.00 
Cornerstone Design & Marketing Ltd,03/11/2020,"Supplies, Services & Other Expenses",Digital,Greater Manchester Combined Authority, 825.00 
Cornerstone Design & Marketing Ltd,12/11/2020,"Supplies, Services & Other Expenses",Digital,Greater Manchester Combined Authority, 825.00 
Cornerstone Design & Marketing Ltd,12/11/2020,"Supplies, Services & Other Expenses",Digital,Greater Manchester Combined Authority, 825.00 
Cornerstone Design & Marketing Ltd,04/12/2020,"Supplies, Services & Other Expenses",Digital,Greater Manchester Combined Authority, 825.00 
NPOWER YORKSHIRE LTD,23/12/2020,Premises Related Expenditure,Electricity,Greater Manchester Combined Authority, 829.11 
NPOWER YORKSHIRE LTD,23/12/2020,Premises Related Expenditure,Electricity,Greater Manchester Combined Authority, 829.11 
BURY COUNCIL,03/11/2020,Employees Pay,Agency Staff Costs,Greater Manchester Combined Authority, 830.00 
Castlefield Recruitment Limited,31/12/2020,Employees Pay,Agency Staff Costs,Greater Manchester Combined Authority, 830.00 
DRAEGER LTD,23/12/2020,"Supplies, Services & Other Expenses",Operational Equipment Non-Consumables,Greater Manchester Combined Authority, 831.66 
Paddy Wagon Transport,10/11/2020,"Supplies, Services & Other Expenses",Postage,Greater Manchester Combined Authority, 839.00 
Healthwork,23/12/2020,Indirect Employee Allowances,Medical Fees,Greater Manchester Combined Authority, 840.00 
Corona Energy,23/12/2020,Premises Related Expenditure,Gas,Greater Manchester Combined Authority, 843.33 
Corona Energy,23/12/2020,Premises Related Expenditure,Gas,Greater Manchester Combined Authority, 843.33 
Water Plus Limited,04/11/2020,Premises Related Expenditure,Metered Water,Greater Manchester Combined Authority, 844.63 
Floorbrite Cleaning Contractors Ltd,14/10/2020,Employees Pay,Agency Staff Costs,Greater Manchester Combined Authority, 844.90 
Floorbrite Cleaning Contractors Ltd,14/10/2020,Employees Pay,Agency Staff Costs,Greater Manchester Combined Authority, 844.90 
Floorbrite Cleaning Contractors Ltd,14/10/2020,Employees Pay,Agency Staff Costs,Greater Manchester Combined Authority, 844.90 
Floorbrite Cleaning Contractors Ltd,26/11/2020,Employees Pay,Agency Staff Costs,Greater Manchester Combined Authority, 844.90 
Floorbrite Cleaning Contractors Ltd,30/11/2020,Employees Pay,Agency Staff Costs,Greater Manchester Combined Authority, 844.90 
Corona Energy,23/12/2020,Premises Related Expenditure,Gas,Greater Manchester Combined Authority, 845.93 
Corona Energy,23/12/2020,Premises Related Expenditure,Gas,Greater Manchester Combined Authority, 845.93 
Watts Group Limited,08/10/2020,"Supplies, Services & Other Expenses",Professional Fees,Greater Manchester Combined Authority, 850.00 
Watts Group Limited,26/10/2020,"Supplies, Services & Other Expenses",Professional Fees,Greater Manchester Combined Authority, 850.00 
Barlows (UK) Ltd,01/12/2020,Premises Related Expenditure,Responsive Repairs & Maintenance,Greater Manchester Combined Authority, 850.40 
TMF Administration Services Limited,11/12/2020,"Supplies, Services & Other Expenses",Professional Fees,Greater Manchester Combined Authority, 861.10 
NPOWER YORKSHIRE LTD,23/12/2020,Premises Related Expenditure,Electricity,Greater Manchester Combined Authority, 862.76 
NPOWER YORKSHIRE LTD,23/12/2020,Premises Related Expenditure,Electricity,Greater Manchester Combined Authority, 862.76 
Berendsen UK Ltd,06/10/2020,"Supplies, Services & Other Expenses",Laundry,Greater Manchester Combined Authority, 863.04 
NPOWER YORKSHIRE LTD,23/12/2020,Premises Related Expenditure,Electricity,Greater Manchester Combined Authority, 866.61 
NPOWER YORKSHIRE LTD,23/12/2020,Premises Related Expenditure,Electricity,Greater Manchester Combined Authority, 866.61 
Water Plus Limited,04/11/2020,Premises Related Expenditure,Metered Water,Greater Manchester Combined Authority, 868.05 
HBL ASSOCIATES,21/12/2020,Premises Related Expenditure,Responsive Repairs & Maintenance,Greater Manchester Combined Authority, 870.00 
Corona Energy,23/12/2020,Premises Related Expenditure,Gas,Greater Manchester Combined Authority, 871.08 
Corona Energy,23/12/2020,Premises Related Expenditure,Gas,Greater Manchester Combined Authority, 871.08 
Central Power Services,12/11/2020,Premises Related Expenditure,Responsive Repairs & Maintenance,Greater Manchester Combined Authority, 873.12 
NPOWER YORKSHIRE LTD,23/12/2020,Premises Related Expenditure,Electricity,Greater Manchester Combined Authority, 873.66 
NPOWER YORKSHIRE LTD,23/12/2020,Premises Related Expenditure,Electricity,Greater Manchester Combined Authority, 873.66 
GUARDIAN TECHNICAL MAINTENANCE LTD,23/11/2020,Premises Related Expenditure,Programmed Repairs & Maintenance,Greater Manchester Combined Authority, 875.00 
Legacy Telecom Ltd,02/11/2020,"Supplies, Services & Other Expenses",Other Communications Equipment,Greater Manchester Combined Authority, 875.00 
Rider Levett Bucknall UK Limited,08/10/2020,"Supplies, Services & Other Expenses",Professional Fees,Greater Manchester Combined Authority, 875.00 
Rider Levett Bucknall UK Limited,03/11/2020,"Supplies, Services & Other Expenses",Professional Fees,Greater Manchester Combined Authority, 875.00 
Corona Energy,23/12/2020,Premises Related Expenditure,Gas,Greater Manchester Combined Authority, 875.52 
Corona Energy,23/12/2020,Premises Related Expenditure,Gas,Greater Manchester Combined Authority, 875.52 
REDACTED PERSONAL DATA,07/12/2020,"Supplies, Services & Other Expenses",Legal Liabilities,Greater Manchester Combined Authority, 879.16 
Corona Energy,23/12/2020,Premises Related Expenditure,Gas,Greater Manchester Combined Authority, 885.24 
Corona Energy,23/12/2020,Premises Related Expenditure,Gas,Greater Manchester Combined Authority, 885.24 
Stockport MBC,26/10/2020,Premises Related Expenditure,Rates,Greater Manchester Combined Authority, 887.00 
Stockport MBC,25/11/2020,Premises Related Expenditure,Rates,Greater Manchester Combined Authority, 887.00 
Stockport MBC,29/12/2020,Premises Related Expenditure,Rates,Greater Manchester Combined Authority, 887.00 
STALYBRIDGE AUTO SALVAGE LTD,14/12/2020,Indirect Employee Allowances,Other Training Expenses,Greater Manchester Combined Authority, 890.00 
Tudor Contract Cleaners Ltd,10/11/2020,Premises Related Expenditure,Responsive Repairs & Maintenance,Greater Manchester Combined Authority, 890.00 
TFGM,04/12/2020,Capital,Capital Grant Expenditure,Greater Manchester Combined Authority, 891.06 
Newsquest Media Group,20/10/2020,"Supplies, Services & Other Expenses",Advertising,Greater Manchester Combined Authority, 892.52 
ATLAS COPCO LTD,12/11/2020,Transport Related Expenditure,Repairs and Maintenance - Transport,Greater Manchester Combined Authority, 893.35 
Clan Tools & Plant Ltd,29/10/2020,Transport Related Expenditure,Repairs and Maintenance - Transport,Greater Manchester Combined Authority, 894.00 
T S I FLOWMETERS LTD,09/11/2020,Transport Related Expenditure,Repairs and Maintenance - Transport,Greater Manchester Combined Authority, 894.71 
Maximus UK Services Ltd,15/10/2020,"Supplies, Services & Other Expenses",Commissioned Services,Greater Manchester Combined Authority, 897.63 
Newground CIC,23/11/2020,"Supplies, Services & Other Expenses",Subscriptions,Greater Manchester Combined Authority, 899.00 
NPOWER YORKSHIRE LTD,23/12/2020,Premises Related Expenditure,Electricity,Greater Manchester Combined Authority, 899.21 
NPOWER YORKSHIRE LTD,23/12/2020,Premises Related Expenditure,Electricity,Greater Manchester Combined Authority, 899.21 
K2L Marketing,11/11/2020,"Supplies, Services & Other Expenses",Digital,Greater Manchester Combined Authority, 900.00 
GE Robinson & Co Ltd,23/10/2020,Indirect Employee Allowances,Other Training Expenses,Greater Manchester Combined Authority, 905.28 
Newsquest Media Group,20/10/2020,"Supplies, Services & Other Expenses",Advertising,Greater Manchester Combined Authority, 907.64 
NPOWER YORKSHIRE LTD,23/12/2020,Premises Related Expenditure,Electricity,Greater Manchester Combined Authority, 912.81 
NPOWER YORKSHIRE LTD,23/12/2020,Premises Related Expenditure,Electricity,Greater Manchester Combined Authority, 912.81 
Goodyear Dunlop Tyres UK Ltd,09/10/2020,Transport Related Expenditure,Tyres,Greater Manchester Combined Authority, 913.80 
ARCO LIMITED,17/11/2020,Indirect Employee Allowances,Other Training Expenses,Greater Manchester Combined Authority, 918.14 
GE Robinson & Co Ltd,26/11/2020,Indirect Employee Allowances,Other Training Expenses,Greater Manchester Combined Authority, 923.32 
GE Robinson & Co Ltd,30/11/2020,Indirect Employee Allowances,Other Training Expenses,Greater Manchester Combined Authority, 923.32 
UK & Continental Transmissions,20/11/2020,Transport Related Expenditure,Repairs and Maintenance - Transport,Greater Manchester Combined Authority, 925.00 
"Department for Continuing Education, University of Oxford",18/11/2020,Indirect Employee Allowances,IT Training,Greater Manchester Combined Authority, 935.00 
Goodyear Dunlop Tyres UK Ltd,04/11/2020,Transport Related Expenditure,Tyres,Greater Manchester Combined Authority, 940.35 
Construction LMS Training ltd,09/10/2020,Indirect Employee Allowances,Other Training Expenses,Greater Manchester Combined Authority, 950.00 
K LAMB ASSOCIATES LTD,14/12/2020,Indirect Employee Allowances,Training Course Fees,Greater Manchester Combined Authority, 950.00 
Bolton College,14/10/2020,"Supplies, Services & Other Expenses",Grant Expenditure,Greater Manchester Combined Authority, 952.34 
Greater Manchester Police,30/11/2020,"Supplies, Services & Other Expenses",Professional Fees,Greater Manchester Combined Authority, 952.38 
Brooke Edgley Specialist Technical Services Ltd,16/11/2020,Premises Related Expenditure,Programmed Repairs & Maintenance,Greater Manchester Combined Authority, 957.00 
Salford City Council,29/10/2020,"Supplies, Services & Other Expenses",Professional Fees,Greater Manchester Combined Authority, 958.33 
Salford City Council,10/12/2020,"Supplies, Services & Other Expenses",Professional Fees,Greater Manchester Combined Authority, 958.33 
Salford City Council,21/12/2020,"Supplies, Services & Other Expenses",Professional Fees,Greater Manchester Combined Authority, 958.33 
This is LDA,01/10/2020,"Supplies, Services & Other Expenses",Administration Costs,Greater Manchester Combined Authority, 960.00 
Fairview Hotels (Manchester) Limited T/A Novotel Manchester West,29/10/2020,"Supplies, Services & Other Expenses",Subsistence,Greater Manchester Combined Authority, 963.21 
Northern Commercials (Mirfield) Ltd,13/10/2020,Transport Related Expenditure,Repairs and Maintenance - Transport,Greater Manchester Combined Authority, 964.88 
UNITED UTILITIES WATER PLC,11/12/2020,"Supplies, Services & Other Expenses",Hydrants Repairs,Greater Manchester Combined Authority, 966.79 
NPOWER YORKSHIRE LTD,23/12/2020,Premises Related Expenditure,Electricity,Greater Manchester Combined Authority, 972.12 
NPOWER YORKSHIRE LTD,23/12/2020,Premises Related Expenditure,Electricity,Greater Manchester Combined Authority, 972.12 
DH Welton & Co Ltd,23/11/2020,Premises Related Expenditure,Responsive Repairs & Maintenance,Greater Manchester Combined Authority, 975.00 
RESPIREX INTERNATIONAL LTD,22/12/2020,"Supplies, Services & Other Expenses",Operational Equipment Non-Consumables,Greater Manchester Combined Authority, 975.00 
United Flags And Flagstaffs Ltd,06/10/2020,Premises Related Expenditure,Responsive Repairs & Maintenance,Greater Manchester Combined Authority, 980.00 
BITO Storage Systems Limited,09/10/2020,"Supplies, Services & Other Expenses",Operational Equipment Non-Consumables,Greater Manchester Combined Authority, 982.50 
Newsquest Media Group,20/10/2020,"Supplies, Services & Other Expenses",Advertising,Greater Manchester Combined Authority, 986.96 
PG BELL ELECTRICAL CONTRACTORS LTD,02/11/2020,Premises Related Expenditure,Responsive Repairs & Maintenance,Greater Manchester Combined Authority, 990.00 
NPOWER YORKSHIRE LTD,23/12/2020,Premises Related Expenditure,Electricity,Greater Manchester Combined Authority, 990.42 
NPOWER YORKSHIRE LTD,23/12/2020,Premises Related Expenditure,Electricity,Greater Manchester Combined Authority, 990.42 
TFGM,20/11/2020,Capital,Capital Grant Expenditure,Greater Manchester Combined Authority, 991.64 
Bid Group Ltd,02/11/2020,Premises Related Expenditure,Responsive Repairs & Maintenance,Greater Manchester Combined Authority, 992.00 
Clan Tools & Plant Ltd,12/11/2020,Transport Related Expenditure,Repairs and Maintenance - Transport,Greater Manchester Combined Authority, 993.00 
Clan Tools & Plant Ltd,30/11/2020,Transport Related Expenditure,Repairs and Maintenance - Transport,Greater Manchester Combined Authority, 993.00 
Clan Tools & Plant Ltd,14/12/2020,Transport Related Expenditure,Repairs and Maintenance - Transport,Greater Manchester Combined Authority, 993.00 
HVB Flooring Services Ltd,20/11/2020,Premises Related Expenditure,Responsive Repairs & Maintenance,Greater Manchester Combined Authority, 995.00 
BRAKE BROS FOOD SERVICE LTD,06/10/2020,"Supplies, Services & Other Expenses",Food,Greater Manchester Combined Authority, 998.08 
BCI FORUM LIMITED,13/10/2020,"Supplies, Services & Other Expenses",Business Continuity,Greater Manchester Combined Authority, 999.00 
Anna Horton,18/11/2020,"Supplies, Services & Other Expenses",Professional Fees,Greater Manchester Combined Authority," 1,000.00 "
Antonia Beck,16/10/2020,"Supplies, Services & Other Expenses",Professional Fees,Greater Manchester Combined Authority," 1,000.00 "
Arts for Recovery in the Community,17/12/2020,"Supplies, Services & Other Expenses",Professional Fees,Greater Manchester Combined Authority," 1,000.00 "
Association Of Police And Crime Commissioners,21/12/2020,"Supplies, Services & Other Expenses",Subscriptions,Greater Manchester Combined Authority," 1,000.00 "
Breathe c/o Alice Woods,29/10/2020,"Supplies, Services & Other Expenses",Professional Fees,Greater Manchester Combined Authority," 1,000.00 "
COMPACT GROUNDS MAINTENANCE LD,05/10/2020,Premises Related Expenditure,Waste Site Programmed,Greater Manchester Combined Authority," 1,000.00 "
Company Watch Limited,12/11/2020,"Supplies, Services & Other Expenses",Subscriptions,Greater Manchester Combined Authority," 1,000.00 "
Energy Gain UK Limited,16/11/2020,Premises Related Expenditure,Waste Site Programmed,Greater Manchester Combined Authority," 1,000.00 "
Energy Gain UK Limited,18/11/2020,Premises Related Expenditure,Waste Site Programmed,Greater Manchester Combined Authority," 1,000.00 "
Headstock Festival Ltd,18/12/2020,"Supplies, Services & Other Expenses",Events,Greater Manchester Combined Authority," 1,000.00 "
Healthwork,27/11/2020,Indirect Employee Allowances,Medical Fees,Greater Manchester Combined Authority," 1,000.00 "
K2L Marketing,26/11/2020,"Supplies, Services & Other Expenses",Communications,Greater Manchester Combined Authority," 1,000.00 "
Manchester Pride Ltd,17/11/2020,"Supplies, Services & Other Expenses",Professional Fees,Greater Manchester Combined Authority," 1,000.00 "
Networking Women In The Fire Service,07/10/2020,"Supplies, Services & Other Expenses",Subscriptions,Greater Manchester Combined Authority," 1,000.00 "
Rose Sergent,26/10/2020,"Supplies, Services & Other Expenses",Professional Fees,Greater Manchester Combined Authority," 1,000.00 "
Savills (UK) Limited,23/12/2020,"Supplies, Services & Other Expenses",Professional Fees,Greater Manchester Combined Authority," 1,000.00 "
Tamzin Forster,18/11/2020,"Supplies, Services & Other Expenses",Professional Fees,Greater Manchester Combined Authority," 1,000.00 "
REDACTED PERSONAL DATA,22/10/2020,"Supplies, Services & Other Expenses",Professional Fees,Greater Manchester Combined Authority," 1,000.00 "
TFGM,24/11/2020,"Supplies, Services & Other Expenses",Traffic Signal Repairs,Greater Manchester Combined Authority," 1,000.42 "
Breedon Southern Ltd,20/10/2020,Indirect Employee Allowances,Other Training Expenses,Greater Manchester Combined Authority," 1,002.50 "
ASE (Eye Care Plans) Ltd,04/11/2020,"Supplies, Services & Other Expenses",Operational Equipment Non-Consumables,Greater Manchester Combined Authority," 1,004.00 "
Cornerstone Design & Marketing Ltd,09/12/2020,"Supplies, Services & Other Expenses",Consultancy Fees,Greater Manchester Combined Authority," 1,005.00 "
TFGM,22/10/2020,"Supplies, Services & Other Expenses",Traffic Signal Repairs,Greater Manchester Combined Authority," 1,007.98 "
Manchester Rape Crisis,10/11/2020,"Supplies, Services & Other Expenses",Grant Expenditure,Greater Manchester Combined Authority," 1,008.50 "
11KBW Limited Holding Account,06/11/2020,"Supplies, Services & Other Expenses",Professional Fees,Greater Manchester Combined Authority," 1,010.00 "
Floorbrite Cleaning Contractors Ltd,26/11/2020,Employees Pay,Agency Staff Costs,Greater Manchester Combined Authority," 1,017.27 "
Floorbrite Cleaning Contractors Ltd,30/11/2020,Employees Pay,Agency Staff Costs,Greater Manchester Combined Authority," 1,017.27 "
MIDLANDHR,01/12/2020,"Supplies, Services & Other Expenses",Systems Development,Greater Manchester Combined Authority," 1,018.98 "
Corona Energy,23/12/2020,Premises Related Expenditure,Gas,Greater Manchester Combined Authority," 1,019.01 "
Corona Energy,23/12/2020,Premises Related Expenditure,Gas,Greater Manchester Combined Authority," 1,019.01 "
Corona Energy,23/12/2020,Premises Related Expenditure,Gas,Greater Manchester Combined Authority," 1,022.89 "
Corona Energy,23/12/2020,Premises Related Expenditure,Gas,Greater Manchester Combined Authority," 1,022.89 "
Rochdale Metropolitan Borough Council,19/10/2020,Premises Related Expenditure,Rates,Greater Manchester Combined Authority," 1,023.00 "
Rochdale Metropolitan Borough Council,19/11/2020,Premises Related Expenditure,Rates,Greater Manchester Combined Authority," 1,023.00 "
Rochdale Metropolitan Borough Council,21/12/2020,Premises Related Expenditure,Rates,Greater Manchester Combined Authority," 1,023.00 "
Excel Engine Services Ltd,02/11/2020,Transport Related Expenditure,Repairs and Maintenance - Transport,Greater Manchester Combined Authority," 1,036.00 "
Water Plus Limited,04/11/2020,Premises Related Expenditure,Metered Water,Greater Manchester Combined Authority," 1,040.19 "
Bury Metropolitan Arts Association,10/12/2020,"Supplies, Services & Other Expenses",Room Hire,Greater Manchester Combined Authority," 1,047.50 "
TFGM,24/11/2020,Capital,Traffic Signals,Greater Manchester Combined Authority," 1,050.50 "
Floorbrite Cleaning Contractors Ltd,17/11/2020,Employees Pay,Agency Staff Costs,Greater Manchester Combined Authority," 1,054.91 "
Floorbrite Cleaning Contractors Ltd,30/11/2020,Employees Pay,Agency Staff Costs,Greater Manchester Combined Authority," 1,054.91 "
Motivair Compressors Ltd,05/10/2020,"Supplies, Services & Other Expenses",Operational Equipment Non-Consumables,Greater Manchester Combined Authority," 1,058.37 "
Excel Engine Services Ltd,22/12/2020,Transport Related Expenditure,Repairs and Maintenance - Transport,Greater Manchester Combined Authority," 1,060.00 "
Lancashire Outdoor Activities Initiative (The Anderton Centre),05/11/2020,Indirect Employee Allowances,Training Course Fees,Greater Manchester Combined Authority," 1,060.00 "
Lancashire Outdoor Activities Initiative (The Anderton Centre),07/12/2020,Indirect Employee Allowances,Training Course Fees,Greater Manchester Combined Authority," 1,060.00 "
Lancashire Outdoor Activities Initiative (The Anderton Centre),07/12/2020,Indirect Employee Allowances,Training Course Fees,Greater Manchester Combined Authority," 1,060.00 "
UNITED UTILITIES WATER PLC,17/11/2020,"Supplies, Services & Other Expenses",Hydrants Repairs,Greater Manchester Combined Authority," 1,063.47 "
UNITED UTILITIES WATER PLC,17/11/2020,"Supplies, Services & Other Expenses",Hydrants Repairs,Greater Manchester Combined Authority," 1,063.47 "
UNITED UTILITIES WATER PLC,08/12/2020,"Supplies, Services & Other Expenses",Hydrants Repairs,Greater Manchester Combined Authority," 1,063.47 "
THOMAS HARDIE COMMERCIALS LTD,19/11/2020,Transport Related Expenditure,Repairs and Maintenance - Transport,Greater Manchester Combined Authority," 1,064.92 "
Chubb Fire & Security Limited,16/12/2020,Premises Related Expenditure,Programmed Repairs & Maintenance,Greater Manchester Combined Authority," 1,071.98 "
NPOWER YORKSHIRE LTD,23/12/2020,Premises Related Expenditure,Electricity,Greater Manchester Combined Authority," 1,074.42 "
NPOWER YORKSHIRE LTD,23/12/2020,Premises Related Expenditure,Electricity,Greater Manchester Combined Authority," 1,074.42 "
VODAFONE HQ,15/10/2020,"Supplies, Services & Other Expenses",Outsourced Services IT,Greater Manchester Combined Authority," 1,075.50 "
VODAFONE HQ,15/10/2020,"Supplies, Services & Other Expenses",Outsourced Services IT,Greater Manchester Combined Authority," 1,075.50 "
VODAFONE HQ,15/10/2020,"Supplies, Services & Other Expenses",Outsourced Services IT,Greater Manchester Combined Authority," 1,075.50 "
Floorbrite Cleaning Contractors Ltd,09/10/2020,Employees Pay,Agency Staff Costs,Greater Manchester Combined Authority," 1,079.90 "
Floorbrite Cleaning Contractors Ltd,26/11/2020,Employees Pay,Agency Staff Costs,Greater Manchester Combined Authority," 1,079.90 "
Floorbrite Cleaning Contractors Ltd,30/11/2020,Employees Pay,Agency Staff Costs,Greater Manchester Combined Authority," 1,079.90 "
Community Horizons Global CIC,05/11/2020,"Supplies, Services & Other Expenses",Grant Expenditure,Greater Manchester Combined Authority," 1,080.00 "
COMPACT GROUNDS MAINTENANCE LD,05/10/2020,Premises Related Expenditure,Waste Site Programmed,Greater Manchester Combined Authority," 1,083.29 "
COMPACT GROUNDS MAINTENANCE LD,10/11/2020,Premises Related Expenditure,Waste Site Programmed,Greater Manchester Combined Authority," 1,083.29 "
UNIT 4 BUSINESS SOFTWARE LTD,30/10/2020,"Supplies, Services & Other Expenses",Outsourced Services IT,Greater Manchester Combined Authority," 1,083.33 "
BALLYCLARE LIMITED,19/11/2020,"Supplies, Services & Other Expenses",Operational Equipment Consumables,Greater Manchester Combined Authority," 1,085.76 "
Phoenix Software Ltd,23/11/2020,"Supplies, Services & Other Expenses",Computer Software,Greater Manchester Combined Authority," 1,091.38 "
Goodyear Dunlop Tyres UK Ltd,04/11/2020,Transport Related Expenditure,Tyres,Greater Manchester Combined Authority," 1,094.80 "
J Fletcher (Engineers) Ltd,06/10/2020,Premises Related Expenditure,Responsive Repairs & Maintenance,Greater Manchester Combined Authority," 1,098.00 "
ASE (Eye Care Plans) Ltd,04/12/2020,"Supplies, Services & Other Expenses",Operational Equipment Non-Consumables,Greater Manchester Combined Authority," 1,102.00 "
The Wild Pheasant Hotel & Spa,29/12/2020,"Supplies, Services & Other Expenses",Subsistence,Greater Manchester Combined Authority," 1,106.67 "
TFGM,22/10/2020,Capital,Traffic Signals,Greater Manchester Combined Authority," 1,112.25 "
BALLYCLARE LIMITED,19/11/2020,"Supplies, Services & Other Expenses",Operational Equipment Consumables,Greater Manchester Combined Authority," 1,115.45 "
Corona Energy,23/12/2020,Premises Related Expenditure,Gas,Greater Manchester Combined Authority," 1,119.15 "
Corona Energy,23/12/2020,Premises Related Expenditure,Gas,Greater Manchester Combined Authority," 1,119.15 "
BERRYMANS LACE MAWER LLP,20/10/2020,"Supplies, Services & Other Expenses",Professional Fees,Greater Manchester Combined Authority," 1,120.00 "
Advanced Labelling Systems,25/11/2020,"Supplies, Services & Other Expenses",Operational Equipment Non-Consumables,Greater Manchester Combined Authority," 1,121.05 "
TFGM,16/12/2020,"Supplies, Services & Other Expenses",Traffic Signal Repairs,Greater Manchester Combined Authority," 1,124.71 "
Water Plus Limited,04/11/2020,Premises Related Expenditure,Metered Water,Greater Manchester Combined Authority," 1,132.34 "
NPOWER YORKSHIRE LTD,23/12/2020,Premises Related Expenditure,Electricity,Greater Manchester Combined Authority," 1,135.99 "
NPOWER YORKSHIRE LTD,23/12/2020,Premises Related Expenditure,Electricity,Greater Manchester Combined Authority," 1,135.99 "
Chemsol Ltd,19/11/2020,"Supplies, Services & Other Expenses",Operational Equipment Non-Consumables,Greater Manchester Combined Authority," 1,140.00 "
24 Hour Nationwide FM Services Ltd,16/11/2020,Premises Related Expenditure,Responsive Repairs & Maintenance,Greater Manchester Combined Authority," 1,141.72 "
NW Fire Control Ltd,19/11/2020,"Supplies, Services & Other Expenses",Outsourced Regional Control,Greater Manchester Combined Authority," 1,146.54 "
NPOWER YORKSHIRE LTD,23/12/2020,Premises Related Expenditure,Electricity,Greater Manchester Combined Authority," 1,147.29 "
NPOWER YORKSHIRE LTD,23/12/2020,Premises Related Expenditure,Electricity,Greater Manchester Combined Authority," 1,147.29 "
University of Central Lancashire,29/10/2020,Indirect Employee Allowances,Devolved Training,Greater Manchester Combined Authority," 1,147.50 "
Ashdown Phillips & Partners,13/11/2020,Premises Related Expenditure,Electricity,Greater Manchester Combined Authority," 1,147.55 "
Ashdown Phillips & Partners,13/11/2020,Premises Related Expenditure,Electricity,Greater Manchester Combined Authority," 1,147.55 "
NPOWER YORKSHIRE LTD,23/12/2020,Premises Related Expenditure,Electricity,Greater Manchester Combined Authority," 1,152.87 "
NPOWER YORKSHIRE LTD,23/12/2020,Premises Related Expenditure,Electricity,Greater Manchester Combined Authority," 1,152.87 "
THOMAS HARDIE COMMERCIALS LTD,03/11/2020,Transport Related Expenditure,Repairs and Maintenance - Transport,Greater Manchester Combined Authority," 1,157.53 "
Compass Group UK and Ireland,04/12/2020,"Supplies, Services & Other Expenses",Room Hire,Greater Manchester Combined Authority," 1,160.00 "
NW Fire Control Ltd,19/11/2020,"Supplies, Services & Other Expenses",Outsourced Regional Control,Greater Manchester Combined Authority," 1,160.57 "
UNITED UTILITIES WATER PLC,11/12/2020,"Supplies, Services & Other Expenses",Hydrants Repairs,Greater Manchester Combined Authority," 1,169.82 "
NPOWER YORKSHIRE LTD,23/12/2020,Premises Related Expenditure,Electricity,Greater Manchester Combined Authority," 1,184.03 "
NPOWER YORKSHIRE LTD,23/12/2020,Premises Related Expenditure,Electricity,Greater Manchester Combined Authority," 1,184.03 "
WA PRODUCT (UK) LTD,20/10/2020,"Supplies, Services & Other Expenses",Victims Crime Related Consumables,Greater Manchester Combined Authority," 1,188.00 "
Cranswick Continental Foods,23/10/2020,"Supplies, Services & Other Expenses",Professional Fees,Greater Manchester Combined Authority," 1,196.19 "
GML Joinery and Construction LLP,17/11/2020,Premises Related Expenditure,Responsive Repairs & Maintenance,Greater Manchester Combined Authority," 1,197.00 "
24 Hour Nationwide FM Services Ltd,16/12/2020,Premises Related Expenditure,Programmed Repairs & Maintenance,Greater Manchester Combined Authority," 1,197.56 "
AKW Global Logistics,21/10/2020,"Supplies, Services & Other Expenses",PPE Maintenance,Greater Manchester Combined Authority," 1,200.00 "
Ann Norburn Independent Safeguarding Training,05/11/2020,Indirect Employee Allowances,Devolved Training,Greater Manchester Combined Authority," 1,200.00 "
Castlefield Recruitment Limited,22/10/2020,Employees Pay,Agency Staff Costs,Greater Manchester Combined Authority," 1,200.00 "
Castlefield Recruitment Limited,31/12/2020,Employees Pay,Agency Staff Costs,Greater Manchester Combined Authority," 1,200.00 "
Embridge Consulting (UK) Ltd,18/12/2020,Indirect Employee Allowances,Training Course Fees,Greater Manchester Combined Authority," 1,200.00 "
Government Actuarys Department,18/11/2020,"Supplies, Services & Other Expenses",Professional Fees,Greater Manchester Combined Authority," 1,200.00 "
Rider Levett Bucknall UK Limited,08/10/2020,"Supplies, Services & Other Expenses",Professional Fees,Greater Manchester Combined Authority," 1,200.00 "
Rider Levett Bucknall UK Limited,04/11/2020,"Supplies, Services & Other Expenses",Professional Fees,Greater Manchester Combined Authority," 1,200.00 "
Rider Levett Bucknall UK Limited,14/12/2020,"Supplies, Services & Other Expenses",Professional Fees,Greater Manchester Combined Authority," 1,200.00 "
Sales Geek,29/10/2020,"Supplies, Services & Other Expenses",Consultancy Fees,Greater Manchester Combined Authority," 1,200.00 "
TFGM,17/12/2020,Capital,Traffic Signals,Greater Manchester Combined Authority," 1,200.00 "
TFGM,22/10/2020,"Supplies, Services & Other Expenses",Traffic Signal Repairs,Greater Manchester Combined Authority," 1,206.67 "
Digital ID,16/12/2020,Premises Related Expenditure,Programmed Repairs & Maintenance,Greater Manchester Combined Authority," 1,208.50 "
24 Hour Nationwide FM Services Ltd,04/12/2020,Premises Related Expenditure,Programmed Repairs & Maintenance,Greater Manchester Combined Authority," 1,210.30 "
Cranswick Continental Foods,01/12/2020,"Supplies, Services & Other Expenses",Professional Fees,Greater Manchester Combined Authority," 1,210.53 "
Water Plus Limited,04/11/2020,Premises Related Expenditure,Metered Water,Greater Manchester Combined Authority," 1,215.88 "
TFGM,16/12/2020,"Supplies, Services & Other Expenses",Traffic Signal Repairs,Greater Manchester Combined Authority," 1,218.96 "
Secure Empty Property,30/12/2020,Premises Related Expenditure,Waste Site Programmed,Greater Manchester Combined Authority," 1,225.00 "
DH Welton & Co Ltd,06/10/2020,Premises Related Expenditure,Responsive Repairs & Maintenance,Greater Manchester Combined Authority," 1,233.00 "
Saffer Cooper Ltd,13/10/2020,"Supplies, Services & Other Expenses",Consultancy Fees,Greater Manchester Combined Authority," 1,233.00 "
The Lettershop Group,21/12/2020,"Supplies, Services & Other Expenses",Postage,Greater Manchester Combined Authority," 1,233.05 "
Clark Masts Systems Ltd,10/12/2020,Transport Related Expenditure,Repairs and Maintenance - Transport,Greater Manchester Combined Authority," 1,235.41 "
RJB Group Holdings Ltd,03/11/2020,"Supplies, Services & Other Expenses",Operational Equipment Non-Consumables,Greater Manchester Combined Authority," 1,237.24 "
John Berry Controls,03/11/2020,Premises Related Expenditure,Programmed Repairs & Maintenance,Greater Manchester Combined Authority," 1,240.25 "
Castlefield Recruitment Limited,15/11/2020,Employees Pay,Agency Staff Costs,Greater Manchester Combined Authority," 1,245.00 "
TFGM,22/10/2020,Capital,Traffic Signals,Greater Manchester Combined Authority," 1,246.40 "
24 Hour Nationwide FM Services Ltd,26/11/2020,Premises Related Expenditure,Programmed Repairs & Maintenance,Greater Manchester Combined Authority," 1,248.52 "
Dalbergia Group Limited,23/10/2020,"Supplies, Services & Other Expenses",Professional Fees,Greater Manchester Combined Authority," 1,250.00 "
Lambert Smith Hampton Group Limited,29/10/2020,"Supplies, Services & Other Expenses",Professional Fees,Greater Manchester Combined Authority," 1,250.00 "
Lambert Smith Hampton Group Limited,01/12/2020,"Supplies, Services & Other Expenses",Professional Fees,Greater Manchester Combined Authority," 1,250.00 "
Lucy Skipper,09/11/2020,"Supplies, Services & Other Expenses",Outsourced Services IT,Greater Manchester Combined Authority," 1,250.00 "
North West Employers,26/11/2020,Indirect Employee Allowances,Training Course Fees,Greater Manchester Combined Authority," 1,250.00 "
TFGM,22/10/2020,"Supplies, Services & Other Expenses",Traffic Signal Repairs,Greater Manchester Combined Authority," 1,257.70 "
Water Plus Limited,04/11/2020,Premises Related Expenditure,Metered Water,Greater Manchester Combined Authority," 1,258.78 "
Virgin Media Business Limited,10/11/2020,"Supplies, Services & Other Expenses",Outsourced Services IT,Greater Manchester Combined Authority," 1,264.41 "
NPOWER YORKSHIRE LTD,23/12/2020,Premises Related Expenditure,Electricity,Greater Manchester Combined Authority," 1,270.03 "
NPOWER YORKSHIRE LTD,23/12/2020,Premises Related Expenditure,Electricity,Greater Manchester Combined Authority," 1,270.03 "
TFGM,17/12/2020,"Supplies, Services & Other Expenses",Traffic Signal Repairs,Greater Manchester Combined Authority," 1,270.62 "
THOMAS HARDIE COMMERCIALS LTD,21/10/2020,Transport Related Expenditure,Repairs and Maintenance - Transport,Greater Manchester Combined Authority," 1,270.63 "
THOMAS HARDIE COMMERCIALS LTD,08/12/2020,Transport Related Expenditure,Repairs and Maintenance - Transport,Greater Manchester Combined Authority," 1,270.63 "
TFGM,17/12/2020,"Supplies, Services & Other Expenses",Traffic Signal Repairs,Greater Manchester Combined Authority," 1,271.63 "
Cornerstone Design & Marketing Ltd,02/10/2020,"Supplies, Services & Other Expenses",Digital,Greater Manchester Combined Authority," 1,275.00 "
24 Hour Nationwide FM Services Ltd,04/12/2020,Premises Related Expenditure,Programmed Repairs & Maintenance,Greater Manchester Combined Authority," 1,286.74 "
Bury Metropolitan Arts Association,10/12/2020,"Supplies, Services & Other Expenses",Room Hire,Greater Manchester Combined Authority," 1,287.50 "
Shaping Cloud Limited,07/10/2020,"Supplies, Services & Other Expenses",Professional Fees,Greater Manchester Combined Authority," 1,290.00 "
Shaping Cloud Limited,18/11/2020,"Supplies, Services & Other Expenses",Professional Fees,Greater Manchester Combined Authority," 1,290.00 "
Truck Parts North Wales,13/11/2020,Transport Related Expenditure,Repairs and Maintenance - Transport,Greater Manchester Combined Authority," 1,292.70 "
Cranswick Continental Foods,23/12/2020,"Supplies, Services & Other Expenses",Professional Fees,Greater Manchester Combined Authority," 1,293.72 "
24 Hour Nationwide FM Services Ltd,26/11/2020,Premises Related Expenditure,Programmed Repairs & Maintenance,Greater Manchester Combined Authority," 1,299.48 "
TFGM,16/10/2020,"Supplies, Services & Other Expenses",Grant Expenditure,Greater Manchester Combined Authority," 1,318.68 "
Victoria Hotel Anka Hotels,24/12/2020,"Supplies, Services & Other Expenses",Subsistence,Greater Manchester Combined Authority," 1,321.43 "
Royal British Legion Poppy Appeal,22/10/2020,"Supplies, Services & Other Expenses",Events,Greater Manchester Combined Authority," 1,322.00 "
Red Badge Ltd,02/12/2020,Indirect Employee Allowances,Training Course Fees,Greater Manchester Combined Authority," 1,330.00 "
Barclays,31/12/2020,"Supplies, Services & Other Expenses",Bank Charges,Greater Manchester Combined Authority," 1,332.95 "
Cranswick Continental Foods,22/12/2020,"Supplies, Services & Other Expenses",Professional Fees,Greater Manchester Combined Authority," 1,336.85 "
Castlefield Recruitment Limited,06/11/2020,Employees Pay,Agency Staff Costs,Greater Manchester Combined Authority," 1,348.75 "
Dalbergia Group Limited,08/10/2020,"Supplies, Services & Other Expenses",Professional Fees,Greater Manchester Combined Authority," 1,350.00 "
Dalbergia Group Limited,30/10/2020,"Supplies, Services & Other Expenses",Professional Fees,Greater Manchester Combined Authority," 1,350.00 "
Dalbergia Group Limited,30/11/2020,"Supplies, Services & Other Expenses",Professional Fees,Greater Manchester Combined Authority," 1,350.00 "
North West Environmental Services,16/11/2020,Premises Related Expenditure,Responsive Repairs & Maintenance,Greater Manchester Combined Authority," 1,350.00 "
Proclean NW Ltd,16/11/2020,Premises Related Expenditure,Programmed Repairs & Maintenance,Greater Manchester Combined Authority," 1,350.00 "
TFGM,17/12/2020,"Supplies, Services & Other Expenses",Traffic Signal Repairs,Greater Manchester Combined Authority," 1,351.22 "
Banner Group Ltd,08/10/2020,"Supplies, Services & Other Expenses",Stationery,Greater Manchester Combined Authority," 1,352.10 "
BROWNS CTP LTD,27/10/2020,"Supplies, Services & Other Expenses",Graphics/ Branding,Greater Manchester Combined Authority," 1,355.00 "
Cranswick Continental Foods,05/10/2020,"Supplies, Services & Other Expenses",Professional Fees,Greater Manchester Combined Authority," 1,357.98 "
Young Explorers Camps Ltd,23/10/2020,"Supplies, Services & Other Expenses",Commissioned Services,Greater Manchester Combined Authority," 1,358.00 "
ABM (Lancashire) Ltd,19/10/2020,Premises Related Expenditure,Responsive Repairs & Maintenance,Greater Manchester Combined Authority," 1,362.00 "
ABM (Lancashire) Ltd,19/10/2020,Premises Related Expenditure,Responsive Repairs & Maintenance,Greater Manchester Combined Authority," 1,362.00 "
Water Plus Limited,04/11/2020,Premises Related Expenditure,Metered Water,Greater Manchester Combined Authority," 1,370.39 "
Goodyear Dunlop Tyres UK Ltd,02/12/2020,Transport Related Expenditure,Tyres,Greater Manchester Combined Authority," 1,370.70 "
TFGM,24/11/2020,"Supplies, Services & Other Expenses",Traffic Signal Repairs,Greater Manchester Combined Authority," 1,372.76 "
Interoute Networks Limited,25/11/2020,"Supplies, Services & Other Expenses",Outsourced Services IT,Greater Manchester Combined Authority," 1,375.00 "
TFGM,16/12/2020,"Supplies, Services & Other Expenses",Traffic Signal Repairs,Greater Manchester Combined Authority," 1,379.29 "
TFGM,24/11/2020,"Supplies, Services & Other Expenses",Traffic Signal Repairs,Greater Manchester Combined Authority," 1,387.80 "
WEIGHTMANS LLP,22/12/2020,"Supplies, Services & Other Expenses",Legal Liabilities,Greater Manchester Combined Authority," 1,400.00 "
TFGM,17/12/2020,"Supplies, Services & Other Expenses",Traffic Signal Repairs,Greater Manchester Combined Authority," 1,403.78 "
Allied Publicity Services (Manchester) Limited,15/12/2020,"Supplies, Services & Other Expenses",Stationery,Greater Manchester Combined Authority," 1,406.86 "
Floorbrite Cleaning Contractors Ltd,15/10/2020,Employees Pay,Agency Staff Costs,Greater Manchester Combined Authority," 1,411.56 "
Martek Drones Ltd T/A Coptrz,25/11/2020,Capital,Capital Equipment,Greater Manchester Combined Authority," 1,412.50 "
TFGM,16/12/2020,Capital,Traffic Signals,Greater Manchester Combined Authority," 1,415.32 "
TFGM,17/12/2020,Capital,Traffic Signals,Greater Manchester Combined Authority," 1,417.08 "
Corona Energy,23/12/2020,Premises Related Expenditure,Gas,Greater Manchester Combined Authority," 1,419.33 "
Corona Energy,23/12/2020,Premises Related Expenditure,Gas,Greater Manchester Combined Authority," 1,419.33 "
STALYBRIDGE AUTO SALVAGE LTD,14/12/2020,Indirect Employee Allowances,Other Training Expenses,Greater Manchester Combined Authority," 1,424.00 "
OTRA Ltd,17/11/2020,Transport Related Expenditure,Repairs and Maintenance - Transport,Greater Manchester Combined Authority," 1,424.44 "
24 Hour Nationwide FM Services Ltd,16/12/2020,Premises Related Expenditure,Programmed Repairs & Maintenance,Greater Manchester Combined Authority," 1,426.88 "
TFGM,24/11/2020,"Supplies, Services & Other Expenses",Traffic Signal Repairs,Greater Manchester Combined Authority," 1,430.04 "
TFGM,22/10/2020,"Supplies, Services & Other Expenses",Traffic Signal Repairs,Greater Manchester Combined Authority," 1,434.70 "
TFGM,24/11/2020,"Supplies, Services & Other Expenses",Traffic Signal Repairs,Greater Manchester Combined Authority," 1,437.43 "
Specialist Computer Centres Plc,04/11/2020,"Supplies, Services & Other Expenses",Computer Software,Greater Manchester Combined Authority," 1,437.56 "
PROFESSIONAL PEST SERVICES,10/12/2020,Premises Related Expenditure,Responsive Repairs & Maintenance,Greater Manchester Combined Authority," 1,440.00 "
Pinsent Masons LLP,16/12/2020,"Supplies, Services & Other Expenses",Legal Liabilities,Greater Manchester Combined Authority," 1,449.50 "
Dalbergia Group Limited,05/10/2020,"Supplies, Services & Other Expenses",Professional Fees,Greater Manchester Combined Authority," 1,450.00 "
Dalbergia Group Limited,04/11/2020,"Supplies, Services & Other Expenses",Professional Fees,Greater Manchester Combined Authority," 1,450.00 "
Dalbergia Group Limited,26/11/2020,"Supplies, Services & Other Expenses",Professional Fees,Greater Manchester Combined Authority," 1,450.00 "
Dalbergia Group Limited,17/12/2020,"Supplies, Services & Other Expenses",Professional Fees,Greater Manchester Combined Authority," 1,450.00 "
Lyon Equipment Ltd,11/12/2020,"Supplies, Services & Other Expenses",Operational Equipment Non-Consumables,Greater Manchester Combined Authority," 1,450.58 "
Babington Business College,16/10/2020,"Supplies, Services & Other Expenses",Commissioned Services,Greater Manchester Combined Authority," 1,455.87 "
King's House Conference (Greater Manchester) Ltd,20/10/2020,Indirect Employee Allowances,Training Course Fees,Greater Manchester Combined Authority," 1,461.50 "
Chubb Fire & Security Limited,26/11/2020,Premises Related Expenditure,Programmed Repairs & Maintenance,Greater Manchester Combined Authority," 1,468.18 "
NPOWER YORKSHIRE LTD,23/12/2020,Premises Related Expenditure,Electricity,Greater Manchester Combined Authority," 1,472.10 "
NPOWER YORKSHIRE LTD,23/12/2020,Premises Related Expenditure,Electricity,Greater Manchester Combined Authority," 1,472.10 "
PeoplePlus Group Limited,17/12/2020,"Supplies, Services & Other Expenses",Commissioned Services,Greater Manchester Combined Authority," 1,475.74 "
TFGM,16/12/2020,"Supplies, Services & Other Expenses",Traffic Signal Repairs,Greater Manchester Combined Authority," 1,478.92 "
OTRA Ltd,09/11/2020,Transport Related Expenditure,Repairs and Maintenance - Transport,Greater Manchester Combined Authority," 1,487.33 "
TFGM,16/12/2020,Capital,Traffic Signals,Greater Manchester Combined Authority," 1,496.65 "
Arthur J Gallagher,21/12/2020,"Supplies, Services & Other Expenses",Insurance,Greater Manchester Combined Authority," 1,500.00 "
Association for Environment Conscious Building,02/11/2020,"Supplies, Services & Other Expenses",Consultancy Fees,Greater Manchester Combined Authority," 1,500.00 "
Badger and Combes,06/12/2020,"Supplies, Services & Other Expenses",Events,Greater Manchester Combined Authority," 1,500.00 "
Bolton MBC,12/11/2020,"Supplies, Services & Other Expenses",Graphics/ Branding,Greater Manchester Combined Authority," 1,500.00 "
"Bury Voluntary, Community and Faith Alliance",18/12/2020,"Supplies, Services & Other Expenses",Grant Expenditure,Greater Manchester Combined Authority," 1,500.00 "
Castlefield Recruitment Limited,05/10/2020,Employees Pay,Agency Staff Costs,Greater Manchester Combined Authority," 1,500.00 "
Castlefield Recruitment Limited,13/10/2020,Employees Pay,Agency Staff Costs,Greater Manchester Combined Authority," 1,500.00 "
Castlefield Recruitment Limited,16/10/2020,Employees Pay,Agency Staff Costs,Greater Manchester Combined Authority," 1,500.00 "
Castlefield Recruitment Limited,04/11/2020,Employees Pay,Agency Staff Costs,Greater Manchester Combined Authority," 1,500.00 "
Castlefield Recruitment Limited,06/11/2020,Employees Pay,Agency Staff Costs,Greater Manchester Combined Authority," 1,500.00 "
Castlefield Recruitment Limited,16/11/2020,Employees Pay,Agency Staff Costs,Greater Manchester Combined Authority," 1,500.00 "
Castlefield Recruitment Limited,19/11/2020,Employees Pay,Agency Staff Costs,Greater Manchester Combined Authority," 1,500.00 "
Castlefield Recruitment Limited,27/11/2020,Employees Pay,Agency Staff Costs,Greater Manchester Combined Authority," 1,500.00 "
Castlefield Recruitment Limited,10/12/2020,Employees Pay,Agency Staff Costs,Greater Manchester Combined Authority," 1,500.00 "
Castlefield Recruitment Limited,16/12/2020,Employees Pay,Agency Staff Costs,Greater Manchester Combined Authority," 1,500.00 "
Castlefield Recruitment Limited,21/12/2020,Employees Pay,Agency Staff Costs,Greater Manchester Combined Authority," 1,500.00 "
Castlefield Recruitment Limited,23/12/2020,Employees Pay,Agency Staff Costs,Greater Manchester Combined Authority," 1,500.00 "
Digital Topics T/A Digital Leaders,05/10/2020,"Supplies, Services & Other Expenses",Conference,Greater Manchester Combined Authority," 1,500.00 "
Jen Lau,11/12/2020,"Supplies, Services & Other Expenses",Professional Fees,Greater Manchester Combined Authority," 1,500.00 "
Karen Hirst,15/12/2020,"Supplies, Services & Other Expenses",Members Conference Fees,Greater Manchester Combined Authority," 1,500.00 "
Landmark Chambers,07/10/2020,"Supplies, Services & Other Expenses",Professional Fees,Greater Manchester Combined Authority," 1,500.00 "
Manchester Alliance for Community Care Ltd,18/12/2020,"Supplies, Services & Other Expenses",Grant Expenditure,Greater Manchester Combined Authority," 1,500.00 "
Miffa Salter T/A Urbancanda,18/12/2020,Indirect Employee Allowances,Training Course Fees,Greater Manchester Combined Authority," 1,500.00 "
Salford Community and Voluntary Services,18/12/2020,"Supplies, Services & Other Expenses",Grant Expenditure,Greater Manchester Combined Authority," 1,500.00 "
Synergy Stockport Ltd,18/12/2020,"Supplies, Services & Other Expenses",Grant Expenditure,Greater Manchester Combined Authority," 1,500.00 "
Trafford Housing Trust ,18/12/2020,"Supplies, Services & Other Expenses",Grant Expenditure,Greater Manchester Combined Authority," 1,500.00 "
University of Salford,02/10/2020,"Supplies, Services & Other Expenses",Professional Fees,Greater Manchester Combined Authority," 1,500.00 "
Urban Outreach (Bolton),18/12/2020,"Supplies, Services & Other Expenses",Grant Expenditure,Greater Manchester Combined Authority," 1,500.00 "
Wigan Borough Community Partnership,18/12/2020,"Supplies, Services & Other Expenses",Grant Expenditure,Greater Manchester Combined Authority," 1,500.00 "
Corona Energy,23/12/2020,Premises Related Expenditure,Gas,Greater Manchester Combined Authority," 1,500.55 "
Corona Energy,23/12/2020,Premises Related Expenditure,Gas,Greater Manchester Combined Authority," 1,500.55 "
NW Fire Control Ltd,19/11/2020,"Supplies, Services & Other Expenses",Outsourced Regional Control,Greater Manchester Combined Authority," 1,500.90 "
Goodyear Dunlop Tyres UK Ltd,04/11/2020,Transport Related Expenditure,Tyres,Greater Manchester Combined Authority," 1,504.98 "
Banner Group Ltd,08/10/2020,"Supplies, Services & Other Expenses",Stationery,Greater Manchester Combined Authority," 1,537.62 "
Babcock Critical Services Ltd,05/10/2020,"Supplies, Services & Other Expenses",Operational Equipment Non-Consumables,Greater Manchester Combined Authority," 1,543.14 "
TFGM,24/11/2020,"Supplies, Services & Other Expenses",Traffic Signal Repairs,Greater Manchester Combined Authority," 1,543.17 "
Manchester City Council,28/10/2020,Premises Related Expenditure,Rates,Greater Manchester Combined Authority," 1,547.00 "
Manchester City Council,30/11/2020,Premises Related Expenditure,Rates,Greater Manchester Combined Authority," 1,547.00 "
Manchester City Council,29/12/2020,Premises Related Expenditure,Rates,Greater Manchester Combined Authority," 1,547.00 "
THE WHITE ROOM CONSULTANCY LIMITED,30/11/2020,"Supplies, Services & Other Expenses",Consultancy Fees,Greater Manchester Combined Authority," 1,550.00 "
Pitney Bowes,12/11/2020,"Supplies, Services & Other Expenses",Postage,Greater Manchester Combined Authority," 1,566.61 "
Pitney Bowes,09/12/2020,"Supplies, Services & Other Expenses",Postage,Greater Manchester Combined Authority," 1,571.94 "
DRAEGER LTD,09/11/2020,"Supplies, Services & Other Expenses",Operational Equipment Non-Consumables,Greater Manchester Combined Authority," 1,580.00 "
Equality and Diversity UK Ltd,11/11/2020,Indirect Employee Allowances,Training Course Fees,Greater Manchester Combined Authority," 1,590.00 "
College of Policing,30/11/2020,Indirect Employee Allowances,Training Course Fees,Greater Manchester Combined Authority," 1,592.50 "
TFGM,17/12/2020,"Supplies, Services & Other Expenses",Traffic Signal Repairs,Greater Manchester Combined Authority," 1,604.70 "
OTRA Ltd,04/11/2020,Transport Related Expenditure,Repairs and Maintenance - Transport,Greater Manchester Combined Authority," 1,607.29 "
TFGM,22/10/2020,Capital,Traffic Signals,Greater Manchester Combined Authority," 1,610.88 "
Pitney Bowes,12/10/2020,"Supplies, Services & Other Expenses",Postage,Greater Manchester Combined Authority," 1,624.78 "
TFGM,24/11/2020,"Supplies, Services & Other Expenses",Traffic Signal Repairs,Greater Manchester Combined Authority," 1,626.77 "
ENTHIOS TRAINING & DEVELOPMENT LIMITED,07/12/2020,"Supplies, Services & Other Expenses",Consultancy Fees,Greater Manchester Combined Authority," 1,628.80 "
OTRA Ltd,21/12/2020,Transport Related Expenditure,Repairs and Maintenance - Transport,Greater Manchester Combined Authority," 1,629.38 "
Glorious Creative Limited,07/10/2020,"Supplies, Services & Other Expenses",Communications,Greater Manchester Combined Authority," 1,650.00 "
Rock n' Real Estate Limited T/A Nexus Real Estate,07/10/2020,"Supplies, Services & Other Expenses",Members Conference Fees,Greater Manchester Combined Authority," 1,650.00 "
Rock n' Real Estate Limited T/A Nexus Real Estate,02/11/2020,"Supplies, Services & Other Expenses",Members Conference Fees,Greater Manchester Combined Authority," 1,650.00 "
Rock n' Real Estate Limited T/A Nexus Real Estate,02/12/2020,"Supplies, Services & Other Expenses",Members Conference Fees,Greater Manchester Combined Authority," 1,650.00 "
Castlefield Recruitment Limited,05/10/2020,Employees Pay,Agency Staff Costs,Greater Manchester Combined Authority," 1,660.00 "
iCount Training,27/11/2020,Indirect Employee Allowances,Training Course Fees,Greater Manchester Combined Authority," 1,660.21 "
Cyclescheme Ltd,21/10/2020,Other Balances,Cycle Scheme,Greater Manchester Combined Authority," 1,666.67 "
WIGAN MBC,27/10/2020,Premises Related Expenditure,Rates,Greater Manchester Combined Authority," 1,672.00 "
WIGAN MBC,27/11/2020,Premises Related Expenditure,Rates,Greater Manchester Combined Authority," 1,672.00 "
WIGAN MBC,29/12/2020,Premises Related Expenditure,Rates,Greater Manchester Combined Authority," 1,672.00 "
IKG Consulting Limited,24/12/2020,"Supplies, Services & Other Expenses",Consultancy Fees,Greater Manchester Combined Authority," 1,675.00 "
OTRA Ltd,01/12/2020,Transport Related Expenditure,Repairs and Maintenance - Transport,Greater Manchester Combined Authority," 1,679.59 "
Corona Energy,23/12/2020,Premises Related Expenditure,Gas,Greater Manchester Combined Authority," 1,687.98 "
Corona Energy,23/12/2020,Premises Related Expenditure,Gas,Greater Manchester Combined Authority," 1,687.98 "
Anna Horton,01/10/2020,"Supplies, Services & Other Expenses",Professional Fees,Greater Manchester Combined Authority," 1,688.00 "
Learning & Performance Institute,04/11/2020,Indirect Employee Allowances,Training Course Fees,Greater Manchester Combined Authority," 1,695.00 "
Learning & Performance Institute,04/11/2020,Indirect Employee Allowances,Training Course Fees,Greater Manchester Combined Authority," 1,695.00 "
Learning & Performance Institute,04/11/2020,Indirect Employee Allowances,Training Course Fees,Greater Manchester Combined Authority," 1,695.00 "
TFGM,18/11/2020,Capital,Capital Grant Expenditure,Greater Manchester Combined Authority," 1,698.54 "
Cornerstone Design & Marketing Ltd,02/10/2020,"Supplies, Services & Other Expenses",Digital,Greater Manchester Combined Authority," 1,700.00 "
iPWC Limited,04/11/2020,"Supplies, Services & Other Expenses",Professional Fees,Greater Manchester Combined Authority," 1,700.00 "
REDACTED PERSONAL DATA,07/12/2020,"Supplies, Services & Other Expenses",Legal Liabilities,Greater Manchester Combined Authority," 1,705.62 "
TAMESIDE MBC,18/12/2020,Premises Related Expenditure,Rent,Greater Manchester Combined Authority," 1,707.27 "
GUARDIAN TECHNICAL MAINTENANCE LTD,02/11/2020,Premises Related Expenditure,Responsive Repairs & Maintenance,Greater Manchester Combined Authority," 1,715.69 "
Talk Talk Business,26/10/2020,"Supplies, Services & Other Expenses",Other Communications Equipment,Greater Manchester Combined Authority," 1,716.11 "
Talk Talk Business,26/10/2020,"Supplies, Services & Other Expenses",Other Communications Equipment,Greater Manchester Combined Authority," 1,716.11 "
Talk Talk Business,26/10/2020,"Supplies, Services & Other Expenses",Other Communications Equipment,Greater Manchester Combined Authority," 1,716.11 "
Talk Talk Business,14/12/2020,"Supplies, Services & Other Expenses",Other Communications Equipment,Greater Manchester Combined Authority," 1,716.11 "
Talk Talk Business,14/12/2020,"Supplies, Services & Other Expenses",Other Communications Equipment,Greater Manchester Combined Authority," 1,716.11 "
Corona Energy,23/12/2020,Premises Related Expenditure,Gas,Greater Manchester Combined Authority," 1,717.11 "
Corona Energy,23/12/2020,Premises Related Expenditure,Gas,Greater Manchester Combined Authority," 1,717.11 "
TFGM,18/11/2020,"Supplies, Services & Other Expenses",Grant Expenditure,Greater Manchester Combined Authority," 1,719.20 "
Landmark Chambers,16/12/2020,"Supplies, Services & Other Expenses",Professional Fees,Greater Manchester Combined Authority," 1,725.00 "
DWF LLP,25/11/2020,"Supplies, Services & Other Expenses",Professional Fees,Greater Manchester Combined Authority," 1,728.00 "
Cranswick Continental Foods,05/10/2020,"Supplies, Services & Other Expenses",Professional Fees,Greater Manchester Combined Authority," 1,741.99 "
Artal Fund Monitoring,30/11/2020,"Supplies, Services & Other Expenses",Professional Fees,Greater Manchester Combined Authority," 1,750.00 "
Creative Inclusion Limited,01/10/2020,"Supplies, Services & Other Expenses",Professional Fees,Greater Manchester Combined Authority," 1,750.00 "
Creative Inclusion Limited,29/10/2020,"Supplies, Services & Other Expenses",Professional Fees,Greater Manchester Combined Authority," 1,750.00 "
Creative Inclusion Limited,01/12/2020,"Supplies, Services & Other Expenses",Professional Fees,Greater Manchester Combined Authority," 1,750.00 "
ARCO LIMITED,30/11/2020,"Supplies, Services & Other Expenses",Cleaning Equipment,Greater Manchester Combined Authority," 1,753.20 "
DELL COMPUTER CORPORATION LTD,03/11/2020,"Supplies, Services & Other Expenses",Computer Hardware,Greater Manchester Combined Authority," 1,753.74 "
RADIOCOMS SYSTEMS LIMITED,11/12/2020,"Supplies, Services & Other Expenses",Other Communications Equipment,Greater Manchester Combined Authority," 1,755.00 "
R3 Safety and Rescue Ltd,11/12/2020,"Supplies, Services & Other Expenses",Operational Equipment Non-Consumables,Greater Manchester Combined Authority," 1,755.44 "
TFGM,17/12/2020,Capital,Traffic Signals,Greater Manchester Combined Authority," 1,765.62 "
TFGM,24/11/2020,"Supplies, Services & Other Expenses",Traffic Signal Repairs,Greater Manchester Combined Authority," 1,768.29 "
Cranswick Continental Foods,23/10/2020,"Supplies, Services & Other Expenses",Professional Fees,Greater Manchester Combined Authority," 1,778.50 "
WIGAN MBC,21/12/2020,Transport Related Expenditure,Repairs and Maintenance - Transport,Greater Manchester Combined Authority," 1,784.00 "
Recruitment & Employment Confederation,21/10/2020,Indirect Employee Allowances,Training Course Fees,Greater Manchester Combined Authority," 1,795.00 "
NPOWER YORKSHIRE LTD,23/12/2020,Premises Related Expenditure,Electricity,Greater Manchester Combined Authority," 1,797.32 "
NPOWER YORKSHIRE LTD,23/12/2020,Premises Related Expenditure,Electricity,Greater Manchester Combined Authority," 1,797.32 "
Pinsent Masons LLP,16/12/2020,"Supplies, Services & Other Expenses",Legal Liabilities,Greater Manchester Combined Authority," 1,799.50 "
EFA (TRADING) LTD,07/12/2020,Indirect Employee Allowances,Devolved Training,Greater Manchester Combined Authority," 1,800.00 "
Embridge Consulting (UK) Ltd,16/12/2020,Capital,ICT Implementation Consultancy Costs,Greater Manchester Combined Authority," 1,802.50 "
TFGM,24/11/2020,Capital,Traffic Signals,Greater Manchester Combined Authority," 1,815.55 "
TFGM,24/11/2020,Capital,Traffic Signals,Greater Manchester Combined Authority," 1,815.55 "
DELL COMPUTER CORPORATION LTD,20/10/2020,"Supplies, Services & Other Expenses",Computer Hardware,Greater Manchester Combined Authority," 1,822.80 "
BURY COUNCIL,01/10/2020,Premises Related Expenditure,Rates,Greater Manchester Combined Authority," 1,834.00 "
BURY COUNCIL,02/11/2020,Premises Related Expenditure,Rates,Greater Manchester Combined Authority," 1,834.00 "
BURY COUNCIL,01/12/2020,Premises Related Expenditure,Rates,Greater Manchester Combined Authority," 1,834.00 "
Ashdown Phillips & Partners,19/11/2020,Premises Related Expenditure,Gas,Greater Manchester Combined Authority," 1,840.07 "
Ashdown Phillips & Partners,19/11/2020,Premises Related Expenditure,Gas,Greater Manchester Combined Authority," 1,840.07 "
Floorbrite Cleaning Contractors Ltd,15/10/2020,Employees Pay,Agency Staff Costs,Greater Manchester Combined Authority," 1,842.88 "
Floorbrite Cleaning Contractors Ltd,17/11/2020,Employees Pay,Agency Staff Costs,Greater Manchester Combined Authority," 1,842.88 "
Floorbrite Cleaning Contractors Ltd,30/11/2020,Employees Pay,Agency Staff Costs,Greater Manchester Combined Authority," 1,842.88 "
11KBW Limited Holding Account,22/10/2020,"Supplies, Services & Other Expenses",Professional Fees,Greater Manchester Combined Authority," 1,850.00 "
WIGAN MBC,27/10/2020,Premises Related Expenditure,Rates,Greater Manchester Combined Authority," 1,859.00 "
WIGAN MBC,27/11/2020,Premises Related Expenditure,Rates,Greater Manchester Combined Authority," 1,859.00 "
WIGAN MBC,29/12/2020,Premises Related Expenditure,Rates,Greater Manchester Combined Authority," 1,859.00 "
DELL COMPUTER CORPORATION LTD,11/12/2020,"Supplies, Services & Other Expenses",Computer Hardware,Greater Manchester Combined Authority," 1,867.91 "
Corona Energy,23/12/2020,Premises Related Expenditure,Gas,Greater Manchester Combined Authority," 1,873.84 "
Corona Energy,23/12/2020,Premises Related Expenditure,Gas,Greater Manchester Combined Authority," 1,873.84 "
Brady Corporation Ltd T/A Seton,23/12/2020,"Supplies, Services & Other Expenses",Stationery,Greater Manchester Combined Authority," 1,875.50 "
SES Business Water ,09/11/2020,Premises Related Expenditure,Metered Water,Greater Manchester Combined Authority," 1,876.19 "
Salford City Council,26/10/2020,Premises Related Expenditure,Rates,Greater Manchester Combined Authority," 1,896.00 "
Salford City Council,25/11/2020,Premises Related Expenditure,Rates,Greater Manchester Combined Authority," 1,896.00 "
Salford City Council,29/12/2020,Premises Related Expenditure,Rates,Greater Manchester Combined Authority," 1,896.00 "
Water Plus Limited,04/11/2020,Premises Related Expenditure,Metered Water,Greater Manchester Combined Authority," 1,898.49 "
John Gaffney,17/11/2020,Premises Related Expenditure,Responsive Repairs & Maintenance,Greater Manchester Combined Authority," 1,900.00 "
NPOWER YORKSHIRE LTD,23/12/2020,Premises Related Expenditure,Electricity,Greater Manchester Combined Authority," 1,900.86 "
NPOWER YORKSHIRE LTD,23/12/2020,Premises Related Expenditure,Electricity,Greater Manchester Combined Authority," 1,900.86 "
PG BELL ELECTRICAL CONTRACTORS LTD,03/11/2020,Premises Related Expenditure,Programmed Repairs & Maintenance,Greater Manchester Combined Authority," 1,910.00 "
Goodyear Dunlop Tyres UK Ltd,04/11/2020,Transport Related Expenditure,Tyres,Greater Manchester Combined Authority," 1,910.70 "
Pioneer Print Solutions,17/12/2020,"Supplies, Services & Other Expenses",Waste Campaigns,Greater Manchester Combined Authority," 1,914.00 "
Ministry Of Justice,03/11/2020,"Supplies, Services & Other Expenses",Commissioned Services,Greater Manchester Combined Authority," 1,920.35 "
Ministry Of Justice,12/11/2020,"Supplies, Services & Other Expenses",Commissioned Services,Greater Manchester Combined Authority," 1,920.35 "
Manchester City Council,28/10/2020,Premises Related Expenditure,Rates,Greater Manchester Combined Authority," 1,921.00 "
Manchester City Council,30/11/2020,Premises Related Expenditure,Rates,Greater Manchester Combined Authority," 1,921.00 "
Manchester City Council,29/12/2020,Premises Related Expenditure,Rates,Greater Manchester Combined Authority," 1,921.00 "
Manchester City Council,01/10/2020,Premises Related Expenditure,Rates,Greater Manchester Combined Authority," 1,921.00 "
Manchester City Council,02/11/2020,Premises Related Expenditure,Rates,Greater Manchester Combined Authority," 1,921.00 "
Manchester City Council,01/12/2020,Premises Related Expenditure,Rates,Greater Manchester Combined Authority," 1,921.00 "
Floorbrite Cleaning Contractors Ltd,26/11/2020,Employees Pay,Agency Staff Costs,Greater Manchester Combined Authority," 1,940.25 "
Floorbrite Cleaning Contractors Ltd,30/11/2020,Employees Pay,Agency Staff Costs,Greater Manchester Combined Authority," 1,940.25 "
Water Plus Limited,04/11/2020,Premises Related Expenditure,Metered Water,Greater Manchester Combined Authority," 1,943.20 "
Phoenix Software Ltd,01/10/2020,"Supplies, Services & Other Expenses",Computer Software,Greater Manchester Combined Authority," 1,945.00 "
Shaping Cloud Limited,16/10/2020,"Supplies, Services & Other Expenses",Professional Fees,Greater Manchester Combined Authority," 1,950.00 "
Shaping Cloud Limited,16/10/2020,"Supplies, Services & Other Expenses",Professional Fees,Greater Manchester Combined Authority," 1,950.00 "
Shaping Cloud Limited,16/10/2020,"Supplies, Services & Other Expenses",Professional Fees,Greater Manchester Combined Authority," 1,950.00 "
Shaping Cloud Limited,27/11/2020,"Supplies, Services & Other Expenses",Professional Fees,Greater Manchester Combined Authority," 1,950.00 "
Shaping Cloud Limited,16/12/2020,"Supplies, Services & Other Expenses",Professional Fees,Greater Manchester Combined Authority," 1,950.00 "
Watts Group Limited,04/12/2020,"Supplies, Services & Other Expenses",Professional Fees,Greater Manchester Combined Authority," 1,950.00 "
Patrizia Frankfurt Belgium,07/12/2020,Premises Related Expenditure,Rent,Greater Manchester Combined Authority," 1,958.37 "
The Dartington Hall Trust,23/11/2020,"Supplies, Services & Other Expenses",Professional Fees,Greater Manchester Combined Authority," 1,958.84 "
Castlefield Recruitment Limited,23/12/2020,Employees Pay,Agency Staff Costs,Greater Manchester Combined Authority," 1,971.25 "
TFGM,24/11/2020,"Supplies, Services & Other Expenses",Traffic Signal Repairs,Greater Manchester Combined Authority," 1,974.13 "
Specialist Computer Centres Plc,04/11/2020,"Supplies, Services & Other Expenses",Computer Software,Greater Manchester Combined Authority," 1,979.02 "
ARCO LIMITED,26/11/2020,Indirect Employee Allowances,Other Training Expenses,Greater Manchester Combined Authority," 1,979.25 "
MOSS ELECTRICAL (NW),16/10/2020,Premises Related Expenditure,Responsive Repairs & Maintenance,Greater Manchester Combined Authority," 1,982.00 "
QA LTD,08/10/2020,Indirect Employee Allowances,Training Course Fees,Greater Manchester Combined Authority," 1,995.00 "
Stockport MBC,26/10/2020,Premises Related Expenditure,Rates,Greater Manchester Combined Authority," 1,996.00 "
Stockport MBC,25/11/2020,Premises Related Expenditure,Rates,Greater Manchester Combined Authority," 1,996.00 "
Stockport MBC,29/12/2020,Premises Related Expenditure,Rates,Greater Manchester Combined Authority," 1,996.00 "
Artal Fund Monitoring,21/12/2020,"Supplies, Services & Other Expenses",Professional Fees,Greater Manchester Combined Authority," 2,000.00 "
Brighter Sound Ltd,08/12/2020,"Supplies, Services & Other Expenses",Events,Greater Manchester Combined Authority," 2,000.00 "
Focus Business Communications Ltd,25/11/2020,"Supplies, Services & Other Expenses",Professional Fees,Greater Manchester Combined Authority," 2,000.00 "
Hays Specialist Recruitment Ltd,06/10/2020,Employees Pay,Agency Staff Costs,Greater Manchester Combined Authority," 2,000.00 "
Hays Specialist Recruitment Ltd,08/10/2020,Employees Pay,Agency Staff Costs,Greater Manchester Combined Authority," 2,000.00 "
Hays Specialist Recruitment Ltd,13/10/2020,Employees Pay,Agency Staff Costs,Greater Manchester Combined Authority," 2,000.00 "
Hays Specialist Recruitment Ltd,13/10/2020,Employees Pay,Agency Staff Costs,Greater Manchester Combined Authority," 2,000.00 "
Hays Specialist Recruitment Ltd,13/10/2020,Employees Pay,Agency Staff Costs,Greater Manchester Combined Authority," 2,000.00 "
Hays Specialist Recruitment Ltd,20/10/2020,Employees Pay,Agency Staff Costs,Greater Manchester Combined Authority," 2,000.00 "
Hays Specialist Recruitment Ltd,20/10/2020,Employees Pay,Agency Staff Costs,Greater Manchester Combined Authority," 2,000.00 "
Hays Specialist Recruitment Ltd,29/10/2020,Employees Pay,Agency Staff Costs,Greater Manchester Combined Authority," 2,000.00 "
Hays Specialist Recruitment Ltd,29/10/2020,Employees Pay,Agency Staff Costs,Greater Manchester Combined Authority," 2,000.00 "
Hays Specialist Recruitment Ltd,03/11/2020,Employees Pay,Agency Staff Costs,Greater Manchester Combined Authority," 2,000.00 "
Hays Specialist Recruitment Ltd,04/11/2020,Employees Pay,Agency Staff Costs,Greater Manchester Combined Authority," 2,000.00 "
Hays Specialist Recruitment Ltd,22/12/2020,Employees Pay,Agency Staff Costs,Greater Manchester Combined Authority," 2,000.00 "
KIT Theatre,03/11/2020,"Supplies, Services & Other Expenses",Professional Fees,Greater Manchester Combined Authority," 2,000.00 "
Lancashire Outdoor Activities Initiative (The Anderton Centre),08/10/2020,Indirect Employee Allowances,Training Course Fees,Greater Manchester Combined Authority," 2,000.00 "
Manchester City Council,19/10/2020,"Supplies, Services & Other Expenses",Equipment Hire,Greater Manchester Combined Authority," 2,000.00 "
TFGM,22/10/2020,Capital,Traffic Signals,Greater Manchester Combined Authority," 2,000.00 "
TFGM,22/10/2020,Capital,Traffic Signals,Greater Manchester Combined Authority," 2,000.00 "
TFGM,24/11/2020,Capital,Traffic Signals,Greater Manchester Combined Authority," 2,000.00 "
TFGM,24/11/2020,Capital,Traffic Signals,Greater Manchester Combined Authority," 2,000.00 "
TFGM,16/12/2020,Capital,Traffic Signals,Greater Manchester Combined Authority," 2,000.00 "
The University of Manchester,26/10/2020,"Supplies, Services & Other Expenses",Grant Expenditure,Greater Manchester Combined Authority," 2,000.00 "
Ward Hadaway Solicitors,23/12/2020,"Supplies, Services & Other Expenses",Legal Liabilities,Greater Manchester Combined Authority," 2,000.00 "
One Smart Cookie Communications Limited,22/10/2020,"Supplies, Services & Other Expenses",Professional Fees,Greater Manchester Combined Authority," 2,005.00 "
Water Plus Limited,04/11/2020,Premises Related Expenditure,Metered Water,Greater Manchester Combined Authority," 2,007.97 "
Spraybake,21/10/2020,Transport Related Expenditure,Repairs and Maintenance - Transport,Greater Manchester Combined Authority," 2,010.45 "
Healthwork,26/11/2020,Indirect Employee Allowances,Medical Fees,Greater Manchester Combined Authority," 2,040.00 "
TFGM,19/10/2020,Capital,Capital Grant Expenditure,Greater Manchester Combined Authority," 2,056.17 "
DELL COMPUTER CORPORATION LTD,04/12/2020,"Supplies, Services & Other Expenses",Computer Hardware,Greater Manchester Combined Authority," 2,057.72 "
Stockport MBC,01/10/2020,Premises Related Expenditure,Rates,Greater Manchester Combined Authority," 2,071.00 "
Stockport MBC,02/11/2020,Premises Related Expenditure,Rates,Greater Manchester Combined Authority," 2,071.00 "
Stockport MBC,01/12/2020,Premises Related Expenditure,Rates,Greater Manchester Combined Authority," 2,071.00 "
TFGM,16/12/2020,"Supplies, Services & Other Expenses",Traffic Signal Repairs,Greater Manchester Combined Authority," 2,074.87 "
Castlefield Recruitment Limited,14/10/2020,Employees Pay,Agency Staff Costs,Greater Manchester Combined Authority," 2,075.00 "
Castlefield Recruitment Limited,20/10/2020,Employees Pay,Agency Staff Costs,Greater Manchester Combined Authority," 2,075.00 "
Castlefield Recruitment Limited,22/10/2020,Employees Pay,Agency Staff Costs,Greater Manchester Combined Authority," 2,075.00 "
Castlefield Recruitment Limited,03/11/2020,Employees Pay,Agency Staff Costs,Greater Manchester Combined Authority," 2,075.00 "
Castlefield Recruitment Limited,19/11/2020,Employees Pay,Agency Staff Costs,Greater Manchester Combined Authority," 2,075.00 "
Castlefield Recruitment Limited,27/11/2020,Employees Pay,Agency Staff Costs,Greater Manchester Combined Authority," 2,075.00 "
Castlefield Recruitment Limited,10/12/2020,Employees Pay,Agency Staff Costs,Greater Manchester Combined Authority," 2,075.00 "
Castlefield Recruitment Limited,16/12/2020,Employees Pay,Agency Staff Costs,Greater Manchester Combined Authority," 2,075.00 "
Castlefield Recruitment Limited,21/12/2020,Employees Pay,Agency Staff Costs,Greater Manchester Combined Authority," 2,075.00 "
Carboncreative,29/10/2020,"Supplies, Services & Other Expenses",Advertising,Greater Manchester Combined Authority," 2,080.00 "
Salford City Council,29/10/2020,"Supplies, Services & Other Expenses",Professional Fees,Greater Manchester Combined Authority," 2,083.33 "
Salford City Council,21/12/2020,"Supplies, Services & Other Expenses",Professional Fees,Greater Manchester Combined Authority," 2,083.33 "
TFGM,24/11/2020,"Supplies, Services & Other Expenses",Traffic Signal Repairs,Greater Manchester Combined Authority," 2,087.91 "
Cushman and Wakefield,08/10/2020,"Supplies, Services & Other Expenses",Professional Fees,Greater Manchester Combined Authority," 2,100.00 "
North West Environmental Services,17/12/2020,Premises Related Expenditure,Programmed Repairs & Maintenance,Greater Manchester Combined Authority," 2,100.00 "
THE WHITE ROOM CONSULTANCY LIMITED,30/11/2020,"Supplies, Services & Other Expenses",Consultancy Fees,Greater Manchester Combined Authority," 2,100.00 "
TFGM,24/11/2020,"Supplies, Services & Other Expenses",Traffic Signal Repairs,Greater Manchester Combined Authority," 2,100.46 "
TFGM,17/12/2020,"Supplies, Services & Other Expenses",Traffic Signal Repairs,Greater Manchester Combined Authority," 2,119.13 "
TFGM,22/10/2020,"Supplies, Services & Other Expenses",Traffic Signal Repairs,Greater Manchester Combined Authority," 2,127.50 "
Salford City Council,26/10/2020,Premises Related Expenditure,Rates,Greater Manchester Combined Authority," 2,133.00 "
Salford City Council,25/11/2020,Premises Related Expenditure,Rates,Greater Manchester Combined Authority," 2,133.00 "
Salford City Council,29/12/2020,Premises Related Expenditure,Rates,Greater Manchester Combined Authority," 2,133.00 "
Cylinder Testing & Sales (UK) Ltd,22/12/2020,"Supplies, Services & Other Expenses",Operational Equipment Non-Consumables,Greater Manchester Combined Authority," 2,144.80 "
TFGM,22/10/2020,"Supplies, Services & Other Expenses",Traffic Signal Repairs,Greater Manchester Combined Authority," 2,164.04 "
Bolton MBC,08/10/2020,Premises Related Expenditure,Rates,Greater Manchester Combined Authority," 2,171.00 "
Bolton MBC,09/11/2020,Premises Related Expenditure,Rates,Greater Manchester Combined Authority," 2,171.00 "
Bolton MBC,08/12/2020,Premises Related Expenditure,Rates,Greater Manchester Combined Authority," 2,171.00 "
Bid Group Ltd,16/10/2020,Premises Related Expenditure,Responsive Repairs & Maintenance,Greater Manchester Combined Authority," 2,174.65 "
TFGM,24/11/2020,"Supplies, Services & Other Expenses",Traffic Signal Repairs,Greater Manchester Combined Authority," 2,175.05 "
LAC AIR CONDITIONING LTD,20/11/2020,Premises Related Expenditure,Responsive Repairs & Maintenance,Greater Manchester Combined Authority," 2,198.34 "
EvoEnergy,23/12/2020,"Supplies, Services & Other Expenses",Professional Fees,Greater Manchester Combined Authority," 2,200.00 "
TFGM,24/11/2020,Capital,Traffic Signals,Greater Manchester Combined Authority," 2,200.00 "
TFGM,24/11/2020,Capital,Traffic Signals,Greater Manchester Combined Authority," 2,200.00 "
Watts Group Limited,13/10/2020,"Supplies, Services & Other Expenses",Professional Fees,Greater Manchester Combined Authority," 2,200.00 "
Watts Group Limited,05/11/2020,"Supplies, Services & Other Expenses",Professional Fees,Greater Manchester Combined Authority," 2,200.00 "
MERSEYSIDE FIRE & RESCUE AUTHORITY,03/12/2020,Indirect Employee Allowances,Training Course Fees,Greater Manchester Combined Authority," 2,206.00 "
WA PRODUCT (UK) LTD,20/10/2020,"Supplies, Services & Other Expenses",Victims Crime Related Consumables,Greater Manchester Combined Authority," 2,207.53 "
Stockport MBC,01/10/2020,Premises Related Expenditure,Rates,Greater Manchester Combined Authority," 2,221.00 "
Stockport MBC,02/11/2020,Premises Related Expenditure,Rates,Greater Manchester Combined Authority," 2,221.00 "
Stockport MBC,01/12/2020,Premises Related Expenditure,Rates,Greater Manchester Combined Authority," 2,221.00 "
TRAFFORD MBC,01/12/2020,Premises Related Expenditure,Rates,Greater Manchester Combined Authority," 2,232.00 "
TRAFFORD MBC,02/11/2020,Premises Related Expenditure,Rates,Greater Manchester Combined Authority," 2,233.42 "
Talk Talk Business,26/10/2020,"Supplies, Services & Other Expenses",Other Communications Equipment,Greater Manchester Combined Authority," 2,234.25 "
Naismiths Limited,30/11/2020,"Supplies, Services & Other Expenses",Professional Fees,Greater Manchester Combined Authority," 2,250.00 "
Tusk Business Solutions Limited,23/12/2020,"Supplies, Services & Other Expenses",Professional Fees,Greater Manchester Combined Authority," 2,250.00 "
WEIGHTMANS LLP,23/12/2020,"Supplies, Services & Other Expenses",Professional Fees,Greater Manchester Combined Authority," 2,261.50 "
The Institution of Fire Engineers,07/12/2020,Indirect Employee Allowances,Training Course Fees,Greater Manchester Combined Authority," 2,287.00 "
LINK 51,14/12/2020,Premises Related Expenditure,Fixtures & Fittings,Greater Manchester Combined Authority," 2,324.60 "
GKR Partnerships,06/10/2020,"Supplies, Services & Other Expenses",Consultancy Fees,Greater Manchester Combined Authority," 2,325.00 "
GKR Partnerships,10/11/2020,"Supplies, Services & Other Expenses",Consultancy Fees,Greater Manchester Combined Authority," 2,325.00 "
Bolton MBC,26/10/2020,Premises Related Expenditure,Rates,Greater Manchester Combined Authority," 2,333.00 "
Bolton MBC,25/11/2020,Premises Related Expenditure,Rates,Greater Manchester Combined Authority," 2,333.00 "
Bolton MBC,29/12/2020,Premises Related Expenditure,Rates,Greater Manchester Combined Authority," 2,333.00 "
TFGM,16/12/2020,"Supplies, Services & Other Expenses",Traffic Signal Repairs,Greater Manchester Combined Authority," 2,346.27 "
CDW Ltd,30/11/2020,"Supplies, Services & Other Expenses",Computer Hardware,Greater Manchester Combined Authority," 2,352.00 "
PG BELL ELECTRICAL CONTRACTORS LTD,16/10/2020,Premises Related Expenditure,Programmed Repairs & Maintenance,Greater Manchester Combined Authority," 2,390.00 "
University of Northumbria at Newcastle,21/12/2020,Indirect Employee Allowances,Training Course Fees,Greater Manchester Combined Authority," 2,390.00 "
NPOWER YORKSHIRE LTD,23/12/2020,Premises Related Expenditure,Electricity,Greater Manchester Combined Authority," 2,396.18 "
NPOWER YORKSHIRE LTD,23/12/2020,Premises Related Expenditure,Electricity,Greater Manchester Combined Authority," 2,396.18 "
SERCO LTD,16/11/2020,Indirect Employee Allowances,Training Course Fees,Greater Manchester Combined Authority," 2,397.00 "
Standguide Limited,16/10/2020,"Supplies, Services & Other Expenses",Commissioned Services,Greater Manchester Combined Authority," 2,398.06 "
Think Design Manchester Ltd,23/12/2020,"Supplies, Services & Other Expenses",Publicity,Greater Manchester Combined Authority," 2,400.00 "
PG BELL ELECTRICAL CONTRACTORS LTD,16/10/2020,Premises Related Expenditure,Responsive Repairs & Maintenance,Greater Manchester Combined Authority," 2,401.80 "
BURY COUNCIL,20/10/2020,Premises Related Expenditure,Rates,Greater Manchester Combined Authority," 2,408.00 "
BURY COUNCIL,20/11/2020,Premises Related Expenditure,Rates,Greater Manchester Combined Authority," 2,408.00 "
BURY COUNCIL,21/12/2020,Premises Related Expenditure,Rates,Greater Manchester Combined Authority," 2,408.00 "
TRAFFORD MBC,01/10/2020,Premises Related Expenditure,Rates,Greater Manchester Combined Authority," 2,410.00 "
TRAFFORD MBC,02/11/2020,Premises Related Expenditure,Rates,Greater Manchester Combined Authority," 2,410.00 "
TRAFFORD MBC,01/12/2020,Premises Related Expenditure,Rates,Greater Manchester Combined Authority," 2,410.00 "
Floorbrite Cleaning Contractors Ltd,09/10/2020,Employees Pay,Agency Staff Costs,Greater Manchester Combined Authority," 2,410.60 "
Floorbrite Cleaning Contractors Ltd,26/11/2020,Employees Pay,Agency Staff Costs,Greater Manchester Combined Authority," 2,410.60 "
Floorbrite Cleaning Contractors Ltd,30/11/2020,Employees Pay,Agency Staff Costs,Greater Manchester Combined Authority," 2,410.60 "
Rochdale Metropolitan Borough Council,19/10/2020,Premises Related Expenditure,Rates,Greater Manchester Combined Authority," 2,420.00 "
Rochdale Metropolitan Borough Council,19/11/2020,Premises Related Expenditure,Rates,Greater Manchester Combined Authority," 2,420.00 "
Rochdale Metropolitan Borough Council,21/12/2020,Premises Related Expenditure,Rates,Greater Manchester Combined Authority," 2,420.00 "
TFGM,24/11/2020,Capital,Traffic Signals,Greater Manchester Combined Authority," 2,420.00 "
TFGM,24/11/2020,Capital,Traffic Signals,Greater Manchester Combined Authority," 2,420.00 "
TFGM,24/11/2020,Capital,Traffic Signals,Greater Manchester Combined Authority," 2,420.00 "
TFGM,24/11/2020,Capital,Traffic Signals,Greater Manchester Combined Authority," 2,420.00 "
TFGM,24/11/2020,Capital,Traffic Signals,Greater Manchester Combined Authority," 2,420.00 "
TFGM,24/11/2020,Capital,Traffic Signals,Greater Manchester Combined Authority," 2,420.00 "
TFGM,24/11/2020,Capital,Traffic Signals,Greater Manchester Combined Authority," 2,420.00 "
TFGM,16/12/2020,Capital,Traffic Signals,Greater Manchester Combined Authority," 2,420.00 "
WIGAN MBC,19/11/2020,"Supplies, Services & Other Expenses",Grant Expenditure,Greater Manchester Combined Authority," 2,425.77 "
Corona Energy,23/12/2020,Premises Related Expenditure,Gas,Greater Manchester Combined Authority," 2,429.09 "
Corona Energy,23/12/2020,Premises Related Expenditure,Gas,Greater Manchester Combined Authority," 2,429.09 "
Pellcomp Software Ltd,03/12/2020,Indirect Employee Allowances,Other Training Expenses,Greater Manchester Combined Authority," 2,430.50 "
Myerscough College,07/10/2020,Indirect Employee Allowances,Other Training Expenses,Greater Manchester Combined Authority," 2,440.00 "
System Group Ltd,15/10/2020,"Supplies, Services & Other Expenses",Commissioned Services,Greater Manchester Combined Authority," 2,447.96 "
DUCTBUSTERS LTD,23/11/2020,Premises Related Expenditure,Programmed Repairs & Maintenance,Greater Manchester Combined Authority," 2,453.00 "
Bloom Procurement Services Ltd,29/10/2020,"Supplies, Services & Other Expenses",Consultancy Fees,Greater Manchester Combined Authority," 2,457.00 "
DUCTBUSTERS LTD,23/11/2020,Premises Related Expenditure,Programmed Repairs & Maintenance,Greater Manchester Combined Authority," 2,468.00 "
Winton Flooring Limited,01/12/2020,Capital,Estates Capital Contracts,Greater Manchester Combined Authority," 2,468.41 "
Addleshaw Goddard LLP,04/12/2020,"Supplies, Services & Other Expenses",Legal Liabilities,Greater Manchester Combined Authority," 2,500.00 "
Addleshaw Goddard LLP,04/12/2020,"Supplies, Services & Other Expenses",Legal Liabilities,Greater Manchester Combined Authority," 2,500.00 "
Addleshaw Goddard LLP,04/12/2020,"Supplies, Services & Other Expenses",Legal Liabilities,Greater Manchester Combined Authority," 2,500.00 "
Addleshaw Goddard LLP,04/12/2020,"Supplies, Services & Other Expenses",Legal Liabilities,Greater Manchester Combined Authority," 2,500.00 "
Addleshaw Goddard LLP,04/12/2020,"Supplies, Services & Other Expenses",Legal Liabilities,Greater Manchester Combined Authority," 2,500.00 "
Addleshaw Goddard LLP,04/12/2020,"Supplies, Services & Other Expenses",Legal Liabilities,Greater Manchester Combined Authority," 2,500.00 "
Addleshaw Goddard LLP,04/12/2020,"Supplies, Services & Other Expenses",Legal Liabilities,Greater Manchester Combined Authority," 2,500.00 "
Addleshaw Goddard LLP,04/12/2020,"Supplies, Services & Other Expenses",Legal Liabilities,Greater Manchester Combined Authority," 2,500.00 "
Addleshaw Goddard LLP,04/12/2020,"Supplies, Services & Other Expenses",Legal Liabilities,Greater Manchester Combined Authority," 2,500.00 "
Addleshaw Goddard LLP,04/12/2020,"Supplies, Services & Other Expenses",Legal Liabilities,Greater Manchester Combined Authority," 2,500.00 "
Clive Parkinson,29/10/2020,"Supplies, Services & Other Expenses",Professional Fees,Greater Manchester Combined Authority," 2,500.00 "
GARDINER ASSOCIATES TRAINING AND RESEARCH LIMITED,20/10/2020,Indirect Employee Allowances,Devolved Training,Greater Manchester Combined Authority," 2,500.00 "
GARDINER ASSOCIATES TRAINING AND RESEARCH LIMITED,26/10/2020,Indirect Employee Allowances,Devolved Training,Greater Manchester Combined Authority," 2,500.00 "
NPS Energy Ltd,26/11/2020,"Supplies, Services & Other Expenses",Consultancy Fees,Greater Manchester Combined Authority," 2,500.00 "
Savills (UK) Limited,30/10/2020,"Supplies, Services & Other Expenses",Professional Fees,Greater Manchester Combined Authority," 2,500.00 "
Savills (UK) Limited,30/10/2020,"Supplies, Services & Other Expenses",Professional Fees,Greater Manchester Combined Authority," 2,500.00 "
STONEWALL EQUALITY LTD,03/11/2020,"Supplies, Services & Other Expenses",Subscriptions,Greater Manchester Combined Authority," 2,500.00 "
TFGM,16/12/2020,Capital,Traffic Signals,Greater Manchester Combined Authority," 2,500.00 "
TSAP Ltd (formerly Lattice Advisory Ltd),05/10/2020,"Supplies, Services & Other Expenses",Professional Fees,Greater Manchester Combined Authority," 2,500.00 "
Gunnercooke LLP,02/11/2020,"Supplies, Services & Other Expenses",Legal Liabilities,Greater Manchester Combined Authority," 2,506.75 "
TFGM,04/12/2020,Capital,Capital Grant Expenditure,Greater Manchester Combined Authority," 2,519.75 "
TFGM,16/12/2020,"Supplies, Services & Other Expenses",Traffic Signal Repairs,Greater Manchester Combined Authority," 2,537.32 "
TFGM,09/11/2020,Capital,Capital Grant Expenditure,Greater Manchester Combined Authority," 2,553.22 "
DRAEGER LTD,14/12/2020,"Supplies, Services & Other Expenses",Operational Equipment Non-Consumables,Greater Manchester Combined Authority," 2,580.30 "
Salford City Council,01/12/2020,"Supplies, Services & Other Expenses",Professional Fees,Greater Manchester Combined Authority," 2,583.33 "
Pollen Studio,29/10/2020,"Supplies, Services & Other Expenses",Computer Software,Greater Manchester Combined Authority," 2,600.00 "
Pollen Studio,30/11/2020,"Supplies, Services & Other Expenses",Computer Software,Greater Manchester Combined Authority," 2,600.00 "
Pollen Studio,22/12/2020,"Supplies, Services & Other Expenses",Computer Software,Greater Manchester Combined Authority," 2,600.00 "
WIGAN MBC,21/12/2020,Transport Related Expenditure,Repairs and Maintenance - Transport,Greater Manchester Combined Authority," 2,600.00 "
DELL COMPUTER CORPORATION LTD,02/11/2020,"Supplies, Services & Other Expenses",Computer Hardware,Greater Manchester Combined Authority," 2,604.00 "
TFGM,16/10/2020,"Supplies, Services & Other Expenses",Grant Expenditure,Greater Manchester Combined Authority," 2,617.29 "
TFGM,02/12/2020,"Supplies, Services & Other Expenses",Grant Expenditure,Greater Manchester Combined Authority," 2,620.62 "
Laerdal Medical Ltd,29/10/2020,Indirect Employee Allowances,Other Training Expenses,Greater Manchester Combined Authority," 2,621.00 "
STS Cleaning Equipment,06/10/2020,Premises Related Expenditure,Fixtures & Fittings,Greater Manchester Combined Authority," 2,622.00 "
STS Cleaning Equipment,13/11/2020,Premises Related Expenditure,Fixtures & Fittings,Greater Manchester Combined Authority," 2,622.00 "
STS Cleaning Equipment,13/11/2020,Premises Related Expenditure,Fixtures & Fittings,Greater Manchester Combined Authority," 2,622.00 "
STS Cleaning Equipment,16/11/2020,Premises Related Expenditure,Fixtures & Fittings,Greater Manchester Combined Authority," 2,622.00 "
NPOWER YORKSHIRE LTD,23/12/2020,Premises Related Expenditure,Electricity,Greater Manchester Combined Authority," 2,647.14 "
NPOWER YORKSHIRE LTD,23/12/2020,Premises Related Expenditure,Electricity,Greater Manchester Combined Authority," 2,647.14 "
Manchester City Council,28/10/2020,Premises Related Expenditure,Rates,Greater Manchester Combined Authority," 2,662.00 "
Manchester City Council,30/11/2020,Premises Related Expenditure,Rates,Greater Manchester Combined Authority," 2,662.00 "
Manchester City Council,29/12/2020,Premises Related Expenditure,Rates,Greater Manchester Combined Authority," 2,662.00 "
VODAFONE HQ,22/10/2020,"Supplies, Services & Other Expenses",Outsourced Services IT,Greater Manchester Combined Authority," 2,664.52 "
Manchester City Council,23/11/2020,Premises Related Expenditure,Rates,Greater Manchester Combined Authority," 2,676.00 "
Manchester City Council,21/10/2020,Premises Related Expenditure,Rates,Greater Manchester Combined Authority," 2,676.00 "
Manchester City Council,21/12/2020,Premises Related Expenditure,Rates,Greater Manchester Combined Authority," 2,676.00 "
Gv Multi-Media,20/11/2020,"Supplies, Services & Other Expenses",Computer Hardware,Greater Manchester Combined Authority," 2,699.00 "
John Gaffney,23/10/2020,Premises Related Expenditure,Responsive Repairs & Maintenance,Greater Manchester Combined Authority," 2,700.00 "
STS Cleaning Equipment,19/10/2020,Premises Related Expenditure,Fixtures & Fittings,Greater Manchester Combined Authority," 2,700.00 "
Water Plus Limited,04/11/2020,Premises Related Expenditure,Metered Water,Greater Manchester Combined Authority," 2,703.30 "
Fire Service College LTD,17/12/2020,Indirect Employee Allowances,Training Course Fees,Greater Manchester Combined Authority," 2,718.00 "
Bolton MBC,08/10/2020,Premises Related Expenditure,Rates,Greater Manchester Combined Authority," 2,739.00 "
Bolton MBC,09/11/2020,Premises Related Expenditure,Rates,Greater Manchester Combined Authority," 2,739.00 "
Bolton MBC,08/12/2020,Premises Related Expenditure,Rates,Greater Manchester Combined Authority," 2,739.00 "
Manchester City Council,28/10/2020,Premises Related Expenditure,Rates,Greater Manchester Combined Authority," 2,746.00 "
Manchester City Council,30/11/2020,Premises Related Expenditure,Rates,Greater Manchester Combined Authority," 2,746.00 "
Manchester City Council,29/12/2020,Premises Related Expenditure,Rates,Greater Manchester Combined Authority," 2,746.00 "
GML Joinery and Construction LLP,05/10/2020,Capital,Estates Capital Contracts,Greater Manchester Combined Authority," 2,750.00 "
John Gaffney,01/12/2020,Premises Related Expenditure,Responsive Repairs & Maintenance,Greater Manchester Combined Authority," 2,750.00 "
Savills (UK) Limited,23/12/2020,"Supplies, Services & Other Expenses",Professional Fees,Greater Manchester Combined Authority," 2,750.00 "
Trident Crisis Solutions Ltd,04/12/2020,"Supplies, Services & Other Expenses",Professional Fees,Greater Manchester Combined Authority," 2,750.00 "
Trident Crisis Solutions Ltd,22/12/2020,"Supplies, Services & Other Expenses",Professional Fees,Greater Manchester Combined Authority," 2,750.00 "
WEIGHTMANS LLP,16/12/2020,"Supplies, Services & Other Expenses",Legal Liabilities,Greater Manchester Combined Authority," 2,754.00 "
TFGM,16/12/2020,"Supplies, Services & Other Expenses",Traffic Signal Repairs,Greater Manchester Combined Authority," 2,764.63 "
ANGUS FIRE LTD,18/12/2020,Capital,Capital Equipment,Greater Manchester Combined Authority," 2,772.90 "
TFGM,22/10/2020,Capital,Traffic Signals,Greater Manchester Combined Authority," 2,782.05 "
TFGM,16/12/2020,"Supplies, Services & Other Expenses",Traffic Signal Repairs,Greater Manchester Combined Authority," 2,813.61 "
Healthwork,20/10/2020,Indirect Employee Allowances,Medical Fees,Greater Manchester Combined Authority," 2,820.00 "
J Fletcher (Engineers) Ltd,16/10/2020,Premises Related Expenditure,Responsive Repairs & Maintenance,Greater Manchester Combined Authority," 2,830.00 "
TFGM,16/12/2020,"Supplies, Services & Other Expenses",Traffic Signal Repairs,Greater Manchester Combined Authority," 2,838.53 "
BKSB Ltd,26/11/2020,Indirect Employee Allowances,Other Training Expenses,Greater Manchester Combined Authority," 2,843.50 "
Gv Multi-Media,20/10/2020,"Supplies, Services & Other Expenses",Computer Hardware,Greater Manchester Combined Authority," 2,848.00 "
IKG Consulting Limited,04/11/2020,"Supplies, Services & Other Expenses",Consultancy Fees,Greater Manchester Combined Authority," 2,850.00 "
TFGM,22/10/2020,Capital,Traffic Signals,Greater Manchester Combined Authority," 2,860.00 "
TFGM,22/10/2020,Capital,Traffic Signals,Greater Manchester Combined Authority," 2,860.00 "
TFGM,22/10/2020,Capital,Traffic Signals,Greater Manchester Combined Authority," 2,860.00 "
TFGM,16/12/2020,Capital,Traffic Signals,Greater Manchester Combined Authority," 2,860.00 "
TFGM,16/12/2020,Capital,Traffic Signals,Greater Manchester Combined Authority," 2,860.00 "
TFGM,17/12/2020,Capital,Traffic Signals,Greater Manchester Combined Authority," 2,860.00 "
TFGM,17/12/2020,Capital,Traffic Signals,Greater Manchester Combined Authority," 2,860.00 "
TFGM,17/12/2020,Capital,Traffic Signals,Greater Manchester Combined Authority," 2,860.00 "
TFGM,17/12/2020,Capital,Traffic Signals,Greater Manchester Combined Authority," 2,860.00 "
OLDHAM MET BOROUGH,26/10/2020,Premises Related Expenditure,Rates,Greater Manchester Combined Authority," 2,867.00 "
OLDHAM MET BOROUGH,24/11/2020,Premises Related Expenditure,Rates,Greater Manchester Combined Authority," 2,867.00 "
OLDHAM MET BOROUGH,24/12/2020,Premises Related Expenditure,Rates,Greater Manchester Combined Authority," 2,867.00 "
Stockport Without Abuse,10/11/2020,"Supplies, Services & Other Expenses",Grant Expenditure,Greater Manchester Combined Authority," 2,869.00 "
VODAFONE HQ,15/10/2020,"Supplies, Services & Other Expenses",Outsourced Services IT,Greater Manchester Combined Authority," 2,879.24 "
K LAMB ASSOCIATES LTD,14/12/2020,Indirect Employee Allowances,Training Course Fees,Greater Manchester Combined Authority," 2,900.00 "
TFGM,22/10/2020,Capital,Traffic Signals,Greater Manchester Combined Authority," 2,909.88 "
NPOWER YORKSHIRE LTD,23/12/2020,Premises Related Expenditure,Electricity,Greater Manchester Combined Authority," 2,919.75 "
NPOWER YORKSHIRE LTD,23/12/2020,Premises Related Expenditure,Electricity,Greater Manchester Combined Authority," 2,919.75 "
VODAFONE HQ,15/10/2020,"Supplies, Services & Other Expenses",Outsourced Services IT,Greater Manchester Combined Authority," 2,922.84 "
Corpstar Investments Ltd T/a Logotech Systems,17/12/2020,"Supplies, Services & Other Expenses",Computer Software,Greater Manchester Combined Authority," 2,925.00 "
SFJ Awards,19/11/2020,Indirect Employee Allowances,Training Course Fees,Greater Manchester Combined Authority," 2,925.00 "
Booth Centre,18/12/2020,"Supplies, Services & Other Expenses",Professional Fees,Greater Manchester Combined Authority," 2,945.00 "
GUARDIAN TECHNICAL MAINTENANCE LTD,23/11/2020,Premises Related Expenditure,Programmed Repairs & Maintenance,Greater Manchester Combined Authority," 2,967.24 "
SSL247 Limited,03/12/2020,"Supplies, Services & Other Expenses",Computer Software,Greater Manchester Combined Authority," 2,970.00 "
TAMESIDE MBC,01/10/2020,Premises Related Expenditure,Rates,Greater Manchester Combined Authority," 2,970.00 "
TAMESIDE MBC,02/11/2020,Premises Related Expenditure,Rates,Greater Manchester Combined Authority," 2,970.00 "
TAMESIDE MBC,01/12/2020,Premises Related Expenditure,Rates,Greater Manchester Combined Authority," 2,970.00 "
Embridge Consulting (UK) Ltd,16/12/2020,Capital,ICT Implementation Consultancy Costs,Greater Manchester Combined Authority," 2,979.50 "
Virgin Media Business Limited,01/12/2020,"Supplies, Services & Other Expenses",Outsourced Services IT,Greater Manchester Combined Authority," 2,980.84 "
TFGM,20/11/2020,Capital,Capital Grant Expenditure,Greater Manchester Combined Authority," 2,984.13 "
Badger and Combes,03/12/2020,"Supplies, Services & Other Expenses",Events,Greater Manchester Combined Authority," 3,000.00 "
Droman Ltd,17/12/2020,"Supplies, Services & Other Expenses",Consultancy Fees,Greater Manchester Combined Authority," 3,000.00 "
Hornbill Service Management Ltd,11/12/2020,"Supplies, Services & Other Expenses",Computer Software,Greater Manchester Combined Authority," 3,000.00 "
SafeNet Domestic Abuse Services,10/11/2020,"Supplies, Services & Other Expenses",Grant Expenditure,Greater Manchester Combined Authority," 3,001.00 "
Reed Specialist Recruitment Ltd,26/10/2020,Employees Pay,Agency Staff Costs,Greater Manchester Combined Authority," 3,015.02 "
SThree Partnership LLP,08/10/2020,Employees Pay,Agency Staff Costs,Greater Manchester Combined Authority," 3,028.80 "
SThree Partnership LLP,08/10/2020,Employees Pay,Agency Staff Costs,Greater Manchester Combined Authority," 3,028.80 "
SThree Partnership LLP,13/10/2020,Employees Pay,Agency Staff Costs,Greater Manchester Combined Authority," 3,028.80 "
SThree Partnership LLP,15/10/2020,Employees Pay,Agency Staff Costs,Greater Manchester Combined Authority," 3,028.80 "
SThree Partnership LLP,13/11/2020,Employees Pay,Agency Staff Costs,Greater Manchester Combined Authority," 3,028.80 "
Total People Ltd,16/10/2020,"Supplies, Services & Other Expenses",Commissioned Services,Greater Manchester Combined Authority," 3,071.73 "
Tameside College,13/11/2020,"Supplies, Services & Other Expenses",Grant Expenditure,Greater Manchester Combined Authority," 3,074.75 "
TFGM,22/10/2020,Capital,Traffic Signals,Greater Manchester Combined Authority," 3,080.00 "
TFGM,24/11/2020,"Supplies, Services & Other Expenses",Traffic Signal Repairs,Greater Manchester Combined Authority," 3,088.74 "
TFGM,16/12/2020,"Supplies, Services & Other Expenses",Traffic Signal Repairs,Greater Manchester Combined Authority," 3,093.86 "
Manchester City Council,02/12/2020,"Supplies, Services & Other Expenses",Management Fees,Greater Manchester Combined Authority," 3,114.78 "
Salford City Council,17/11/2020,Premises Related Expenditure,Rent,Greater Manchester Combined Authority," 3,125.00 "
Salford City Council,17/11/2020,Premises Related Expenditure,Rent,Greater Manchester Combined Authority," 3,125.00 "
Salford City Council,18/12/2020,Premises Related Expenditure,Rent,Greater Manchester Combined Authority," 3,125.00 "
DWF LLP,08/10/2020,"Supplies, Services & Other Expenses",Professional Fees,Greater Manchester Combined Authority," 3,127.00 "
Imprana Ltd,10/11/2020,"Supplies, Services & Other Expenses",Consultancy Fees,Greater Manchester Combined Authority," 3,171.87 "
Ashdown Phillips & Partners,26/11/2020,Premises Related Expenditure,Electricity,Greater Manchester Combined Authority," 3,204.97 "
Ashdown Phillips & Partners,26/11/2020,Premises Related Expenditure,Electricity,Greater Manchester Combined Authority," 3,204.97 "
GODIVA LTD,07/10/2020,Transport Related Expenditure,Repairs and Maintenance - Transport,Greater Manchester Combined Authority," 3,206.61 "
NW Fire Control Ltd,19/11/2020,"Supplies, Services & Other Expenses",Outsourced Regional Control,Greater Manchester Combined Authority," 3,219.67 "
TFGM,18/11/2020,Capital,Capital Grant Expenditure,Greater Manchester Combined Authority," 3,225.00 "
NPOWER YORKSHIRE LTD,23/12/2020,Premises Related Expenditure,Electricity,Greater Manchester Combined Authority," 3,232.85 "
NPOWER YORKSHIRE LTD,23/12/2020,Premises Related Expenditure,Electricity,Greater Manchester Combined Authority," 3,232.85 "
Healthwork,23/12/2020,Indirect Employee Allowances,Medical Fees,Greater Manchester Combined Authority," 3,240.00 "
TRAFFORD MBC,01/10/2020,Premises Related Expenditure,Rates,Greater Manchester Combined Authority," 3,247.00 "
LAC AIR CONDITIONING LTD,18/11/2020,Premises Related Expenditure,Responsive Repairs & Maintenance,Greater Manchester Combined Authority," 3,248.20 "
GML Joinery and Construction LLP,11/11/2020,Capital,Estates Capital Contracts,Greater Manchester Combined Authority," 3,250.00 "
JWO Consulting Ltd,30/11/2020,"Supplies, Services & Other Expenses",Consultancy Fees,Greater Manchester Combined Authority," 3,250.00 "
MIDAS,13/10/2020,Employees Pay,Seconded Employee Cost,Greater Manchester Combined Authority," 3,250.25 "
MIDAS,13/10/2020,Employees Pay,Seconded Employee Cost,Greater Manchester Combined Authority," 3,250.25 "
Badger and Combes,27/10/2020,"Supplies, Services & Other Expenses",Digital,Greater Manchester Combined Authority," 3,260.00 "
Chemsol Ltd,09/10/2020,"Supplies, Services & Other Expenses",Operational Equipment Non-Consumables,Greater Manchester Combined Authority," 3,279.14 "
Dalbergia Group Limited,08/10/2020,"Supplies, Services & Other Expenses",Professional Fees,Greater Manchester Combined Authority," 3,300.00 "
TFGM,22/10/2020,Capital,Traffic Signals,Greater Manchester Combined Authority," 3,300.00 "
TFGM,22/10/2020,Capital,Traffic Signals,Greater Manchester Combined Authority," 3,300.00 "
TFGM,17/12/2020,Capital,Traffic Signals,Greater Manchester Combined Authority," 3,300.00 "
TFGM,18/11/2020,Capital,Capital Grant Expenditure,Greater Manchester Combined Authority," 3,313.80 "
TFGM,02/12/2020,Capital,Capital Grant Expenditure,Greater Manchester Combined Authority," 3,341.83 "
Glazerite Windows Limited,05/11/2020,Capital,Estates Capital Contracts,Greater Manchester Combined Authority," 3,342.65 "
Water Plus Limited,04/11/2020,Premises Related Expenditure,Metered Water,Greater Manchester Combined Authority," 3,343.03 "
Billi UK LLP,16/10/2020,Premises Related Expenditure,Programmed Repairs & Maintenance,Greater Manchester Combined Authority," 3,345.00 "
Building Research Establishment Limited (BRE),07/12/2020,Indirect Employee Allowances,Devolved Training,Greater Manchester Combined Authority," 3,349.00 "
RADIOCOMS SYSTEMS LIMITED,06/10/2020,"Supplies, Services & Other Expenses",Other Communications Equipment,Greater Manchester Combined Authority," 3,357.00 "
OLDHAM MET BOROUGH,26/10/2020,Premises Related Expenditure,Rates,Greater Manchester Combined Authority," 3,379.00 "
OLDHAM MET BOROUGH,24/11/2020,Premises Related Expenditure,Rates,Greater Manchester Combined Authority," 3,379.00 "
OLDHAM MET BOROUGH,24/12/2020,Premises Related Expenditure,Rates,Greater Manchester Combined Authority," 3,379.00 "
Aligned Assets Ltd,09/10/2020,"Supplies, Services & Other Expenses",Computer Software,Greater Manchester Combined Authority," 3,381.28 "
Peopletoo Ltd,05/11/2020,"Supplies, Services & Other Expenses",Consultancy Fees,Greater Manchester Combined Authority," 3,400.00 "
Telefonica UK Ltd (O2),13/10/2020,"Supplies, Services & Other Expenses",Outsourced Services IT,Greater Manchester Combined Authority," 3,420.00 "
WIGAN MBC,13/11/2020,"Supplies, Services & Other Expenses",Grant Expenditure,Greater Manchester Combined Authority," 3,420.95 "
Ashdown Phillips & Partners,21/12/2020,Premises Related Expenditure,Electricity,Greater Manchester Combined Authority," 3,422.77 "
Ashdown Phillips & Partners,21/12/2020,Premises Related Expenditure,Electricity,Greater Manchester Combined Authority," 3,422.77 "
Healthwork,23/12/2020,Indirect Employee Allowances,Medical Fees,Greater Manchester Combined Authority," 3,444.00 "
Robertson Cooper Limited,16/12/2020,Indirect Employee Allowances,Training Course Fees,Greater Manchester Combined Authority," 3,485.00 "
University of Central Lancashire,26/10/2020,Indirect Employee Allowances,Devolved Training,Greater Manchester Combined Authority," 3,487.50 "
Glorious Creative Limited,11/11/2020,"Supplies, Services & Other Expenses",Advertising,Greater Manchester Combined Authority," 3,500.00 "
Landmark Chambers,16/12/2020,"Supplies, Services & Other Expenses",Professional Fees,Greater Manchester Combined Authority," 3,500.00 "
Modern Designers,18/11/2020,"Supplies, Services & Other Expenses",Professional Fees,Greater Manchester Combined Authority," 3,500.00 "
Standard Fuel Oils,19/11/2020,Transport Related Expenditure,Fuel,Greater Manchester Combined Authority," 3,502.15 "
TAMESIDE MBC,03/12/2020,"Supplies, Services & Other Expenses",Contributions to ED&R Functions,Greater Manchester Combined Authority," 3,527.22 "
SQEPtech Ltd,02/10/2020,Indirect Employee Allowances,Other Training Expenses,Greater Manchester Combined Authority," 3,529.00 "
Schofield & Sons Limited,02/10/2020,Premises Related Expenditure,Fixtures & Fittings,Greater Manchester Combined Authority," 3,554.33 "
Stockport MBC,18/11/2020,Capital,Capital Grant Expenditure,Greater Manchester Combined Authority," 3,558.01 "
NPOWER YORKSHIRE LTD,23/12/2020,Premises Related Expenditure,Electricity,Greater Manchester Combined Authority," 3,566.10 "
NPOWER YORKSHIRE LTD,23/12/2020,Premises Related Expenditure,Electricity,Greater Manchester Combined Authority," 3,566.10 "
DLA Piper UK LLP,10/11/2020,"Supplies, Services & Other Expenses",Legal Liabilities,Greater Manchester Combined Authority," 3,570.00 "
DWF LLP,25/11/2020,"Supplies, Services & Other Expenses",Professional Fees,Greater Manchester Combined Authority," 3,570.00 "
THE FIRE PROTECTION ASSOCIATION,05/11/2020,Indirect Employee Allowances,Devolved Training,Greater Manchester Combined Authority," 3,580.00 "
East Sussex County Council,26/11/2020,"Supplies, Services & Other Expenses",Grant Expenditure,Greater Manchester Combined Authority," 3,600.00 "
TFGM,16/12/2020,Capital,Traffic Signals,Greater Manchester Combined Authority," 3,600.00 "
Manchester City Council,28/10/2020,Premises Related Expenditure,Rates,Greater Manchester Combined Authority," 3,635.00 "
Manchester City Council,30/11/2020,Premises Related Expenditure,Rates,Greater Manchester Combined Authority," 3,635.00 "
Manchester City Council,29/12/2020,Premises Related Expenditure,Rates,Greater Manchester Combined Authority," 3,635.00 "
NW Fire Control Ltd,19/11/2020,"Supplies, Services & Other Expenses",Outsourced Regional Control,Greater Manchester Combined Authority," 3,641.48 "
NW Fire Control Ltd,22/12/2020,"Supplies, Services & Other Expenses",Outsourced Regional Control,Greater Manchester Combined Authority," 3,641.48 "
NPOWER YORKSHIRE LTD,23/12/2020,Premises Related Expenditure,Electricity,Greater Manchester Combined Authority," 3,672.73 "
NPOWER YORKSHIRE LTD,23/12/2020,Premises Related Expenditure,Electricity,Greater Manchester Combined Authority," 3,672.73 "
TFGM,22/10/2020,Capital,Traffic Signals,Greater Manchester Combined Authority," 3,686.17 "
Eck Civil Engineering Ltd,16/11/2020,Premises Related Expenditure,Waste Site Programmed,Greater Manchester Combined Authority," 3,730.00 "
TAMESIDE MBC,01/10/2020,Premises Related Expenditure,Rates,Greater Manchester Combined Authority," 3,738.00 "
TAMESIDE MBC,02/11/2020,Premises Related Expenditure,Rates,Greater Manchester Combined Authority," 3,738.00 "
TAMESIDE MBC,01/12/2020,Premises Related Expenditure,Rates,Greater Manchester Combined Authority," 3,738.00 "
Pennine Medical Supplies Ltd T/A Pennine Workwear,20/10/2020,"Supplies, Services & Other Expenses",PPE Maintenance,Greater Manchester Combined Authority," 3,739.74 "
John Gaffney,26/10/2020,Premises Related Expenditure,Programmed Repairs & Maintenance,Greater Manchester Combined Authority," 3,750.00 "
John Gaffney,01/12/2020,Premises Related Expenditure,Responsive Repairs & Maintenance,Greater Manchester Combined Authority," 3,750.00 "
TFGM,22/10/2020,Capital,Traffic Signals,Greater Manchester Combined Authority," 3,750.00 "
The Knowledge Academy Ltd,04/11/2020,Indirect Employee Allowances,Training Course Fees,Greater Manchester Combined Authority," 3,750.00 "
Telent Technology Services Ltd,06/10/2020,"Supplies, Services & Other Expenses",Other Communications Equipment,Greater Manchester Combined Authority," 3,756.83 "
Telent Technology Services Ltd,12/11/2020,"Supplies, Services & Other Expenses",Other Communications Equipment,Greater Manchester Combined Authority," 3,756.83 "
Telent Technology Services Ltd,10/12/2020,"Supplies, Services & Other Expenses",Other Communications Equipment,Greater Manchester Combined Authority," 3,756.83 "
Homeless Link,22/10/2020,Employees Pay,Seconded Employee Cost,Greater Manchester Combined Authority," 3,763.34 "
Homeless Link,22/10/2020,Employees Pay,Seconded Employee Cost,Greater Manchester Combined Authority," 3,763.34 "
Homeless Link,22/10/2020,Employees Pay,Seconded Employee Cost,Greater Manchester Combined Authority," 3,763.34 "
Tameside College,14/10/2020,"Supplies, Services & Other Expenses",Grant Expenditure,Greater Manchester Combined Authority," 3,765.26 "
TFGM,24/11/2020,"Supplies, Services & Other Expenses",Traffic Signal Repairs,Greater Manchester Combined Authority," 3,773.05 "
Aquaspeed Drain Services LLP,07/10/2020,Premises Related Expenditure,Responsive Repairs & Maintenance,Greater Manchester Combined Authority," 3,801.00 "
TFGM,16/12/2020,"Supplies, Services & Other Expenses",Traffic Signal Repairs,Greater Manchester Combined Authority," 3,846.60 "
DELL COMPUTER CORPORATION LTD,25/11/2020,"Supplies, Services & Other Expenses",Computer Hardware,Greater Manchester Combined Authority," 3,906.00 "
Cirrus Research PLC,24/12/2020,Indirect Employee Allowances,Medical Fees,Greater Manchester Combined Authority," 3,910.85 "
STALYBRIDGE AUTO SALVAGE LTD,08/12/2020,Indirect Employee Allowances,Other Training Expenses,Greater Manchester Combined Authority," 3,916.00 "
East Lancashire Chamber of Commerce & Industry,10/11/2020,Indirect Employee Allowances,Devolved Training,Greater Manchester Combined Authority," 3,920.00 "
PROFESSIONAL PEST SERVICES,26/11/2020,Premises Related Expenditure,Programmed Repairs & Maintenance,Greater Manchester Combined Authority," 3,925.00 "
Rochdale Women�s Welfare Association,25/11/2020,"Supplies, Services & Other Expenses",Grant Expenditure,Greater Manchester Combined Authority," 3,945.00 "
"Department for Environment, Food & Rural Affairs",06/11/2020,Employees Pay,Seconded Employee Cost,Greater Manchester Combined Authority," 3,945.89 "
GML Joinery and Construction LLP,06/10/2020,Capital,Estates Capital Contracts,Greater Manchester Combined Authority," 3,950.00 "
Shaping Cloud Limited,18/11/2020,"Supplies, Services & Other Expenses",Professional Fees,Greater Manchester Combined Authority," 3,950.00 "
Shaping Cloud Limited,18/11/2020,"Supplies, Services & Other Expenses",Professional Fees,Greater Manchester Combined Authority," 3,950.00 "
Shaping Cloud Limited,18/11/2020,"Supplies, Services & Other Expenses",Professional Fees,Greater Manchester Combined Authority," 3,950.00 "
WIGAN MBC,15/10/2020,"Supplies, Services & Other Expenses",Grant Expenditure,Greater Manchester Combined Authority," 3,963.50 "
Bolton MBC,26/10/2020,Premises Related Expenditure,Rates,Greater Manchester Combined Authority," 3,968.00 "
Bolton MBC,25/11/2020,Premises Related Expenditure,Rates,Greater Manchester Combined Authority," 3,968.00 "
Bolton MBC,29/12/2020,Premises Related Expenditure,Rates,Greater Manchester Combined Authority," 3,968.00 "
Standard Fuel Oils,27/11/2020,Transport Related Expenditure,Fuel,Greater Manchester Combined Authority," 3,984.33 "
GML Joinery and Construction LLP,19/10/2020,Premises Related Expenditure,Responsive Repairs & Maintenance,Greater Manchester Combined Authority," 3,988.00 "
Badger and Combes,17/12/2020,Indirect Employee Allowances,Other Training Expenses,Greater Manchester Combined Authority," 4,000.00 "
Closer Commissioning Ltd,12/10/2020,"Supplies, Services & Other Expenses",Commissioned Services,Greater Manchester Combined Authority," 4,000.00 "
Closer Commissioning Ltd,16/12/2020,"Supplies, Services & Other Expenses",Consultancy Fees,Greater Manchester Combined Authority," 4,000.00 "
Co-operative Group Limited,20/10/2020,"Supplies, Services & Other Expenses",Commissioned Services,Greater Manchester Combined Authority," 4,000.00 "
Emergency One (UK) Ltd,16/12/2020,Transport Related Expenditure,Vehicle Leasing,Greater Manchester Combined Authority," 4,000.00 "
Emergency One (UK) Ltd,16/12/2020,Transport Related Expenditure,Vehicle Leasing,Greater Manchester Combined Authority," 4,000.00 "
Justice and Care,30/10/2020,"Supplies, Services & Other Expenses",Partnerships,Greater Manchester Combined Authority," 4,000.00 "
Social Finance Limited,12/10/2020,"Supplies, Services & Other Expenses",Consultancy Fees,Greater Manchester Combined Authority," 4,000.00 "
St Georges Day Centre (Bolton) Ltd,10/11/2020,"Supplies, Services & Other Expenses",Grant Expenditure,Greater Manchester Combined Authority," 4,050.00 "
Health Assured,22/12/2020,Indirect Employee Allowances,Medical Fees,Greater Manchester Combined Authority," 4,056.78 "
TFGM,22/10/2020,Capital,Traffic Signals,Greater Manchester Combined Authority," 4,071.93 "
TFGM,22/10/2020,Capital,Traffic Signals,Greater Manchester Combined Authority," 4,072.35 "
Ashdown Phillips & Partners,21/12/2020,Premises Related Expenditure,Electricity,Greater Manchester Combined Authority," 4,093.54 "
Ashdown Phillips & Partners,21/12/2020,Premises Related Expenditure,Electricity,Greater Manchester Combined Authority," 4,093.54 "
Back 2 Work Complete Training Ltd,16/10/2020,"Supplies, Services & Other Expenses",Commissioned Services,Greater Manchester Combined Authority," 4,101.79 "
TFGM,22/10/2020,Capital,Traffic Signals,Greater Manchester Combined Authority," 4,114.81 "
Interoute Networks Limited,25/11/2020,"Supplies, Services & Other Expenses",Outsourced Services IT,Greater Manchester Combined Authority," 4,125.00 "
Breakthrough UK Ltd,09/11/2020,"Supplies, Services & Other Expenses",Commissioned Services,Greater Manchester Combined Authority," 4,137.00 "
TFGM,17/12/2020,Capital,Traffic Signals,Greater Manchester Combined Authority," 4,140.68 "
WIGAN MBC,14/10/2020,"Supplies, Services & Other Expenses",Grant Expenditure,Greater Manchester Combined Authority," 4,189.21 "
Street Support Network Limited,01/10/2020,"Supplies, Services & Other Expenses",Professional Fees,Greater Manchester Combined Authority," 4,200.00 "
Wigan & Leigh College,15/10/2020,"Supplies, Services & Other Expenses",Grant Expenditure,Greater Manchester Combined Authority," 4,218.72 "
Land Use Consultants Limited,04/12/2020,"Supplies, Services & Other Expenses",Consultancy Fees,Greater Manchester Combined Authority," 4,237.50 "
DH Welton & Co Ltd,20/11/2020,Premises Related Expenditure,Programmed Repairs & Maintenance,Greater Manchester Combined Authority," 4,241.00 "
NPOWER YORKSHIRE LTD,23/12/2020,Premises Related Expenditure,Electricity,Greater Manchester Combined Authority," 4,248.47 "
NPOWER YORKSHIRE LTD,23/12/2020,Premises Related Expenditure,Electricity,Greater Manchester Combined Authority," 4,248.47 "
GML Joinery and Construction LLP,05/10/2020,Capital,ICT Capital Hardware,Greater Manchester Combined Authority," 4,250.00 "
K LAMB ASSOCIATES LTD,30/11/2020,Indirect Employee Allowances,Training Course Fees,Greater Manchester Combined Authority," 4,250.00 "
Peopletoo Ltd,05/11/2020,"Supplies, Services & Other Expenses",Consultancy Fees,Greater Manchester Combined Authority," 4,250.00 "
TFGM,16/12/2020,Capital,Traffic Signals,Greater Manchester Combined Authority," 4,300.00 "
Lindum Packaging,08/10/2020,"Supplies, Services & Other Expenses",PPE Maintenance,Greater Manchester Combined Authority," 4,314.32 "
WIGAN MBC,01/10/2020,Premises Related Expenditure,Rates,Greater Manchester Combined Authority," 4,326.00 "
WIGAN MBC,02/11/2020,Premises Related Expenditure,Rates,Greater Manchester Combined Authority," 4,326.00 "
WIGAN MBC,01/12/2020,Premises Related Expenditure,Rates,Greater Manchester Combined Authority," 4,326.00 "
Maximus UK Services Ltd,17/12/2020,"Supplies, Services & Other Expenses",Commissioned Services,Greater Manchester Combined Authority," 4,327.11 "
DELL COMPUTER CORPORATION LTD,25/11/2020,"Supplies, Services & Other Expenses",Computer Hardware,Greater Manchester Combined Authority," 4,363.15 "
System Group Ltd,19/11/2020,"Supplies, Services & Other Expenses",Commissioned Services,Greater Manchester Combined Authority," 4,368.15 "
COMMON CAUSE FOUNDATION,18/12/2020,"Supplies, Services & Other Expenses",Professional Fees,Greater Manchester Combined Authority," 4,390.00 "
Virgin Media Business Limited,15/10/2020,"Supplies, Services & Other Expenses",Outsourced Services IT,Greater Manchester Combined Authority," 4,396.00 "
Guardian Electrical Compliance Ltd,07/10/2020,Premises Related Expenditure,Programmed Repairs & Maintenance,Greater Manchester Combined Authority," 4,400.00 "
Strongs Plastic Products Ltd,10/11/2020,Transport Related Expenditure,Repairs and Maintenance - Transport,Greater Manchester Combined Authority," 4,412.40 "
Pioneer Print Solutions,29/10/2020,"Supplies, Services & Other Expenses",Advertising,Greater Manchester Combined Authority," 4,460.00 "
Action Together CIO,18/12/2020,"Supplies, Services & Other Expenses",Grant Expenditure,Greater Manchester Combined Authority," 4,500.00 "
CIPFA BUSINESS LTD,19/11/2020,Indirect Employee Allowances,Training Course Fees,Greater Manchester Combined Authority," 4,500.00 "
DJS Research Limited,03/12/2020,"Supplies, Services & Other Expenses",Commissioned Services,Greater Manchester Combined Authority," 4,500.00 "
Gunnercooke LLP,04/12/2020,"Supplies, Services & Other Expenses",Legal Liabilities,Greater Manchester Combined Authority," 4,500.00 "
Quadrant Security Group Limited,09/10/2020,Premises Related Expenditure,Programmed Repairs & Maintenance,Greater Manchester Combined Authority," 4,527.78 "
Quadrant Security Group Limited,16/11/2020,Premises Related Expenditure,Programmed Repairs & Maintenance,Greater Manchester Combined Authority," 4,527.78 "
Quadrant Security Group Limited,10/12/2020,Premises Related Expenditure,Programmed Repairs & Maintenance,Greater Manchester Combined Authority," 4,527.78 "
Leeds Arts University,19/11/2020,"Supplies, Services & Other Expenses",Commissioned Services,Greater Manchester Combined Authority," 4,528.00 "
TFGM,17/12/2020,Capital,Traffic Signals,Greater Manchester Combined Authority," 4,600.00 "
TFGM,17/12/2020,Capital,Traffic Signals,Greater Manchester Combined Authority," 4,600.00 "
TFGM,16/12/2020,"Supplies, Services & Other Expenses",Traffic Signal Repairs,Greater Manchester Combined Authority," 4,607.51 "
Organisation for Economic Co-Operation and Development,07/12/2020,"Supplies, Services & Other Expenses",Subscriptions,Greater Manchester Combined Authority," 4,640.37 "
Central Power Services,26/10/2020,Premises Related Expenditure,Programmed Repairs & Maintenance,Greater Manchester Combined Authority," 4,646.57 "
TFGM,24/11/2020,Capital,Traffic Signals,Greater Manchester Combined Authority," 4,650.00 "
TFGM,02/12/2020,"Supplies, Services & Other Expenses",Grant Expenditure,Greater Manchester Combined Authority," 4,667.36 "
DRAEGER LTD,09/12/2020,"Supplies, Services & Other Expenses",Operational Equipment Non-Consumables,Greater Manchester Combined Authority," 4,719.00 "
Ashdown Phillips & Partners,21/12/2020,Premises Related Expenditure,Electricity,Greater Manchester Combined Authority," 4,729.16 "
Ashdown Phillips & Partners,21/12/2020,Premises Related Expenditure,Electricity,Greater Manchester Combined Authority," 4,729.16 "
Blackstone Chambers,09/11/2020,"Supplies, Services & Other Expenses",Professional Fees,Greater Manchester Combined Authority," 4,750.00 "
Healthwork,20/10/2020,Indirect Employee Allowances,Medical Fees,Greater Manchester Combined Authority," 4,752.00 "
John Gaffney,23/10/2020,Premises Related Expenditure,Responsive Repairs & Maintenance,Greater Manchester Combined Authority," 4,800.00 "
Standard Fuel Oils,15/11/2020,Transport Related Expenditure,Fuel,Greater Manchester Combined Authority," 4,801.05 "
Salford City Council,26/10/2020,Premises Related Expenditure,Rates,Greater Manchester Combined Authority," 4,813.00 "
Salford City Council,25/11/2020,Premises Related Expenditure,Rates,Greater Manchester Combined Authority," 4,813.00 "
Salford City Council,29/12/2020,Premises Related Expenditure,Rates,Greater Manchester Combined Authority," 4,813.00 "
Aquinas College,15/12/2020,"Supplies, Services & Other Expenses",Grant Expenditure,Greater Manchester Combined Authority," 4,850.33 "
JWO Consulting Ltd,04/12/2020,"Supplies, Services & Other Expenses",Consultancy Fees,Greater Manchester Combined Authority," 4,856.00 "
J Fletcher (Engineers) Ltd,02/11/2020,Premises Related Expenditure,Responsive Repairs & Maintenance,Greater Manchester Combined Authority," 4,870.00 "
J Fletcher (Engineers) Ltd,10/11/2020,Premises Related Expenditure,Responsive Repairs & Maintenance,Greater Manchester Combined Authority," 4,870.00 "
North West Environmental Services,30/12/2020,Premises Related Expenditure,Programmed Repairs & Maintenance,Greater Manchester Combined Authority," 4,870.00 "
Jane Shuttleworth Consultancy Limited,22/12/2020,"Supplies, Services & Other Expenses",Consultancy Fees,Greater Manchester Combined Authority," 4,875.00 "
Banner Group Ltd,08/10/2020,"Supplies, Services & Other Expenses",Stationery,Greater Manchester Combined Authority," 4,935.37 "
Central Power Services,04/12/2020,Premises Related Expenditure,Responsive Repairs & Maintenance,Greater Manchester Combined Authority," 4,961.72 "
TFGM,17/12/2020,"Supplies, Services & Other Expenses",Traffic Signal Repairs,Greater Manchester Combined Authority," 4,968.38 "
Cathcart Associates Limited,05/10/2020,Employees Pay,Agency Staff Costs,Greater Manchester Combined Authority," 4,973.00 "
STEPHEN NICOL ASSOCIATES LTD,28/10/2020,"Supplies, Services & Other Expenses",Consultancy Fees,Greater Manchester Combined Authority," 4,987.50 "
TFGM,02/12/2020,Capital,Capital Grant Expenditure,Greater Manchester Combined Authority," 4,988.70 "
Salford City Council,26/10/2020,Premises Related Expenditure,Rates,Greater Manchester Combined Authority," 4,992.00 "
Salford City Council,25/11/2020,Premises Related Expenditure,Rates,Greater Manchester Combined Authority," 4,992.00 "
Salford City Council,29/12/2020,Premises Related Expenditure,Rates,Greater Manchester Combined Authority," 4,992.00 "
DELL COMPUTER CORPORATION LTD,16/11/2020,"Supplies, Services & Other Expenses",Computer Hardware,Greater Manchester Combined Authority," 4,993.70 "
Heather Wardle Research Ltd,15/12/2020,"Supplies, Services & Other Expenses",Professional Fees,Greater Manchester Combined Authority," 4,995.00 "
2Novate,21/12/2020,"Supplies, Services & Other Expenses",Commissioned Services,Greater Manchester Combined Authority," 5,000.00 "
AdviseInc Ltd,09/10/2020,"Supplies, Services & Other Expenses",PPE Maintenance,Greater Manchester Combined Authority," 5,000.00 "
Behavioural Insights Ltd,04/11/2020,Indirect Employee Allowances,Training Course Fees,Greater Manchester Combined Authority," 5,000.00 "
BURY COUNCIL,20/11/2020,"Supplies, Services & Other Expenses",Grant Expenditure,Greater Manchester Combined Authority," 5,000.00 "
Buy Me Media,08/10/2020,"Supplies, Services & Other Expenses",Digital,Greater Manchester Combined Authority," 5,000.00 "
Buy Me Media,04/12/2020,"Supplies, Services & Other Expenses",Digital,Greater Manchester Combined Authority," 5,000.00 "
CORNERSTONE ONDEMAND LIMITED,11/12/2020,"Supplies, Services & Other Expenses",Computer Software,Greater Manchester Combined Authority," 5,000.00 "
DWF LLP,03/10/2020,"Supplies, Services & Other Expenses",Professional Fees,Greater Manchester Combined Authority," 5,000.00 "
Emergency One (UK) Ltd,03/11/2020,Transport Related Expenditure,Vehicle Leasing,Greater Manchester Combined Authority," 5,000.00 "
Empathy Northwest CIC,25/11/2020,"Supplies, Services & Other Expenses",Grant Expenditure,Greater Manchester Combined Authority," 5,000.00 "
Inclusive Learning Ltd t/a Skill Boosters,04/11/2020,Indirect Employee Allowances,Other Training Expenses,Greater Manchester Combined Authority," 5,000.00 "
Interworks Europe Ltd,06/10/2020,Indirect Employee Allowances,Training Course Fees,Greater Manchester Combined Authority," 5,000.00 "
Jason Bergen,02/12/2020,"Supplies, Services & Other Expenses",Professional Fees,Greater Manchester Combined Authority," 5,000.00 "
QA LTD,30/11/2020,Indirect Employee Allowances,IT Training,Greater Manchester Combined Authority," 5,000.00 "
TRAFFORD MBC,04/12/2020,"Supplies, Services & Other Expenses",Grant Expenditure,Greater Manchester Combined Authority," 5,000.00 "
Wood Environment & Infastructure Solutions UK Limited,13/10/2020,"Supplies, Services & Other Expenses",Consultancy Fees,Greater Manchester Combined Authority," 5,000.00 "
Youthfocus NW Ltd,09/11/2020,"Supplies, Services & Other Expenses",Professional Fees,Greater Manchester Combined Authority," 5,000.00 "
"Department for Environment, Food & Rural Affairs",06/11/2020,Employees Pay,Seconded Employee Cost,Greater Manchester Combined Authority," 5,033.15 "
DELL COMPUTER CORPORATION LTD,13/10/2020,"Supplies, Services & Other Expenses",Computer Hardware,Greater Manchester Combined Authority," 5,043.14 "
DELL COMPUTER CORPORATION LTD,30/12/2020,"Supplies, Services & Other Expenses",Computer Hardware,Greater Manchester Combined Authority," 5,043.14 "
Central Power Services,05/11/2020,Premises Related Expenditure,Responsive Repairs & Maintenance,Greater Manchester Combined Authority," 5,059.46 "
TAMESIDE MBC,01/10/2020,Premises Related Expenditure,Rates,Greater Manchester Combined Authority," 5,069.00 "
TAMESIDE MBC,02/11/2020,Premises Related Expenditure,Rates,Greater Manchester Combined Authority," 5,069.00 "
TAMESIDE MBC,01/12/2020,Premises Related Expenditure,Rates,Greater Manchester Combined Authority," 5,069.00 "
Little Lion Research Ltd,19/10/2020,"Supplies, Services & Other Expenses",Grant Expenditure,Greater Manchester Combined Authority," 5,088.00 "
Standard Fuel Oils,16/11/2020,Transport Related Expenditure,Fuel,Greater Manchester Combined Authority," 5,098.60 "
Hopwood Hall College,17/12/2020,"Supplies, Services & Other Expenses",Grant Expenditure,Greater Manchester Combined Authority," 5,140.83 "
Marpol Security,05/10/2020,Premises Related Expenditure,Programmed Repairs & Maintenance,Greater Manchester Combined Authority," 5,147.00 "
Marpol Security,17/12/2020,Premises Related Expenditure,Programmed Repairs & Maintenance,Greater Manchester Combined Authority," 5,147.00 "
TAMESIDE MBC,01/10/2020,Premises Related Expenditure,Rates,Greater Manchester Combined Authority," 5,171.00 "
TAMESIDE MBC,02/11/2020,Premises Related Expenditure,Rates,Greater Manchester Combined Authority," 5,171.00 "
TAMESIDE MBC,01/12/2020,Premises Related Expenditure,Rates,Greater Manchester Combined Authority," 5,171.00 "
Housing LIN Enterprises Ltd,30/10/2020,"Supplies, Services & Other Expenses",Consultancy Fees,Greater Manchester Combined Authority," 5,200.00 "
JWO Consulting Ltd,02/10/2020,"Supplies, Services & Other Expenses",Consultancy Fees,Greater Manchester Combined Authority," 5,200.00 "
OLDHAM MET BOROUGH,26/10/2020,Premises Related Expenditure,Rates,Greater Manchester Combined Authority," 5,222.00 "
OLDHAM MET BOROUGH,24/11/2020,Premises Related Expenditure,Rates,Greater Manchester Combined Authority," 5,222.00 "
OLDHAM MET BOROUGH,24/12/2020,Premises Related Expenditure,Rates,Greater Manchester Combined Authority," 5,222.00 "
The Lettershop Group,21/12/2020,"Supplies, Services & Other Expenses",Postage,Greater Manchester Combined Authority," 5,229.56 "
TFGM,10/12/2020,Employees Pay,Seconded Employee Cost,Greater Manchester Combined Authority," 5,238.16 "
TFGM,11/12/2020,Employees Pay,Seconded Employee Cost,Greater Manchester Combined Authority," 5,238.16 "
K LAMB ASSOCIATES LTD,06/10/2020,Indirect Employee Allowances,Training Course Fees,Greater Manchester Combined Authority," 5,250.00 "
Marpol Security,05/10/2020,Premises Related Expenditure,Programmed Repairs & Maintenance,Greater Manchester Combined Authority," 5,257.00 "
Ideagen MK Ltd,20/10/2020,"Supplies, Services & Other Expenses",Computer Software,Greater Manchester Combined Authority," 5,258.27 "
TRAVELERS INSURANCE COMPANY LIMITED,23/12/2020,"Supplies, Services & Other Expenses",Insurance,Greater Manchester Combined Authority," 5,276.52 "
PROVENTURE CONSULTING LIMITED,25/11/2020,Indirect Employee Allowances,Training Course Fees,Greater Manchester Combined Authority," 5,279.20 "
Marpol Security,10/12/2020,Premises Related Expenditure,Programmed Repairs & Maintenance,Greater Manchester Combined Authority," 5,289.80 "
Tracknology Ltd,11/12/2020,Transport Related Expenditure,Vehicle Leasing,Greater Manchester Combined Authority," 5,290.00 "
Mantra Learning Ltd,16/10/2020,"Supplies, Services & Other Expenses",Commissioned Services,Greater Manchester Combined Authority," 5,323.13 "
Environment Agency,09/11/2020,Employees Pay,Seconded Employee Cost,Greater Manchester Combined Authority," 5,330.00 "
APEA,26/11/2020,Indirect Employee Allowances,Devolved Training,Greater Manchester Combined Authority," 5,400.00 "
NPOWER YORKSHIRE LTD,23/12/2020,Premises Related Expenditure,Electricity,Greater Manchester Combined Authority," 5,416.54 "
NPOWER YORKSHIRE LTD,23/12/2020,Premises Related Expenditure,Electricity,Greater Manchester Combined Authority," 5,416.54 "
Fire Service College LTD,17/12/2020,Indirect Employee Allowances,Training Course Fees,Greater Manchester Combined Authority," 5,436.00 "
TFGM,18/11/2020,"Supplies, Services & Other Expenses",Grant Expenditure,Greater Manchester Combined Authority," 5,491.31 "
Bolton MBC,20/11/2020,"Supplies, Services & Other Expenses",Grant Expenditure,Greater Manchester Combined Authority," 5,500.00 "
Dalbergia Group Limited,12/11/2020,"Supplies, Services & Other Expenses",Professional Fees,Greater Manchester Combined Authority," 5,500.00 "
Greater Manchester Poverty Action,06/11/2020,"Supplies, Services & Other Expenses",Consultancy Fees,Greater Manchester Combined Authority," 5,500.00 "
Manchester City Council,20/11/2020,"Supplies, Services & Other Expenses",Grant Expenditure,Greater Manchester Combined Authority," 5,500.00 "
OLDHAM MET BOROUGH,20/11/2020,"Supplies, Services & Other Expenses",Grant Expenditure,Greater Manchester Combined Authority," 5,500.00 "
Rentokil Initial UK Ltd,02/11/2020,"Supplies, Services & Other Expenses",Professional Fees,Greater Manchester Combined Authority," 5,500.00 "
Rochdale Metropolitan Borough Council,20/11/2020,"Supplies, Services & Other Expenses",Grant Expenditure,Greater Manchester Combined Authority," 5,500.00 "
Salford City Council,20/11/2020,"Supplies, Services & Other Expenses",Grant Expenditure,Greater Manchester Combined Authority," 5,500.00 "
Stockport MBC,20/11/2020,"Supplies, Services & Other Expenses",Grant Expenditure,Greater Manchester Combined Authority," 5,500.00 "
TAMESIDE MBC,04/12/2020,"Supplies, Services & Other Expenses",Grant Expenditure,Greater Manchester Combined Authority," 5,500.00 "
WIGAN MBC,20/11/2020,"Supplies, Services & Other Expenses",Grant Expenditure,Greater Manchester Combined Authority," 5,500.00 "
NPOWER YORKSHIRE LTD,23/12/2020,Premises Related Expenditure,Electricity,Greater Manchester Combined Authority," 5,511.25 "
NPOWER YORKSHIRE LTD,23/12/2020,Premises Related Expenditure,Electricity,Greater Manchester Combined Authority," 5,511.25 "
ESCS Pipe Coating Systems Ltd,24/11/2020,"Supplies, Services & Other Expenses",Operational Equipment Non-Consumables,Greater Manchester Combined Authority," 5,530.00 "
Fire Service College LTD,20/10/2020,Indirect Employee Allowances,Training Course Fees,Greater Manchester Combined Authority," 5,590.00 "
Fire Service College LTD,02/12/2020,Indirect Employee Allowances,Training Course Fees,Greater Manchester Combined Authority," 5,590.00 "
Manchester Action on Street Health,25/11/2020,"Supplies, Services & Other Expenses",Grant Expenditure,Greater Manchester Combined Authority," 5,607.50 "
Manchester City Council,23/11/2020,Premises Related Expenditure,Rates,Greater Manchester Combined Authority," 5,632.00 "
Manchester City Council,21/10/2020,Premises Related Expenditure,Rates,Greater Manchester Combined Authority," 5,632.00 "
Manchester City Council,21/12/2020,Premises Related Expenditure,Rates,Greater Manchester Combined Authority," 5,632.00 "
The Growth Company,16/10/2020,"Supplies, Services & Other Expenses",Commissioned Services,Greater Manchester Combined Authority," 5,636.80 "
J Fletcher (Engineers) Ltd,23/11/2020,Capital,Estates Capital Contracts,Greater Manchester Combined Authority," 5,680.00 "
BURY COUNCIL,01/10/2020,Premises Related Expenditure,Rates,Greater Manchester Combined Authority," 5,683.00 "
BURY COUNCIL,02/11/2020,Premises Related Expenditure,Rates,Greater Manchester Combined Authority," 5,683.00 "
BURY COUNCIL,01/12/2020,Premises Related Expenditure,Rates,Greater Manchester Combined Authority," 5,683.00 "
Nitro Software Inc.,14/10/2020,"Supplies, Services & Other Expenses",Computer Software,Greater Manchester Combined Authority," 5,692.80 "
TRAFFORD MBC,15/10/2020,Employees Pay,Seconded Employee Cost,Greater Manchester Combined Authority," 5,694.81 "
TRAFFORD MBC,15/10/2020,Employees Pay,Seconded Employee Cost,Greater Manchester Combined Authority," 5,694.81 "
The Lettershop Group,25/11/2020,"Supplies, Services & Other Expenses",Postage,Greater Manchester Combined Authority," 5,707.20 "
Ministry Of Justice,20/10/2020,Employees Pay,Seconded Employee Cost,Greater Manchester Combined Authority," 5,721.00 "
Ministry Of Justice,11/11/2020,Employees Pay,Seconded Employee Cost,Greater Manchester Combined Authority," 5,721.00 "
TRAVELERS INSURANCE COMPANY LIMITED,15/12/2020,"Supplies, Services & Other Expenses",Insurance,Greater Manchester Combined Authority," 5,751.54 "
TFGM,16/12/2020,Capital,Traffic Signals,Greater Manchester Combined Authority," 5,779.94 "
Hopwood Hall College,17/12/2020,"Supplies, Services & Other Expenses",Grant Expenditure,Greater Manchester Combined Authority," 5,817.57 "
Manchester City Council,23/11/2020,Premises Related Expenditure,Rates,Greater Manchester Combined Authority," 5,818.00 "
Manchester City Council,21/10/2020,Premises Related Expenditure,Rates,Greater Manchester Combined Authority," 5,818.00 "
Manchester City Council,21/12/2020,Premises Related Expenditure,Rates,Greater Manchester Combined Authority," 5,818.00 "
TFGM,22/10/2020,Capital,Traffic Signals,Greater Manchester Combined Authority," 5,824.84 "
Bury College,13/11/2020,"Supplies, Services & Other Expenses",Grant Expenditure,Greater Manchester Combined Authority," 5,835.85 "
Stockport MBC,26/10/2020,Premises Related Expenditure,Rates,Greater Manchester Combined Authority," 5,837.00 "
Stockport MBC,25/11/2020,Premises Related Expenditure,Rates,Greater Manchester Combined Authority," 5,837.00 "
Stockport MBC,29/12/2020,Premises Related Expenditure,Rates,Greater Manchester Combined Authority," 5,837.00 "
Stockport MBC,19/10/2020,Premises Related Expenditure,Rates,Greater Manchester Combined Authority," 5,837.00 "
Stockport MBC,19/11/2020,Premises Related Expenditure,Rates,Greater Manchester Combined Authority," 5,837.00 "
Stockport MBC,21/12/2020,Premises Related Expenditure,Rates,Greater Manchester Combined Authority," 5,837.00 "
LDM UK Ltd,19/10/2020,"Supplies, Services & Other Expenses",Waste Campaigns,Greater Manchester Combined Authority," 5,850.00 "
GML Joinery and Construction LLP,19/12/2020,Capital,Estates Capital Contracts,Greater Manchester Combined Authority," 5,851.00 "
Wigan & Leigh College,19/11/2020,"Supplies, Services & Other Expenses",Grant Expenditure,Greater Manchester Combined Authority," 5,884.06 "
PeoplePlus Group Limited,16/10/2020,"Supplies, Services & Other Expenses",Commissioned Services,Greater Manchester Combined Authority," 5,895.84 "
TFGM,22/10/2020,Capital,Traffic Signals,Greater Manchester Combined Authority," 5,941.45 "
TFGM,22/10/2020,Capital,Traffic Signals,Greater Manchester Combined Authority," 5,967.65 "
Bolton MBC,18/11/2020,Capital,Capital Grant Expenditure,Greater Manchester Combined Authority," 6,000.00 "
Empathy Northwest CIC,18/12/2020,"Supplies, Services & Other Expenses",Grant Expenditure,Greater Manchester Combined Authority," 6,000.00 "
Prolific North Ltd,03/11/2020,"Supplies, Services & Other Expenses",Events,Greater Manchester Combined Authority," 6,000.00 "
Jane Shuttleworth Consultancy Limited,06/11/2020,"Supplies, Services & Other Expenses",Consultancy Fees,Greater Manchester Combined Authority," 6,012.50 "
Airwave Solutions Ltd,16/11/2020,"Supplies, Services & Other Expenses",Other Communications Equipment,Greater Manchester Combined Authority," 6,032.13 "
Airwave Solutions Ltd,23/11/2020,"Supplies, Services & Other Expenses",Other Communications Equipment,Greater Manchester Combined Authority," 6,032.13 "
Airwave Solutions Ltd,11/12/2020,"Supplies, Services & Other Expenses",Other Communications Equipment,Greater Manchester Combined Authority," 6,032.13 "
Airwave Solutions Ltd,23/12/2020,"Supplies, Services & Other Expenses",Other Communications Equipment,Greater Manchester Combined Authority," 6,032.13 "
Aquinas College,13/11/2020,"Supplies, Services & Other Expenses",Grant Expenditure,Greater Manchester Combined Authority," 6,035.20 "
TFGM,22/10/2020,Capital,Traffic Signals,Greater Manchester Combined Authority," 6,085.23 "
Motivair Compressors Ltd,08/10/2020,"Supplies, Services & Other Expenses",Operational Equipment Non-Consumables,Greater Manchester Combined Authority," 6,100.00 "
Wigan & Leigh College,17/12/2020,"Supplies, Services & Other Expenses",Grant Expenditure,Greater Manchester Combined Authority," 6,126.29 "
Paws for Kids t/a Endeavour Project,25/11/2020,"Supplies, Services & Other Expenses",Grant Expenditure,Greater Manchester Combined Authority," 6,270.00 "
Salford City College,13/11/2020,"Supplies, Services & Other Expenses",Grant Expenditure,Greater Manchester Combined Authority," 6,296.26 "
Booth Centre,11/11/2020,"Supplies, Services & Other Expenses",Professional Fees,Greater Manchester Combined Authority," 6,300.00 "
MhIST (Mental Health Independent Support Team),10/11/2020,"Supplies, Services & Other Expenses",Grant Expenditure,Greater Manchester Combined Authority," 6,338.00 "
Healthwork,26/11/2020,Indirect Employee Allowances,Medical Fees,Greater Manchester Combined Authority," 6,444.00 "
GUARDIAN TECHNICAL MAINTENANCE LTD,03/11/2020,Capital,Estates Capital Contracts,Greater Manchester Combined Authority," 6,473.27 "
TFGM,22/10/2020,Capital,Traffic Signals,Greater Manchester Combined Authority," 6,493.56 "
H. BELL & SONS (ROCHDALE) LIMITED,04/12/2020,Capital,Estates Capital Contracts,Greater Manchester Combined Authority," 6,495.77 "
Mott MacDonald,16/11/2020,"Supplies, Services & Other Expenses",Consultancy Fees,Greater Manchester Combined Authority," 6,500.00 "
TFGM,16/12/2020,Capital,Traffic Signals,Greater Manchester Combined Authority," 6,514.86 "
Salford City Council,26/10/2020,Premises Related Expenditure,Rates,Greater Manchester Combined Authority," 6,554.00 "
Salford City Council,25/11/2020,Premises Related Expenditure,Rates,Greater Manchester Combined Authority," 6,554.00 "
Salford City Council,29/12/2020,Premises Related Expenditure,Rates,Greater Manchester Combined Authority," 6,554.00 "
Health Innovation Manchester Hosted By Manchester University Foundation Trust (MFT),20/11/2020,"Supplies, Services & Other Expenses",Commissioned Services,Greater Manchester Combined Authority," 6,667.00 "
TRAFFORD MBC,23/11/2020,Employees Pay,Seconded Employee Cost,Greater Manchester Combined Authority," 6,676.49 "
CJ Founds Associates Ltd,21/10/2020,"Supplies, Services & Other Expenses",Professional Fees,Greater Manchester Combined Authority," 6,750.00 "
LINK TREASURY SERVICES LIMITED,05/10/2020,"Supplies, Services & Other Expenses",Professional Fees,Greater Manchester Combined Authority," 6,775.00 "
TFGM,22/10/2020,Capital,Traffic Signals,Greater Manchester Combined Authority," 6,793.71 "
Dimobi Children Disability Trust,25/11/2020,"Supplies, Services & Other Expenses",Grant Expenditure,Greater Manchester Combined Authority," 6,824.50 "
Stockport MBC,18/11/2020,Capital,Capital Grant Expenditure,Greater Manchester Combined Authority," 6,856.91 "
Cranswick Continental Foods,17/12/2020,"Supplies, Services & Other Expenses",Professional Fees,Greater Manchester Combined Authority," 6,859.40 "
Independent Choices Greater Manchester,10/11/2020,"Supplies, Services & Other Expenses",Grant Expenditure,Greater Manchester Combined Authority," 6,885.00 "
Oldham College,13/11/2020,"Supplies, Services & Other Expenses",Grant Expenditure,Greater Manchester Combined Authority," 6,946.17 "
Mantra Learning Ltd,17/12/2020,"Supplies, Services & Other Expenses",Commissioned Services,Greater Manchester Combined Authority," 6,977.10 "
Telefonica UK Ltd (O2),30/11/2020,"Supplies, Services & Other Expenses",Outsourced Services IT,Greater Manchester Combined Authority," 6,980.00 "
Bolton MBC,18/11/2020,Capital,Capital Grant Expenditure,Greater Manchester Combined Authority," 7,000.00 "
Bolton MBC,18/11/2020,Capital,Capital Grant Expenditure,Greater Manchester Combined Authority," 7,000.00 "
Vital Management t/a L.G. Publicity,07/12/2020,"Supplies, Services & Other Expenses",Consultancy Fees,Greater Manchester Combined Authority," 7,000.00 "
Standard Fuel Oils,19/11/2020,Transport Related Expenditure,Fuel,Greater Manchester Combined Authority," 7,042.59 "
TFGM,16/10/2020,"Supplies, Services & Other Expenses",Grant Expenditure,Greater Manchester Combined Authority," 7,046.46 "
Cranswick Continental Foods,23/10/2020,"Supplies, Services & Other Expenses",Professional Fees,Greater Manchester Combined Authority," 7,088.04 "
Telefonica UK Ltd (O2),16/10/2020,"Supplies, Services & Other Expenses",Outsourced Services IT,Greater Manchester Combined Authority," 7,088.66 "
TFGM,24/11/2020,"Supplies, Services & Other Expenses",Traffic Signal Repairs,Greater Manchester Combined Authority," 7,092.46 "
Telefonica UK Ltd (O2),15/10/2020,"Supplies, Services & Other Expenses",Outsourced Services IT,Greater Manchester Combined Authority," 7,130.23 "
Bury College,14/10/2020,"Supplies, Services & Other Expenses",Grant Expenditure,Greater Manchester Combined Authority," 7,146.45 "
SQEPtech Ltd,08/10/2020,Indirect Employee Allowances,Other Training Expenses,Greater Manchester Combined Authority," 7,147.04 "
SQEPtech Ltd,10/11/2020,Indirect Employee Allowances,Other Training Expenses,Greater Manchester Combined Authority," 7,147.04 "
TFGM,22/10/2020,Capital,Traffic Signals,Greater Manchester Combined Authority," 7,163.84 "
TFGM,18/11/2020,Capital,Capital Grant Expenditure,Greater Manchester Combined Authority," 7,169.89 "
WIGAN MBC,17/12/2020,"Supplies, Services & Other Expenses",Grant Expenditure,Greater Manchester Combined Authority," 7,172.33 "
Ekosgen,03/11/2020,"Supplies, Services & Other Expenses",Professional Fees,Greater Manchester Combined Authority," 7,262.80 "
Thompson Reuters,08/10/2020,"Supplies, Services & Other Expenses",Subscriptions,Greater Manchester Combined Authority," 7,264.00 "
TAMESIDE MBC,19/11/2020,"Supplies, Services & Other Expenses",Subscriptions,Greater Manchester Combined Authority," 7,280.00 "
GUARDIAN TECHNICAL MAINTENANCE LTD,03/11/2020,Capital,Estates Capital Contracts,Greater Manchester Combined Authority," 7,282.53 "
